Authority,Department,Spending Area,Expense Type,Posting Date,Reference Number,Amount,Supplier
OXFORDSHIRE CC,CORPORATE CORE,ICT OPERATIONS & MAI,MATERIALS,28/09/2023,11176528203,147,AMAZON.CO.UK 1K29B9DK4
OXFORDSHIRE CC,SOCIAL AND COMMUNITY SERVICES,CSS WALLINGFORD,MATERIALS,28/09/2023,11176527793,59.96,AMZNMKTPLACE
OXFORDSHIRE CC,"CHILDRENS, YOUNG PEOPLE AND FAMILIES",QUALITY ASSURANCE SOUTH TEAM,HIRE OF ACCOMMODATION AND FACILITIES,28/09/2023,11176528239,79.54,TRAVELODGE
OXFORDSHIRE CC,CORPORATE CORE,STRAT&COMMS TRAINING,TRAINING RELATED EXPENDITURE,28/09/2023,11176528191,"1,198.80",WWW.THEHUBEVENTS.COM
OXFORDSHIRE CC,ENVIRONMENT AND ECONOMY,HARD FM,HARDWARE AND CROCKERY,28/09/2023,11176528199,29.62,TOOLSTATION LTD
OXFORDSHIRE CC,"CHILDRENS, YOUNG PEOPLE AND FAMILIES",FAMILY SOLUTIONS PLUS NON-STAFF - NORTH,HIRE OF ACCOMMODATION AND FACILITIES,28/09/2023,11176528219,923,BKG HOTEL AT BOOKING.C
OXFORDSHIRE CC,SOCIAL AND COMMUNITY SERVICES,CSS WITNEY,CATERING PROVISIONS,28/09/2023,11176528027,18.9,MARKS&SPENCER PLC SACA
OXFORDSHIRE CC,"CHILDRENS, YOUNG PEOPLE AND FAMILIES","	LEAVING CARE CITY 2",OTHER TRANSPORT ARRANGEMENTS,28/09/2023,11176528035,2,STGCOACH/CTYLINK
OXFORDSHIRE CC,SOCIAL AND COMMUNITY SERVICES,CSS WANTAGE,CATERING PROVISIONS,28/09/2023,11176527781,11.2,SAINSBURYS S/MKTS
OXFORDSHIRE CC,CHILDREN'S & EDUCATION,CHILDREN IN CARE NON-STAFFING - NORTH,ENTERTAINMENT EXPENSES,28/09/2023,11176528223,9.94,NINJA WARRIOR UK CHELM
OXFORDSHIRE CC,ENVIRONMENT AND ECONOMY,"	ROW MAINT",EQUIPMENT,28/09/2023,11176528009,-109.96,TOOLSTATION UK
OXFORDSHIRE CC,"CHILDRENS, YOUNG PEOPLE AND FAMILIES","	LEAVING CARE CITY 2",BIRTHDAY ALLOWANCE,28/09/2023,11176527789,50,AMAZON  204-1341488-85
OXFORDSHIRE CC,"CHILDRENS, YOUNG PEOPLE AND FAMILIES","	DISABILITIES TEAM-C","SUPPLIES, STATIONERY AND MATERIALS",28/09/2023,11176527881,17.99,AMZNMKTPLACE
OXFORDSHIRE CC,"CHILDRENS, YOUNG PEOPLE AND FAMILIES","	LEAVING CARE CITY 2",HARDWARE AND CROCKERY,28/09/2023,11176528037,66.42,TOOLSTATION LTD - BICE
OXFORDSHIRE CC,SOCIAL AND COMMUNITY SERVICES,CSS WANTAGE,DAY ACTIVITIES,28/09/2023,11176527783,14.48,HOLLYWOOD BOWL
OXFORDSHIRE CC,"CHILDRENS, YOUNG PEOPLE AND FAMILIES",DIDCOT MOVE-ON HOME,OTHER TRANSPORT ARRANGEMENTS,28/09/2023,11176528181,6.2,UNION STREET CAR PARK
OXFORDSHIRE CC,"CHILDRENS, YOUNG PEOPLE AND FAMILIES","	LEAVING CARE CITY 2",OTHER TRANSPORT ARRANGEMENTS,28/09/2023,11176528031,4.5,STGCOACH/CTYLINK
OXFORDSHIRE CC,SOCIAL AND COMMUNITY SERVICES,CSS WANTAGE,DAY ACTIVITIES,28/09/2023,11176527785,10.86,HOLLYWOOD BOWL
OXFORDSHIRE CC,"CHILDRENS, YOUNG PEOPLE AND FAMILIES","	DISABILITIES TEAM-C","SUPPLIES, STATIONERY AND MATERIALS",28/09/2023,11176527883,7.99,AMZNMKTPLACE
OXFORDSHIRE CC,ENVIRONMENT AND ECONOMY,BANBURY LIBRARY,POSTAGE AND DELIVERY,28/09/2023,11176528005,1.1,POST OFFICE SELF SERVE
OXFORDSHIRE CC,CORPORATE CORE,OPERATIONS,MATERIALS,28/09/2023,11176528065,8.98,AMZNMKTPLACE
OXFORDSHIRE CC,ENVIRONMENT AND ECONOMY,HARD FM,PREMISES REPAIRS,28/09/2023,11176527815,27.67,WILLIAMS & CO
OXFORDSHIRE CC,"CHILDRENS, YOUNG PEOPLE AND FAMILIES","	LEAVING CARE CITY 2",OTHER TRANSPORT ARRANGEMENTS,28/09/2023,11176528033,2,STGCOACH/CTYLINK
OXFORDSHIRE CC,SOCIAL AND COMMUNITY SERVICES,SCHOOLS FM CATERING AREA 2,MATERIALS,28/09/2023,11176528017,3.98,AMZNMKTPLACE
OXFORDSHIRE CC,"CHILDRENS, YOUNG PEOPLE AND FAMILIES",MARKETING,MATERIALS,28/09/2023,11176527791,10.99,AMAZON.CO.UK 1K1SG8DB4
OXFORDSHIRE CC,"CHILDRENS, YOUNG PEOPLE AND FAMILIES",THAME E&A HOME,CATERING PROVISIONS,28/09/2023,11176527945,16.26,WEBBS GARDEN CENTRES
OXFORDSHIRE CC,"CHILDRENS, YOUNG PEOPLE AND FAMILIES",WITNEY,CATERING PROVISIONS,28/09/2023,11176528001,23.52,SAINSBURY'S S/MKT
OXFORDSHIRE CC,"CHILDRENS, YOUNG PEOPLE AND FAMILIES",THAME E&A HOME,VEHICLE FUEL,28/09/2023,11176527947,2,BELLINGERS S.STN
OXFORDSHIRE CC,ENVIRONMENT AND ECONOMY,BANBURY LIBRARY,MATERIALS,28/09/2023,11176528007,8,BANBURY SHOE REPAIR AN
OXFORDSHIRE CC,SOCIAL AND COMMUNITY SERVICES,CSS - OXFORD,CATERING PROVISIONS,28/09/2023,11176528077,331.48,TESCO STORES 2994
OXFORDSHIRE CC,"CHILDRENS, YOUNG PEOPLE AND FAMILIES",TRANSPORT COSTS,TRANSPORT TO SCHOOL,28/09/2023,11176527787,24.5,OXFORDBUS.CO.UK
OXFORDSHIRE CC,SOCIAL AND COMMUNITY SERVICES,BULLINGDON PRISON,"SUPPLIES, STATIONERY AND MATERIALS",28/09/2023,11176528131,5.99,AMZNMKTPLACE
OXFORDSHIRE CC,"CHILDRENS, YOUNG PEOPLE AND FAMILIES",KINGFISHER,MATERIALS,28/09/2023,11176527811,24,TESCO ONLINE
OXFORDSHIRE CC,"CHILDRENS, YOUNG PEOPLE AND FAMILIES","	LEAVING CARE SOUTH",CATERING PROVISIONS,28/09/2023,11176528133,40.69,SAINSBURYS S/MKTS
OXFORDSHIRE CC,"CHILDRENS, YOUNG PEOPLE AND FAMILIES",THAME E&A HOME,CATERING PROVISIONS,28/09/2023,11176527949,7.1,TESCO STORES 5429
OXFORDSHIRE CC,SOCIAL AND COMMUNITY SERVICES,SCHOOLS FM CATERING AREA 2,MATERIALS,28/09/2023,11176528015,24.98,AMZNMKTPLACE
OXFORDSHIRE CC,"CHILDRENS, YOUNG PEOPLE AND FAMILIES",FSP NON-STAFFING - CENTRAL,PAYMENTS TO TRANSPORT OPERATORS,28/09/2023,11176527831,49.7,WWW.GWR.COM
OXFORDSHIRE CC,COMMUNITY SAFETY,ON ST PARK OXFD SPA,MATERIALS,28/09/2023,11176527839,48.54,AMZNMKTPLACE
OXFORDSHIRE CC,SOCIAL AND COMMUNITY SERVICES,BICESTER LIBRARY,MATERIALS,28/09/2023,11176528135,32.99,AMZNMKTPLACE
OXFORDSHIRE CC,ENVIRONMENT AND ECONOMY,WASTE REDUCTION GEN,PAYMENTS TO TRANSPORT OPERATORS,28/09/2023,11176527897,282.15,TRAINLINE
OXFORDSHIRE CC,CORPORATE CORE,ICT OPERATIONS & MAI,PURCHASE OF IT EQUIPMENT,28/09/2023,11176528205,137.82,AMAZON  204-5557149-72
OXFORDSHIRE CC,SOCIAL AND COMMUNITY SERVICES,UASC 16&17,MATERIALS,28/09/2023,11176527825,300,CYCLE KING
OXFORDSHIRE CC,ENVIRONMENT AND ECONOMY,"	NETWORK & ASSET MGT",EQUIPMENT,28/09/2023,11176527833,15.2,AMZNMKTPLACE
OXFORDSHIRE CC,ENVIRONMENT AND ECONOMY,"	NETWORK & ASSET MGT",EQUIPMENT,28/09/2023,11176527835,-16.09,AMZNMKTPLACE
OXFORDSHIRE CC,CHILDREN'S & EDUCATION,CHILDREN IN CARE NON-STAFFING - NORTH,CATERING,28/09/2023,11176528225,3.95,MILLIES COOKIES
OXFORDSHIRE CC,ENVIRONMENT AND ECONOMY,THE RIDGEWAY,MATERIALS,28/09/2023,11176527899,3,AMZNMKTPLACE
OXFORDSHIRE CC,CORPORATE CORE,ICT OPERATIONS & MAI,PURCHASE OF IT EQUIPMENT,28/09/2023,11176528207,137.82,AMAZON  204-5557149-72
OXFORDSHIRE CC,SOCIAL AND COMMUNITY SERVICES,CSS BICESTER,MATERIALS,28/09/2023,11176527821,3,POUNDLAND LTD - 1505
OXFORDSHIRE CC,COMMUNITY SAFETY,ON ST PARK OXFD SPA,MATERIALS,28/09/2023,11176527837,14.82,AMZNMKTPLACE
OXFORDSHIRE CC,SOCIAL AND COMMUNITY SERVICES,CSS - BANBURY,CATERING PROVISIONS,28/09/2023,11176528233,0.55,ALDI 10 775
OXFORDSHIRE CC,SOCIAL AND COMMUNITY SERVICES,COMMUNITY PARTNERSHIP TEAM,CATERING PROVISIONS,28/09/2023,11176527893,20.55,TESCO STORES 2008
OXFORDSHIRE CC,CORPORATE CORE,ICT OPERATIONS & MAI,PURCHASE OF IT EQUIPMENT,28/09/2023,11176528209,137.82,AMAZON  204-5557149-72
OXFORDSHIRE CC,SOCIAL AND COMMUNITY SERVICES,CSS - BANBURY,MATERIALS,28/09/2023,11176528235,8.55,AMZNMKTPLACE
OXFORDSHIRE CC,CORPORATE CORE,"MARKETING, COMMUNICATIONS & ENGAGEMENT","PUBLICITY, PROMOTIONS AND ADVERTISEMENT",28/09/2023,11176528187,500,GOOGLE ADS4896546035
OXFORDSHIRE CC,"CHILDRENS, YOUNG PEOPLE AND FAMILIES",NRPF & HOMELESSNESS,OTHER TRANSPORT ARRANGEMENTS,28/09/2023,11176528217,100,ROCKETS
OXFORDSHIRE CC,CHILDREN'S & EDUCATION,CHILDREN IN CARE NON-STAFFING - NORTH,OTHER TRANSPORT ARRANGEMENTS,28/09/2023,11176528221,9.5,WATERLOO LANE 1
OXFORDSHIRE CC,SOCIAL AND COMMUNITY SERVICES,CSS - BANBURY,MATERIALS,28/09/2023,11176528237,5.32,AMAZON.CO.UK 1K6S35D24
OXFORDSHIRE CC,CORPORATE CORE,"MARKETING, COMMUNICATIONS & ENGAGEMENT",TRAINING RELATED EXPENDITURE,28/09/2023,11176528189,95,EB  CWB SUMMIT 2023
OXFORDSHIRE CC,"CHILDRENS, YOUNG PEOPLE AND FAMILIES",THAME E&A HOME,OTHER TRANSPORT ARRANGEMENTS,28/09/2023,11176527895,2,OCC PR WATER EATON FAM
OXFORDSHIRE CC,CORPORATE CORE,"	LEGAL SERVICES",SUBSCRIPTIONS,28/09/2023,11176528095,"3,288.55",THOMSON REUTERS UK LTD
OXFORDSHIRE CC,"CHILDRENS, YOUNG PEOPLE AND FAMILIES",MANAGEMENT,CATERING PROVISIONS,28/09/2023,11176528079,1.45,MARKS&SPENCER PLC
OXFORDSHIRE CC,"CHILDRENS, YOUNG PEOPLE AND FAMILIES","	LOOKED AFTER CITY 2",PAYMENT TO GOVERNMENT DEPARTMENTS,28/09/2023,11176528087,58.5,HM PASSPORT OFFICE
OXFORDSHIRE CC,"CHILDRENS, YOUNG PEOPLE AND FAMILIES",CHILDREN IN CARE NON-STAFFING - CENTRL 1,PAYMENTS TO TRANSPORT OPERATORS,28/09/2023,11176527845,48.49,TRAINLINE
OXFORDSHIRE CC,"CHILDRENS, YOUNG PEOPLE AND FAMILIES","	LEAVING CARE NORTH",PAYMENTS TO TRANSPORT OPERATORS,28/09/2023,11176528165,16.8,TRAINLINE
OXFORDSHIRE CC,CORPORATE CORE,ICT OPERATIONS & MAI,PURCHASE OF IT EQUIPMENT,28/09/2023,11176528173,102,AIRSERVER
OXFORDSHIRE CC,SOCIAL AND COMMUNITY SERVICES,"	MTFC",ENTERTAINMENT EXPENSES,28/09/2023,11176528175,18.3,THE MAD HOUSE (READING
OXFORDSHIRE CC,SOCIAL AND COMMUNITY SERVICES,SCHOOLS FM CATERING AREA 2,CATERING PROVISIONS,28/09/2023,11176527865,10.52,SAINSBURYS S/MKTS
OXFORDSHIRE CC,CHILDREN'S & EDUCATION,"	OCCG GRANT",SUBSCRIPTIONS,28/09/2023,11176528167,35.99,PUREGYM LIMITED
OXFORDSHIRE CC,SOCIAL AND COMMUNITY SERVICES,"	MTFC",VEHICLE FUEL,28/09/2023,11176528177,6.16,SHELL MAPLE RISE
OXFORDSHIRE CC,SOCIAL AND COMMUNITY SERVICES,CSS BICESTER,CATERING PROVISIONS,28/09/2023,11176527853,86,AMZNMKTPLACE
OXFORDSHIRE CC,CORPORATE CORE,SCHOOLS FM CATERING AREA 4,CATERING PROVISIONS,28/09/2023,11176527995,69.18,ALDI STORES
OXFORDSHIRE CC,"CHILDRENS, YOUNG PEOPLE AND FAMILIES","	LOOKED AFTER NORTH",CATERING,28/09/2023,11176527937,15.83,STARBUCKS
OXFORDSHIRE CC,CORPORATE CORE,,STATIONERY,28/09/2023,11176528151,106.7,LYRECO UK LTD
OXFORDSHIRE CC,CORPORATE CORE,,STATIONERY,28/09/2023,11176528145,76.8,LYRECO UK LTD
OXFORDSHIRE CC,CORPORATE CORE,,STATIONERY,28/09/2023,11176528153,20.02,LYRECO UK LTD
OXFORDSHIRE CC,"CHILDRENS, YOUNG PEOPLE AND FAMILIES","	DISABILITIES TEAM-C","SUPPLIES, STATIONERY AND MATERIALS",28/09/2023,11176527871,104.76,AMZNMKTPLACE
OXFORDSHIRE CC,"CHILDRENS, YOUNG PEOPLE AND FAMILIES",FAMILY SOLUTIONS PLUS NON-STAFF - NORTH,MATERIALS,28/09/2023,11176528259,47.95,WWW.ARGOS.CO.UK
OXFORDSHIRE CC,"CHILDRENS, YOUNG PEOPLE AND FAMILIES",MANAGEMENT RECHARGES,HIRED AND CONTRACTED SERVICES,28/09/2023,11176527851,35.2,ASDA STORES
OXFORDSHIRE CC,CORPORATE CORE,,STATIONERY,28/09/2023,11176528147,98.75,LYRECO UK LTD
OXFORDSHIRE CC,CORPORATE CORE,,STATIONERY,28/09/2023,11176528155,76.8,LYRECO UK LTD
OXFORDSHIRE CC,CORPORATE CORE,,STATIONERY,28/09/2023,11176528149,20.02,LYRECO UK LTD
OXFORDSHIRE CC,"CHILDRENS, YOUNG PEOPLE AND FAMILIES","	DISABILITIES TEAM-C","SUPPLIES, STATIONERY AND MATERIALS",28/09/2023,11176527873,23.44,AMZNMKTPLACE
OXFORDSHIRE CC,CORPORATE CORE,SCHOOLS FM CATERING AREA 4,CATERING PROVISIONS,28/09/2023,11176527997,26,SAINSBURYS S/MKTS
OXFORDSHIRE CC,CORPORATE CORE,,STATIONERY,28/09/2023,11176528157,190.66,LYRECO UK LTD
OXFORDSHIRE CC,"CHILDRENS, YOUNG PEOPLE AND FAMILIES",FAMILY SOLUTIONS PLUS NON-STAFF - NORTH,PAYMENTS TO TRANSPORT OPERATORS,28/09/2023,11176528159,-99.1,TRAINLINE
OXFORDSHIRE CC,"CHILDRENS, YOUNG PEOPLE AND FAMILIES","	DISABILITIES TEAM-C","SUPPLIES, STATIONERY AND MATERIALS",28/09/2023,11176527867,15.99,AMZNMKTPLACE
OXFORDSHIRE CC,SOCIAL AND COMMUNITY SERVICES,CSS BICESTER,CATERING EQUIPMENT,28/09/2023,11176527855,38.36,AMZNMKTPLACE
OXFORDSHIRE CC,"CHILDRENS, YOUNG PEOPLE AND FAMILIES",DIDCOT MOVE-ON HOME,OTHER TRANSPORT ARRANGEMENTS,28/09/2023,11176528183,6.2,UNION STREET CAR PARK
OXFORDSHIRE CC,SOCIAL AND COMMUNITY SERVICES,UASC 16&17,MATERIALS,28/09/2023,11176527823,300,CYCLE KING
OXFORDSHIRE CC,CORPORATE CORE,BUSINESS INTELLECTUAL PROPERTY CENTRE,MATERIALS,28/09/2023,11176528063,33.47,AMZNMKTPLACE
OXFORDSHIRE CC,"CHILDRENS, YOUNG PEOPLE AND FAMILIES",HOUSE PROJECT,CATERING PROVISIONS,28/09/2023,11176528161,14,SAINSBURY'S S/MKT
OXFORDSHIRE CC,"CHILDRENS, YOUNG PEOPLE AND FAMILIES",THAME E&A HOME,CATERING PROVISIONS,28/09/2023,11176527993,34.58,SAINSBURYS S/MKTS
OXFORDSHIRE CC,"CHILDRENS, YOUNG PEOPLE AND FAMILIES","	LOOKED AFTER NORTH",OTHER TRANSPORT ARRANGEMENTS,28/09/2023,11176527921,2.3,VALE OF WH PARKING FEE
OXFORDSHIRE CC,"CHILDRENS, YOUNG PEOPLE AND FAMILIES","	LOOKED AFTER NORTH",CATERING PROVISIONS,28/09/2023,11176527929,1.8,SELECTA U.K. LIMITED
OXFORDSHIRE CC,"CHILDRENS, YOUNG PEOPLE AND FAMILIES",MANAGEMENT,CATERING PROVISIONS,28/09/2023,11176528081,33.9,MARKS&SPENCER PLC
OXFORDSHIRE CC,"CHILDRENS, YOUNG PEOPLE AND FAMILIES","	LOOKED AFTER CITY 2",PAYMENTS TO TRANSPORT OPERATORS,28/09/2023,11176528089,16,TRAINLINE
OXFORDSHIRE CC,"CHILDRENS, YOUNG PEOPLE AND FAMILIES","	DISABILITIES TEAM-C","SUPPLIES, STATIONERY AND MATERIALS",28/09/2023,11176527877,42.9,AMZNMKTPLACE
OXFORDSHIRE CC,SOCIAL AND COMMUNITY SERVICES,CSS - OXFORD,CATERING PROVISIONS,28/09/2023,11176527975,41.56,ALDI STORES 775-142
OXFORDSHIRE CC,"CHILDRENS, YOUNG PEOPLE AND FAMILIES","	LOOKED AFTER NORTH",OTHER TRANSPORT ARRANGEMENTS,28/09/2023,11176527923,7.8,WESTGATE OXFORD CAR PA
OXFORDSHIRE CC,"CHILDRENS, YOUNG PEOPLE AND FAMILIES","	LOOKED AFTER NORTH",CATERING PROVISIONS,28/09/2023,11176527931,0.6,SELECTA U.K. LIMITED
OXFORDSHIRE CC,"CHILDRENS, YOUNG PEOPLE AND FAMILIES","	DISABILITIES TEAM-C","SUPPLIES, STATIONERY AND MATERIALS",28/09/2023,11176527879,10.53,AMZNMKTPLACE
OXFORDSHIRE CC,"CHILDRENS, YOUNG PEOPLE AND FAMILIES","	LOOKED AFTER NORTH",CATERING PROVISIONS,28/09/2023,11176527925,0.6,SELECTA U.K. LIMITED
OXFORDSHIRE CC,"CHILDRENS, YOUNG PEOPLE AND FAMILIES","	LOOKED AFTER NORTH",CATERING PROVISIONS,28/09/2023,11176527933,0.6,SELECTA U.K. LIMITED
OXFORDSHIRE CC,"CHILDRENS, YOUNG PEOPLE AND FAMILIES",CSS - ABINGDON,CATERING PROVISIONS,28/09/2023,11176528273,4.54,TESCO STORES 2008
OXFORDSHIRE CC,"CHILDRENS, YOUNG PEOPLE AND FAMILIES","	LOOKED AFTER NORTH",CATERING PROVISIONS,28/09/2023,11176527935,1,SELECTA U.K. LIMITED
OXFORDSHIRE CC,"CHILDRENS, YOUNG PEOPLE AND FAMILIES","	LOOKED AFTER CITY 2",OTHER TRANSPORT ARRANGEMENTS,28/09/2023,11176528085,2,OXFORD BUS COMPANY
OXFORDSHIRE CC,"CHILDRENS, YOUNG PEOPLE AND FAMILIES",STH EARLY HELP-ABNDN,DOMESTIC SUPPLIES,28/09/2023,11176528245,91.34,AMZNMKTPLACE
OXFORDSHIRE CC,"CHILDRENS, YOUNG PEOPLE AND FAMILIES","	DISABILITIES TEAM-C","SUPPLIES, STATIONERY AND MATERIALS",28/09/2023,11176527875,6.5,AMZNMKTPLACE
OXFORDSHIRE CC,"CHILDRENS, YOUNG PEOPLE AND FAMILIES","	LOOKED AFTER NORTH",CATERING PROVISIONS,28/09/2023,11176527927,0.6,SELECTA U.K. LIMITED
OXFORDSHIRE CC,"CHILDRENS, YOUNG PEOPLE AND FAMILIES",DIDCOT MOVE-ON HOME,HARDWARE AND CROCKERY,28/09/2023,11176527901,33.97,WEBBS GARDEN CENTRES L
OXFORDSHIRE CC,"CHILDRENS, YOUNG PEOPLE AND FAMILIES",PAUSE PROGRAMME,CATERING PROVISIONS,28/09/2023,11176527917,60,ASDA GEORGE COM LEEDS
OXFORDSHIRE CC,"CHILDRENS, YOUNG PEOPLE AND FAMILIES","	LOOKED AFTER CITY 2",PAYMENT TO GOVERNMENT DEPARTMENTS,28/09/2023,11176528083,33,OXFORDSHIRE CC WEB1
OXFORDSHIRE CC,CHILDREN'S & EDUCATION,HOUSE PROJECT,CATERING PROVISIONS,28/09/2023,11176528241,12.2,WESTGATE OXFORD CAR PA
OXFORDSHIRE CC,CHILDREN'S & EDUCATION,"	OCCG GRANT",MATERIALS,28/09/2023,11176528169,11,POUNDLAND LTD - 1366
OXFORDSHIRE CC,"CHILDRENS, YOUNG PEOPLE AND FAMILIES","	LEAVING CARE CITY 2",MATERIALS,28/09/2023,11176528243,23.99,AMZNMKTPLACE
OXFORDSHIRE CC,CHILDREN'S & EDUCATION,"	LEAVING CARE NORTH",CATERING PROVISIONS,28/09/2023,11176527911,311.99,AMZNMKTPLACE
OXFORDSHIRE CC,"CHILDRENS, YOUNG PEOPLE AND FAMILIES","	OCCG GRANT",CATERING PROVISIONS,28/09/2023,11176527919,10,B&M 514 - DICOT
OXFORDSHIRE CC,CORPORATE CORE,SCHOOLS FM CATERING AREA 1,CATERING PROVISIONS,28/09/2023,11176528179,100.47,BOOKER LTD - 38584104
OXFORDSHIRE CC,"CHILDRENS, YOUNG PEOPLE AND FAMILIES","	DISABILITIES TEAM-C","SUPPLIES, STATIONERY AND MATERIALS",28/09/2023,11176527869,9.24,AMZNMKTPLACE
OXFORDSHIRE CC,"CHILDRENS, YOUNG PEOPLE AND FAMILIES","	LEAVING CARE NORTH",CATERING,28/09/2023,11176528163,18.03,STARBUCKS COFFEE
OXFORDSHIRE CC,CHILDREN'S & EDUCATION,"	OCCG GRANT",MATERIALS,28/09/2023,11176528171,39.08,AMZNMKTPLACE
OXFORDSHIRE CC,ENVIRONMENT AND ECONOMY,"	ROW MAINT",EQUIPMENT,27/09/2023,11170551407,302.39,TOOLSTATION UK
OXFORDSHIRE CC,SOCIAL AND COMMUNITY SERVICES,"	LIBRARY COLLECTIONS",PAYMENTS TO VOLUNTARY BODIES,27/09/2023,11170551415,300,CILIP
OXFORDSHIRE CC,"CHILDRENS, YOUNG PEOPLE AND FAMILIES",QUALITY ASSURANCE SOUTH TEAM,HIRE OF ACCOMMODATION AND FACILITIES,27/09/2023,11170551735,144.8,TRAVELODGE
OXFORDSHIRE CC,ENVIRONMENT AND ECONOMY,"	COUNTRYSIDE PREMISES",GENERAL REFUSE COLLECTION AND DISPOSAL,27/09/2023,11170551409,426,M & M SKIP HIRE
OXFORDSHIRE CC,"CHILDRENS, YOUNG PEOPLE AND FAMILIES","	LEAVING CARE CITY 2",PAYMENTS TO TRANSPORT OPERATORS,27/09/2023,11170551417,116,BKG HOTEL AT BOOKING.C
OXFORDSHIRE CC,SOCIAL AND COMMUNITY SERVICES,SCHOOLS FM CATERING AREA 2,CATERING PROVISIONS,27/09/2023,11170551425,15.65,SAINSBURYS S/MKTS
OXFORDSHIRE CC,CHILDREN'S & EDUCATION,HOUSE PROJECT,CATERING PROVISIONS,27/09/2023,11170551737,7.8,WESTGATE OXFORD CAR PA
OXFORDSHIRE CC,ENVIRONMENT AND ECONOMY,BANBURY LIBRARY,"NEWSPAPERS, PERIODICALS AND PUBLICATIONS",27/09/2023,11170551401,47.99,GUARDIAN NEWS & MEDIA
OXFORDSHIRE CC,SOCIAL AND COMMUNITY SERVICES,"	PUBLIC HEALTH GENERA",TRAINING RELATED EXPENDITURE,27/09/2023,11170551595,312,WESTMINSTER FORUM PROJ
OXFORDSHIRE CC,"CHILDRENS, YOUNG PEOPLE AND FAMILIES",MANAGEMENT,CATERING PROVISIONS,27/09/2023,11170551739,49.8,TESCO STORES 2994
OXFORDSHIRE CC,"CHILDRENS, YOUNG PEOPLE AND FAMILIES",EYNSHAM,CATERING PROVISIONS,27/09/2023,11170551403,7.38,SPAR EYNSHAM
OXFORDSHIRE CC,SOCIAL AND COMMUNITY SERVICES,REVIEWING TEAM,HIRE OF ACCOMMODATION AND FACILITIES,27/09/2023,11170551589,114.99,PREMIER INN
OXFORDSHIRE CC,"CHILDRENS, YOUNG PEOPLE AND FAMILIES",EYNSHAM,MATERIALS,27/09/2023,11170551597,7.99,TESCO SUBSCRIPTION
OXFORDSHIRE CC,SOCIAL AND COMMUNITY SERVICES,REVIEWING TEAM,HIRE OF ACCOMMODATION AND FACILITIES,27/09/2023,11170551591,89.99,PREMIER INN
OXFORDSHIRE CC,CHILDREN'S & EDUCATION,THAME E&A HOME,CATERING,27/09/2023,11170551599,30.96,AMZNMKTPLACE
OXFORDSHIRE CC,CORPORATE CORE,ICT OPERATIONS & MAI,PURCHASE OF IT EQUIPMENT,27/09/2023,11170551709,90,AMZNMKTPLACE
OXFORDSHIRE CC,CORPORATE CORE,CATERING MANAGEMENT SOFT FM,POSTAGE AND DELIVERY,27/09/2023,11170551717,2.3,POST OFFICE COUNTER
OXFORDSHIRE CC,SOCIAL AND COMMUNITY SERVICES,OPERATIONS,"SUPPLIES, STATIONERY AND MATERIALS",27/09/2023,11170551593,30.07,AMZNMKTPLACE
OXFORDSHIRE CC,"CHILDRENS, YOUNG PEOPLE AND FAMILIES",THAME E&A HOME,CATERING,27/09/2023,11170551431,8.35,COSTA COFFEE 43011357
OXFORDSHIRE CC,CHILDREN'S & EDUCATION,BANBURY CC,CATERING PROVISIONS,27/09/2023,11170551719,2.9,TESCO STORES 2064
OXFORDSHIRE CC,ENVIRONMENT AND ECONOMY,"	NAT TRAILS GENERAL",CATERING PROVISIONS,27/09/2023,11170551433,1.2,SAINSBURYS PETROL
OXFORDSHIRE CC,"CHILDRENS, YOUNG PEOPLE AND FAMILIES",CHILDREN IN CARE NON-STAFFING - CENTRL 1,PAYMENTS TO TRANSPORT OPERATORS,27/09/2023,11170551267,119.48,EASYJET
OXFORDSHIRE CC,SOCIAL AND COMMUNITY SERVICES,SCHOOLS FM CATERING AREA 2,MATERIALS,27/09/2023,11170551283,16.99,AMZNMKTPLACE
OXFORDSHIRE CC,ENTERPRISEVC,,CAR LEASING - PRIVATE RENTALS,27/09/2023,11170551643,53,ENTERPRISE RENT-A-CAR
OXFORDSHIRE CC,"CHILDRENS, YOUNG PEOPLE AND FAMILIES","	RESIDENTIAL STRATEGY",CATERING,27/09/2023,11170551427,2.59,MCDONALDS
OXFORDSHIRE CC,"CHILDRENS, YOUNG PEOPLE AND FAMILIES",FIELDWORK UASC,OTHER TRANSPORT ARRANGEMENTS,27/09/2023,11170551351,35,OXFORD BUS COMPANY
OXFORDSHIRE CC,ENTERPRISEVC,,CAR LEASING - PRIVATE RENTALS,27/09/2023,11170551651,140.08,ENTERPRISE RENT-A-CAR
OXFORDSHIRE CC,"CHILDRENS, YOUNG PEOPLE AND FAMILIES","	LEAVING CARE NORTH",PAYMENT TO GOVERNMENT DEPARTMENTS,27/09/2023,11170551659,20,DVLA DRIVER ONLINE
OXFORDSHIRE CC,"CHILDRENS, YOUNG PEOPLE AND FAMILIES","	RESIDENTIAL STRATEGY",CATERING,27/09/2023,11170551429,25.44,MCDONALDS
OXFORDSHIRE CC,CORPORATE CORE,ICT OPERATIONS & MAI,PURCHASE OF IT EQUIPMENT,27/09/2023,11170551707,45.94,AMAZON  204-5557149-72
OXFORDSHIRE CC,CHILDREN'S & EDUCATION,40 THE MOORS,CATERING PROVISIONS,27/09/2023,11170551715,214.49,SAINSBURYS.CO.UK
OXFORDSHIRE CC,"CHILDRENS, YOUNG PEOPLE AND FAMILIES","	OSCB",CATERING PROVISIONS,27/09/2023,11170551723,7.8,CO-OPERATIVE FOOD
OXFORDSHIRE CC,"CHILDRENS, YOUNG PEOPLE AND FAMILIES",NTS UASC AGENCY,MATERIALS,27/09/2023,11170551277,25.68,BOOTS 0346
OXFORDSHIRE CC,"CHILDRENS, YOUNG PEOPLE AND FAMILIES",UASC POST 18,CATERING PROVISIONS,27/09/2023,11170551345,2,WM MORRISONS STORE
OXFORDSHIRE CC,ENTERPRISEVC,,CAR LEASING - PRIVATE RENTALS,27/09/2023,11170551645,98.63,ENTERPRISE RENT-A-CAR
OXFORDSHIRE CC,ENTERPRISEVC,,CAR LEASING - PRIVATE RENTALS,27/09/2023,11170551653,81.1,ENTERPRISE RENT-A-CAR
OXFORDSHIRE CC,CHILDREN'S & EDUCATION,"	OCCG GRANT",OTHER TRANSPORT ARRANGEMENTS,27/09/2023,11170551661,91.5,WWW.THEKEY.CO.UK
OXFORDSHIRE CC,SOCIAL AND COMMUNITY SERVICES,CSS - BANBURY,MATERIALS,27/09/2023,11170551731,15.99,AMZNMKTPLACE
OXFORDSHIRE CC,ENTERPRISEVC,,CAR LEASING - PRIVATE RENTALS,27/09/2023,11170551647,76.13,ENTERPRISE RENT-A-CAR
OXFORDSHIRE CC,ENTERPRISEVC,,CAR LEASING - PRIVATE RENTALS,27/09/2023,11170551655,101.92,ENTERPRISE RENT-A-CAR
OXFORDSHIRE CC,SOCIAL AND COMMUNITY SERVICES,CSS - BANBURY,MATERIALS,27/09/2023,11170551729,5.56,AMZNMKTPLACE
OXFORDSHIRE CC,ENTERPRISEVC,,CAR LEASING - PRIVATE RENTALS,27/09/2023,11170551649,81.1,ENTERPRISE RENT-A-CAR
OXFORDSHIRE CC,CHILDREN'S & EDUCATION,FIELDWORK UASC,OTHER TRANSPORT ARRANGEMENTS,27/09/2023,11170551391,17,OXFORDBUS.CO.UK
OXFORDSHIRE CC,SOCIAL AND COMMUNITY SERVICES,CSS - BANBURY,MATERIALS,27/09/2023,11170551725,69.99,AMZNMKTPLACE
OXFORDSHIRE CC,"CHILDRENS, YOUNG PEOPLE AND FAMILIES",NTS UASC AGENCY,CATERING PROVISIONS,27/09/2023,11170551689,23.7,TESCO STORES 2994
OXFORDSHIRE CC,ENVIRONMENT AND ECONOMY,HARD FM,PREMISES REPAIRS,27/09/2023,11170551657,99.99,SCREWFIX OXFORD COWLEY
OXFORDSHIRE CC,"CHILDRENS, YOUNG PEOPLE AND FAMILIES","	LEAVING CARE CITY 2",CATERING PROVISIONS,27/09/2023,11170551419,9.7,WELCOME BREAK-BEACONSF
OXFORDSHIRE CC,SOCIAL AND COMMUNITY SERVICES,CSS - BANBURY,CATERING PROVISIONS,27/09/2023,11170551727,55,SAINSBURYS S/MKTS
OXFORDSHIRE CC,CHILDREN'S & EDUCATION,THAME E&A HOME,VEHICLES AND PLANT - REPAIRS AND MAIN,27/09/2023,11170551405,78,1ST CHOICE DOMESTICS L
OXFORDSHIRE CC,"CHILDRENS, YOUNG PEOPLE AND FAMILIES",DIDCOT MOVE-ON HOME,CATERING PROVISIONS,27/09/2023,11170551413,2.6,CO-OP FOOD
OXFORDSHIRE CC,"CHILDRENS, YOUNG PEOPLE AND FAMILIES","	LEAVING CARE NORTH",CATERING PROVISIONS,27/09/2023,11170551421,200,TESCO GIFT CARD
OXFORDSHIRE CC,"CHILDRENS, YOUNG PEOPLE AND FAMILIES",QUALITY ASSURANCE SOUTH TEAM,HIRE OF ACCOMMODATION AND FACILITIES,27/09/2023,11170551733,80.75,PREMIER INN
OXFORDSHIRE CC,SOCIAL AND COMMUNITY SERVICES,CSS - BANBURY,ENTERTAINMENT EXPENSES,27/09/2023,11170551741,13,SPICEBALL LEISURE CENT
OXFORDSHIRE CC,SOCIAL AND COMMUNITY SERVICES,CSS - ABINGDON,MATERIALS,27/09/2023,11170551207,9.99,AMZNMKTPLACE
OXFORDSHIRE CC,SOCIAL AND COMMUNITY SERVICES,CSS BICESTER,CATERING PROVISIONS,27/09/2023,11170551273,68.97,AMZNMKTPLACE
OXFORDSHIRE CC,CHILDREN'S & EDUCATION,"	LEAVING CARE NORTH",CATERING PROVISIONS,27/09/2023,11170551319,5.43,ALDI 7 775
OXFORDSHIRE CC,"CHILDRENS, YOUNG PEOPLE AND FAMILIES",DIDCOT MOVE-ON HOME,CATERING PROVISIONS,27/09/2023,11170551293,-89.94,B&M 514 - DICOT
OXFORDSHIRE CC,CORPORATE CORE,"	PERSONNEL",PAYMENT TO GOVERNMENT DEPARTMENTS,27/09/2023,11170551301,"5,199.00",C2E867000866V UKVI
OXFORDSHIRE CC,CHILDREN'S & EDUCATION,FSP NON-STAFFING - CENTRAL,CATERING PROVISIONS,27/09/2023,11170551355,5.99,AMZNMKTPLACE
OXFORDSHIRE CC,CORPORATE CORE,,STATIONERY,27/09/2023,11170551625,12.46,LYRECO UK LTD
OXFORDSHIRE CC,ENTERPRISEVC,,CAR LEASING - PRIVATE RENTALS,27/09/2023,11170551633,126.19,ENTERPRISE RENT-A-CAR
OXFORDSHIRE CC,ENTERPRISEVC,,CAR LEASING - PRIVATE RENTALS,27/09/2023,11170551641,89,ENTERPRISE RENT-A-CAR
OXFORDSHIRE CC,CHILDREN'S & EDUCATION,"	LEAVING CARE NORTH",CATERING PROVISIONS,27/09/2023,11170551327,41.49,MAGENTA STORAGE
OXFORDSHIRE CC,"CHILDRENS, YOUNG PEOPLE AND FAMILIES",CHILDREN IN CARE NON-STAFFING - NORTH,PAYMENTS TO TRANSPORT OPERATORS,27/09/2023,11170551203,109.65,GREATER ANGLIA TRAINS
OXFORDSHIRE CC,SOCIAL AND COMMUNITY SERVICES,CSS WITNEY,MATERIALS,27/09/2023,11170551533,32,AMAZON.CO.UK 1K03G55A4
OXFORDSHIRE CC,CHILDREN'S & EDUCATION,"	LEAVING CARE NORTH",CATERING PROVISIONS,27/09/2023,11170551321,7.58,MCDONALDS
OXFORDSHIRE CC,CORPORATE CORE,,STATIONERY,27/09/2023,11170551627,49.27,LYRECO UK LTD
OXFORDSHIRE CC,CORPORATE CORE,THAME LIBRARY,"NEWSPAPERS, PERIODICALS AND PUBLICATIONS",27/09/2023,11170551613,5.6,SAINSBURYS S/MKTS
OXFORDSHIRE CC,"CHILDRENS, YOUNG PEOPLE AND FAMILIES",EYNSHAM,BIRTHDAY ALLOWANCE,27/09/2023,11170551621,7.68,AMAZON.CO.UK 1K89J05T4
OXFORDSHIRE CC,"CHILDRENS, YOUNG PEOPLE AND FAMILIES","	SEN/ICT EQUIPMENT",PURCHASE OF IT EQUIPMENT,27/09/2023,11170551543,9.99,AMZNMKTPLACE
OXFORDSHIRE CC,"CHILDRENS, YOUNG PEOPLE AND FAMILIES",CSS WALLINGFORD,PAYMENT TO GOVERNMENT DEPARTMENTS,27/09/2023,11170551197,10,OXFORDSHIRE CC MOTO1
OXFORDSHIRE CC,CHILDREN'S & EDUCATION,"	LEAVING CARE NORTH",CATERING PROVISIONS,27/09/2023,11170551323,10.32,SAINSBURYS S/MKTS
OXFORDSHIRE CC,CORPORATE CORE,,STATIONERY,27/09/2023,11170551629,27.82,LYRECO UK LTD
OXFORDSHIRE CC,"CHILDRENS, YOUNG PEOPLE AND FAMILIES",CSS WALLINGFORD,MATERIALS,27/09/2023,11170551199,41.05,WAITROSE 675
OXFORDSHIRE CC,ENTERPRISEVC,,CAR LEASING - PRIVATE RENTALS,27/09/2023,11170551637,107.95,ENTERPRISE RENT-A-CAR
OXFORDSHIRE CC,"CHILDRENS, YOUNG PEOPLE AND FAMILIES",KINGFISHER,"BOOKS, DVDS AND CDS",27/09/2023,11170551603,8.96,STARBUCKS
OXFORDSHIRE CC,SOCIAL AND COMMUNITY SERVICES,CSS WANTAGE,CATERING PROVISIONS,27/09/2023,11170551539,172.23,ASDA GROCERIES ONLINE
OXFORDSHIRE CC,CHILDREN'S & EDUCATION,CNTL EARLY HELP-RHIL,CATERING PROVISIONS,27/09/2023,11170551609,39.04,ASDA SUPERSTORE
OXFORDSHIRE CC,CORPORATE CORE,"	PERSONNEL",POSTAGE AND DELIVERY,27/09/2023,11170551527,15.45,ROYAL MAIL GROUP LTD
OXFORDSHIRE CC,SOCIAL AND COMMUNITY SERVICES,CSS WANTAGE,CATERING PROVISIONS,27/09/2023,11170551541,-44.1,ASDA GROCERIES ONLINE
OXFORDSHIRE CC,SOCIAL AND COMMUNITY SERVICES,CSS - ABINGDON,MATERIALS,27/09/2023,11170551241,26.3,ALDI STORES
OXFORDSHIRE CC,ENTERPRISEVC,,CAR LEASING - PRIVATE RENTALS,27/09/2023,11170551635,155.59,ENTERPRISE RENT-A-CAR
OXFORDSHIRE CC,"CHILDRENS, YOUNG PEOPLE AND FAMILIES",THAME E&A HOME,CATERING PROVISIONS,27/09/2023,11170551375,6.25,SAINSBURYS S/MKTS
OXFORDSHIRE CC,"CHILDRENS, YOUNG PEOPLE AND FAMILIES","DIDCOT CC, PARK ROAD",CATERING PROVISIONS,27/09/2023,11170551681,3.5,CO-OPERATIVE FUEL
OXFORDSHIRE CC,"CHILDRENS, YOUNG PEOPLE AND FAMILIES",VULNERABLE LEARNERS,"BOOKS, DVDS AND CDS",27/09/2023,11170551347,38,AMZNMKTPLACE
OXFORDSHIRE CC,SOCIAL AND COMMUNITY SERVICES,CSS WALLINGFORD,CLEANING MATERIALS,27/09/2023,11170551209,19.99,AMZNMKTPLACE
OXFORDSHIRE CC,"CHILDRENS, YOUNG PEOPLE AND FAMILIES",CHILDREN IN CARE NON-STAFFING - SOUTH,PAYMENT TO GOVERNMENT DEPARTMENTS,27/09/2023,11170551667,34,DVLA DRIVER ONLINE
OXFORDSHIRE CC,"CHILDRENS, YOUNG PEOPLE AND FAMILIES",DIDCOT MOVE-ON HOME,CATERING PROVISIONS,27/09/2023,11170551675,8.8,ASDA STORES 5123
OXFORDSHIRE CC,ENVIRONMENT AND ECONOMY,DEPARTMENTAL MANAGE,PAYMENTS TO TRANSPORT OPERATORS,27/09/2023,11170551693,31.7,TRAINLINE
OXFORDSHIRE CC,"CHILDRENS, YOUNG PEOPLE AND FAMILIES",VULNERABLE LEARNERS,"BOOKS, DVDS AND CDS",27/09/2023,11170551349,159.59,AMZNMKTPLACE
OXFORDSHIRE CC,"CHILDRENS, YOUNG PEOPLE AND FAMILIES","	LEAVING CARE CITY 2",CATERING,27/09/2023,11170551455,3.8,GREGGS PLC
OXFORDSHIRE CC,"CHILDRENS, YOUNG PEOPLE AND FAMILIES",WITNEY,CATERING PROVISIONS,27/09/2023,11170551669,3.39,SAINSBURYS S/MKTS
OXFORDSHIRE CC,"CHILDRENS, YOUNG PEOPLE AND FAMILIES",DIDCOT MOVE-ON HOME,CATERING PROVISIONS,27/09/2023,11170551677,23.59,ASDA STORES 5123
OXFORDSHIRE CC,CHILDREN'S & EDUCATION,STH EARLY HELP-ABNDN,PAYMENTS TO TRANSPORT OPERATORS,27/09/2023,11170551687,120,BKG HOTEL AT BOOKING.C
OXFORDSHIRE CC,ENVIRONMENT AND ECONOMY,DEPARTMENTAL MANAGE,PAYMENTS TO TRANSPORT OPERATORS,27/09/2023,11170551695,31.7,TRAINLINE
OXFORDSHIRE CC,"CHILDRENS, YOUNG PEOPLE AND FAMILIES",THAME E&A HOME,MATERIALS,27/09/2023,11170551259,11.95,AMZNMKTPLACE
OXFORDSHIRE CC,CHILDREN'S & EDUCATION,40 THE MOORS,CATERING PROVISIONS,27/09/2023,11170551559,22.64,TESCO STORES 2788
OXFORDSHIRE CC,"CHILDRENS, YOUNG PEOPLE AND FAMILIES",FAMILY SOLUTIONS PLUS NON-STAFF - NORTH,POSTAGE AND DELIVERY,27/09/2023,11170551787,6.85,POST OFFICE COUNTER
OXFORDSHIRE CC,CORPORATE CORE,HISTORY SERVICE,EQUIPMENT,27/09/2023,11170551529,-57,SP CONSERVATION RESO
OXFORDSHIRE CC,"CHILDRENS, YOUNG PEOPLE AND FAMILIES",WITNEY,MATERIALS,27/09/2023,11170551205,3.75,AMZNMKTPLACE
OXFORDSHIRE CC,CHILDREN'S & EDUCATION,"	LEAVING CARE NORTH",CATERING PROVISIONS,27/09/2023,11170551317,5.65,STARBUCKS WESTON ON GR
OXFORDSHIRE CC,"CHILDRENS, YOUNG PEOPLE AND FAMILIES",EYNSHAM,CATERING PROVISIONS,27/09/2023,11170551623,64.11,TESCO STORES 2008
OXFORDSHIRE CC,ENTERPRISEVC,,CAR LEASING - PRIVATE RENTALS,27/09/2023,11170551631,41.98,ENTERPRISE RENT-A-CAR
OXFORDSHIRE CC,ENTERPRISEVC,,CAR LEASING - PRIVATE RENTALS,27/09/2023,11170551639,125.98,ENTERPRISE RENT-A-CAR
OXFORDSHIRE CC,SOCIAL AND COMMUNITY SERVICES,COMMUNITY PARTNERSHIP TEAM,CATERING PROVISIONS,27/09/2023,11170551291,115.73,TESCO STORES 2008
OXFORDSHIRE CC,CHILDREN'S & EDUCATION,"	LEAVING CARE NORTH",CATERING PROVISIONS,27/09/2023,11170551325,279.99,WWW.THERANGE.CO.UK
OXFORDSHIRE CC,"CHILDRENS, YOUNG PEOPLE AND FAMILIES",UASC POST 18,OTHER TRANSPORT ARRANGEMENTS,27/09/2023,11170551571,17,OXFORDBUS.CO.UK
OXFORDSHIRE CC,"CHILDRENS, YOUNG PEOPLE AND FAMILIES",PAUSE PROGRAMME,POSTAGE AND DELIVERY,27/09/2023,11170551333,6.8,POST OFFICE COUNTER
OXFORDSHIRE CC,SOCIAL AND COMMUNITY SERVICES,CSS WANTAGE,CATERING PROVISIONS,27/09/2023,11170551535,4.65,SAINSBURYS S/MKTS
OXFORDSHIRE CC,ENVIRONMENT AND ECONOMY,HARD FM,EQUIPMENT,27/09/2023,11170551243,17.52,WILLIAMS & CO
OXFORDSHIRE CC,"CHILDRENS, YOUNG PEOPLE AND FAMILIES",FAMILY SOLUTIONS PLUS NON-STAFF � SOUTH,CATERING PROVISIONS,27/09/2023,11170551617,13.4,SAINSBURY'S S/MKT
OXFORDSHIRE CC,SOCIAL AND COMMUNITY SERVICES,CSS WANTAGE,CATERING PROVISIONS,27/09/2023,11170551537,14.49,SAINSBURYS S/MKTS
OXFORDSHIRE CC,"CHILDRENS, YOUNG PEOPLE AND FAMILIES","	LEAVING CARE NORTH",CATERING PROVISIONS,27/09/2023,11170551663,15,TESCO GIFT CARD
OXFORDSHIRE CC,ENVIRONMENT AND ECONOMY,PMO,POSTAGE AND DELIVERY,27/09/2023,11170551671,15.45,ROYAL MAIL GROUP LTD
OXFORDSHIRE CC,"CHILDRENS, YOUNG PEOPLE AND FAMILIES","	LEAVING CARE CITY 2",PAYMENTS TO TRANSPORT OPERATORS,27/09/2023,11170551457,10,GWR OXFORD TO
OXFORDSHIRE CC,"CHILDRENS, YOUNG PEOPLE AND FAMILIES","	LEAVING CARE CITY 2",OTHER TRANSPORT ARRANGEMENTS,27/09/2023,11170551459,2,STGCOACH/CTYLINK
OXFORDSHIRE CC,"CHILDRENS, YOUNG PEOPLE AND FAMILIES",CSS - ABINGDON,CATERING PROVISIONS,27/09/2023,11170551777,20.9,TESCO STORES 2008
OXFORDSHIRE CC,CORPORATE CORE,HOME LIBRARY SERVICE,MATERIALS,27/09/2023,11170551515,39.5,AMZNMKTPLACE
OXFORDSHIRE CC,"CHILDRENS, YOUNG PEOPLE AND FAMILIES","	LEAVING CARE NORTH",CATERING,27/09/2023,11170551665,22.11,DELIVEROO
OXFORDSHIRE CC,CORPORATE CORE,SCHOOLS FM CATERING AREA 1,CATERING PROVISIONS,27/09/2023,11170551673,36.95,TESCO STORES 4480
OXFORDSHIRE CC,"CHILDRENS, YOUNG PEOPLE AND FAMILIES","	LEAVING CARE CITY 2",OTHER TRANSPORT ARRANGEMENTS,27/09/2023,11170551453,4.5,OXFORD BUS COMPANY
OXFORDSHIRE CC,"CHILDRENS, YOUNG PEOPLE AND FAMILIES",FAMILY SOLUTIONS PLUS NON-STAFF � SOUTH,OTHER TRANSPORT ARRANGEMENTS,27/09/2023,11170551763,89,STAGECOACH SERVICES
OXFORDSHIRE CC,"CHILDRENS, YOUNG PEOPLE AND FAMILIES",40 THE MOORS,FIXTURES & FITTINGS,27/09/2023,11170551561,-5,ASDA GEORGE COM LEEDS
OXFORDSHIRE CC,CORPORATE CORE,OPERATIONS,MATERIALS,27/09/2023,11170551517,28.17,AMZNMKTPLACE
OXFORDSHIRE CC,SOCIAL AND COMMUNITY SERVICES,"	MTFC",ENTERTAINMENT EXPENSES,26/09/2023,11165651133,16.99,THE LIGHT CINEMAS BANB
OXFORDSHIRE CC,"CHILDRENS, YOUNG PEOPLE AND FAMILIES",CHILDREN IN CARE NON-STAFFING - SOUTH,PAYMENTS TO TRANSPORT OPERATORS,26/09/2023,11165650869,25.8,WWW.GWR.COM
OXFORDSHIRE CC,"CHILDRENS, YOUNG PEOPLE AND FAMILIES",CHILDREN IN CARE NON-STAFFING - SOUTH,CATERING PROVISIONS,26/09/2023,11165650623,70,ASDA STORES LTD
OXFORDSHIRE CC,SOCIAL AND COMMUNITY SERVICES,CSS WALLINGFORD,MATERIALS,26/09/2023,11165650631,4.98,AMZNMKTPLACE
OXFORDSHIRE CC,ENVIRONMENT AND ECONOMY,HARD FM,PREMISES REPAIRS,26/09/2023,11165650649,92.15,DULUX DECORATOR CENTRE
OXFORDSHIRE CC,ENVIRONMENT AND ECONOMY,HARD FM,PREMISES REPAIRS,26/09/2023,11165650651,40.21,WILLIAMS & CO
OXFORDSHIRE CC,"CHILDRENS, YOUNG PEOPLE AND FAMILIES",MANAGEMENT RECHARGES,HIRED AND CONTRACTED SERVICES,26/09/2023,11165650679,42.95,POUNDSTRETCHER
OXFORDSHIRE CC,"CHILDRENS, YOUNG PEOPLE AND FAMILIES",DISABILITIES TEAM S,PAYMENT TO GOVERNMENT DEPARTMENTS,26/09/2023,11165650687,38,GEN REGISTER OFFICE
OXFORDSHIRE CC,SOCIAL AND COMMUNITY SERVICES,"	MTFC",CATERING,26/09/2023,11165651135,34.2,NANDO'S
OXFORDSHIRE CC,SOCIAL AND COMMUNITY SERVICES,CSS - ABINGDON,MATERIALS,26/09/2023,11165650625,11.53,AMZNMKTPLACE
OXFORDSHIRE CC,SOCIAL AND COMMUNITY SERVICES,CSS WALLINGFORD,MATERIALS,26/09/2023,11165650633,5.98,AMZNMKTPLACE
OXFORDSHIRE CC,ENVIRONMENT AND ECONOMY,HARD FM,PREMISES REPAIRS,26/09/2023,11165650647,260.29,B AND Q
OXFORDSHIRE CC,SOCIAL AND COMMUNITY SERVICES,"	MTFC",OTHER TRANSPORT ARRANGEMENTS,26/09/2023,11165651137,1.8,CAR PARK CHARGES
OXFORDSHIRE CC,"CHILDRENS, YOUNG PEOPLE AND FAMILIES","	RESIDENTIAL STRATEGY",MATERIALS,26/09/2023,11165650681,-134,CURRYS ONLINE
OXFORDSHIRE CC,"CHILDRENS, YOUNG PEOPLE AND FAMILIES",DISABILITIES TEAM S,PAYMENT TO GOVERNMENT DEPARTMENTS,26/09/2023,11165650689,38,GEN REGISTER OFFICE
OXFORDSHIRE CC,"CHILDRENS, YOUNG PEOPLE AND FAMILIES",WITNEY,CATERING PROVISIONS,26/09/2023,11165651129,3.22,SAINSBURYS S/MKTS
OXFORDSHIRE CC,SOCIAL AND COMMUNITY SERVICES,"	MTFC",ENTERTAINMENT EXPENSES,26/09/2023,11165651131,8.9,THE LIGHT CINEMAS BANB
OXFORDSHIRE CC,SOCIAL AND COMMUNITY SERVICES,CSS - ABINGDON,MATERIALS,26/09/2023,11165650627,27.59,AMZNMKTPLACE
OXFORDSHIRE CC,"CHILDRENS, YOUNG PEOPLE AND FAMILIES","	LOOKED AFTER NORTH",OTHER TRANSPORT ARRANGEMENTS,26/09/2023,11165650757,1.3,WARWICK DC PARKING
OXFORDSHIRE CC,CORPORATE CORE,LIBRARY COLLECTIONS,"BOOKS, DVDS AND CDS",26/09/2023,11165650765,"1,073.19",OVERDRIVE DIST
OXFORDSHIRE CC,SOCIAL AND COMMUNITY SERVICES,CSS - BANBURY,MATERIALS,26/09/2023,11165651207,9.99,AMZNMKTPLACE
OXFORDSHIRE CC,"CHILDRENS, YOUNG PEOPLE AND FAMILIES",THAME E&A HOME,ENTERTAINMENT EXPENSES,26/09/2023,11165650799,5.35,HWB OXFORD
OXFORDSHIRE CC,CHILDREN'S & EDUCATION,THAME E&A HOME,MATERIALS,26/09/2023,11165650867,19.19,AMZNMKTPLACE
OXFORDSHIRE CC,"CHILDRENS, YOUNG PEOPLE AND FAMILIES",FAMILY SOLUTIONS PLUS NON-STAFF - NORTH,CATERING PROVISIONS,26/09/2023,11165651139,4.6,ICELAND
OXFORDSHIRE CC,"CHILDRENS, YOUNG PEOPLE AND FAMILIES",DIDCOT MOVE-ON HOME,CATERING PROVISIONS,26/09/2023,11165650871,17.1,TESCO STORES 2413
OXFORDSHIRE CC,"CHILDRENS, YOUNG PEOPLE AND FAMILIES",UASC POST 18,PAYMENTS TO TRANSPORT OPERATORS,26/09/2023,11165650755,8.86,TRAINLINE
OXFORDSHIRE CC,CORPORATE CORE,"MARKETING, COMMUNICATIONS & ENGAGEMENT",IT SOFTWARE,26/09/2023,11165651147,167.44,ADOBE STOCK
OXFORDSHIRE CC,CHILDREN'S & EDUCATION,"	LAC PUPIL PREMIUM",PAYMENTS TO VOLUNTARY BODIES,26/09/2023,11165651169,399,WWW.NAVSH.ORG.UK
OXFORDSHIRE CC,"CHILDRENS, YOUNG PEOPLE AND FAMILIES","	LOOKED AFTER SOUTH",PAYMENTS TO TRANSPORT OPERATORS,26/09/2023,11165651141,8.86,TRAINLINE
OXFORDSHIRE CC,"CHILDRENS, YOUNG PEOPLE AND FAMILIES",DIDCOT MOVE-ON HOME,CLEANING MATERIALS,26/09/2023,11165651143,26.3,SAINSBURYS SMKT
OXFORDSHIRE CC,"CHILDRENS, YOUNG PEOPLE AND FAMILIES",DIDCOT MOVE-ON HOME,CATERING PROVISIONS,26/09/2023,11165651145,13.5,SAINSBURYS SMKT
OXFORDSHIRE CC,CORPORATE CORE,,STATIONERY,26/09/2023,11165651089,12.96,LYRECO UK LTD
OXFORDSHIRE CC,ENVIRONMENT AND ECONOMY,"	TVERC",PAYMENTS TO VOLUNTARY BODIES,26/09/2023,11165651105,240,CIEEM.NET
OXFORDSHIRE CC,SOCIAL AND COMMUNITY SERVICES,CSS - BANBURY,CATERING PROVISIONS,26/09/2023,11165651203,6.73,SAINSBURYS S/MKTS
OXFORDSHIRE CC,"CHILDRENS, YOUNG PEOPLE AND FAMILIES",QUALITY ASSURANCE NORTH TEAM,PAYMENTS TO TRANSPORT OPERATORS,26/09/2023,11165651213,101.58,TRAINLINE
OXFORDSHIRE CC,CORPORATE CORE,,STATIONERY,26/09/2023,11165651099,32.92,LYRECO UK LTD
OXFORDSHIRE CC,SOCIAL AND COMMUNITY SERVICES,CSS WANTAGE,CATERING PROVISIONS,26/09/2023,11165650995,85.28,ZETTLE_ MATHEWS AND SO
OXFORDSHIRE CC,"CHILDRENS, YOUNG PEOPLE AND FAMILIES","	LEAVING CARE CITY 2",MATERIALS,26/09/2023,11165651221,66.54,THE RANGE
OXFORDSHIRE CC,"CHILDRENS, YOUNG PEOPLE AND FAMILIES",FAMILY TIME COSTS,"BOOKS, DVDS AND CDS",26/09/2023,11165650875,14,CORAMBAAF EBOOKSTORE
OXFORDSHIRE CC,CORPORATE CORE,,STATIONERY,26/09/2023,11165651091,164.58,LYRECO UK LTD
OXFORDSHIRE CC,SOCIAL AND COMMUNITY SERVICES,CSS - BANBURY,CATERING PROVISIONS,26/09/2023,11165651189,67.77,SAINSBURYS.CO.UK
OXFORDSHIRE CC,"CHILDRENS, YOUNG PEOPLE AND FAMILIES","	LEAVING CARE CITY 2",MATERIALS,26/09/2023,11165651223,13.5,POUNDLAND LTD - 2308
OXFORDSHIRE CC,"CHILDRENS, YOUNG PEOPLE AND FAMILIES","	LEAVING CARE CITY 2",CATERING PROVISIONS,26/09/2023,11165651215,73,POUNDSTRETCHER 322
OXFORDSHIRE CC,CORPORATE CORE,,STATIONERY,26/09/2023,11165651093,408,LYRECO UK LTD
OXFORDSHIRE CC,CORPORATE CORE,,STATIONERY,26/09/2023,11165651101,219.12,LYRECO UK LTD
OXFORDSHIRE CC,CHILDREN'S & EDUCATION,"	LOOKED AFTER CITY 1",MATERIALS,26/09/2023,11165650637,10.99,AMZNMKTPLACE
OXFORDSHIRE CC,SOCIAL AND COMMUNITY SERVICES,CSS WITNEY,MATERIALS,26/09/2023,11165650993,5.25,AMZNMKTPLACE
OXFORDSHIRE CC,SOCIAL AND COMMUNITY SERVICES,CSS - ABINGDON,CATERING PROVISIONS,26/09/2023,11165651191,42.25,B&M 515 - ABINGDON
OXFORDSHIRE CC,"CHILDRENS, YOUNG PEOPLE AND FAMILIES",BANBURY CC,CATERING PROVISIONS,26/09/2023,11165651199,4.35,LIDL GB
OXFORDSHIRE CC,SOCIAL AND COMMUNITY SERVICES,CSS - BANBURY,MATERIALS,26/09/2023,11165651209,4.99,AMZNMKTPLACE
OXFORDSHIRE CC,"CHILDRENS, YOUNG PEOPLE AND FAMILIES","	LEAVING CARE CITY 2",HARDWARE AND CROCKERY,26/09/2023,11165651217,17.5,B & Q 1062
OXFORDSHIRE CC,"CHILDRENS, YOUNG PEOPLE AND FAMILIES","	LEAVING CARE CITY 2",PAYMENTS TO VOLUNTARY BODIES,26/09/2023,11165651225,215,BRITISH HEART FOUNDATI
OXFORDSHIRE CC,CORPORATE CORE,,STATIONERY,26/09/2023,11165651087,76.8,LYRECO UK LTD
OXFORDSHIRE CC,CORPORATE CORE,,STATIONERY,26/09/2023,11165651095,15.68,LYRECO UK LTD
OXFORDSHIRE CC,CORPORATE CORE,,STATIONERY,26/09/2023,11165651103,61.82,LYRECO UK LTD
OXFORDSHIRE CC,"CHILDRENS, YOUNG PEOPLE AND FAMILIES",NTH EARLY HELP-BNRBY,CATERING PROVISIONS,26/09/2023,11165651201,19.8,TESCO STORES 2064
OXFORDSHIRE CC,SOCIAL AND COMMUNITY SERVICES,CSS WALLINGFORD,MATERIALS,26/09/2023,11165650629,45.79,AMZNMKTPLACE
OXFORDSHIRE CC,"CHILDRENS, YOUNG PEOPLE AND FAMILIES","	LOOKED AFTER NORTH",OTHER TRANSPORT ARRANGEMENTS,26/09/2023,11165650759,2.3,VALE OF WH PARKING FEE
OXFORDSHIRE CC,SOCIAL AND COMMUNITY SERVICES,CSS - BANBURY,CATERING PROVISIONS,26/09/2023,11165651205,7.3,TESCO STORES 2064
OXFORDSHIRE CC,SOCIAL AND COMMUNITY SERVICES,FLEET OPERATIONS,MATERIALS,26/09/2023,11165650771,684,THE WINDMILL SPECIAL N
OXFORDSHIRE CC,"CHILDRENS, YOUNG PEOPLE AND FAMILIES",UASC POST 18,DRUGS AND MEDICAL SUPPLIES,26/09/2023,11165651017,3,"BOOTS,COWLEY"
OXFORDSHIRE CC,"CHILDRENS, YOUNG PEOPLE AND FAMILIES",UASC POST 18,DRUGS AND MEDICAL SUPPLIES,26/09/2023,11165651019,4.58,SUPERDRUG STORES PLC
OXFORDSHIRE CC,ENVIRONMENT AND ECONOMY,"	TVERC",PAYMENTS TO VOLUNTARY BODIES,26/09/2023,11165651109,202,CIEEM.NET
OXFORDSHIRE CC,CHILDREN'S & EDUCATION,"	OCCG GRANT",MATERIALS,26/09/2023,11165651117,27.28,EBAY COMMERCE UK LTD
OXFORDSHIRE CC,CHILDREN'S & EDUCATION,"	OCCG GRANT",MATERIALS,26/09/2023,11165651125,62,NOTONTHEHIGHSTREET.COM
OXFORDSHIRE CC,"CHILDRENS, YOUNG PEOPLE AND FAMILIES","	LEAVING CARE NORTH",MATERIALS,26/09/2023,11165651111,496.6,BEKO PLC
OXFORDSHIRE CC,CHILDREN'S & EDUCATION,"	OCCG GRANT",DRUGS AND MEDICAL SUPPLIES,26/09/2023,11165651119,11.5,SUPERDRUG STORES PLC
OXFORDSHIRE CC,"CHILDRENS, YOUNG PEOPLE AND FAMILIES",EYNSHAM,BIRTHDAY ALLOWANCE,26/09/2023,11165651067,3.99,AMZNMKTPLACE
OXFORDSHIRE CC,CORPORATE CORE,,STATIONERY,26/09/2023,11165651075,6.8,LYRECO UK LTD
OXFORDSHIRE CC,CORPORATE CORE,,STATIONERY,26/09/2023,11165651083,144.31,LYRECO UK LTD
OXFORDSHIRE CC,"CHILDRENS, YOUNG PEOPLE AND FAMILIES","	LEAVING CARE CITY 2",CATERING PROVISIONS,26/09/2023,11165651229,54.89,HOME BARGAINS BANBURY
OXFORDSHIRE CC,CHILDREN'S & EDUCATION,NTS UASC AGENCY,CATERING PROVISIONS,26/09/2023,11165651237,304.93,B&M 515 - ABINGDON
OXFORDSHIRE CC,CHILDREN'S & EDUCATION,NTS UASC AGENCY,CATERING PROVISIONS,26/09/2023,11165651245,4.15,SAVERS HEALTH & BEAUTY
OXFORDSHIRE CC,CHILDREN'S & EDUCATION,"	OCCG GRANT",MATERIALS,26/09/2023,11165651123,62,NOTONTHEHIGHSTREET.COM
OXFORDSHIRE CC,"CHILDRENS, YOUNG PEOPLE AND FAMILIES","	LEAVING CARE NORTH",MATERIALS,26/09/2023,11165651113,496.6,BEKO PLC
OXFORDSHIRE CC,CHILDREN'S & EDUCATION,"	OCCG GRANT",RESIDENTIAL ACTIVITIES,26/09/2023,11165651121,25,RESULTS HEALTH CLUBS L
OXFORDSHIRE CC,CORPORATE CORE,,STATIONERY,26/09/2023,11165651069,130.93,LYRECO UK LTD
OXFORDSHIRE CC,SOCIAL AND COMMUNITY SERVICES,UASC 16&17,MATERIALS,26/09/2023,11165650659,77.55,AMAZON.CO.UK 1K29B3MB4
OXFORDSHIRE CC,"CHILDRENS, YOUNG PEOPLE AND FAMILIES",FAMILY SOLUTIONS PLUS NON-STAFF - NORTH,CATERING,26/09/2023,11165651253,6,THE LITTLE BIG TOWN
OXFORDSHIRE CC,"CHILDRENS, YOUNG PEOPLE AND FAMILIES",CARE LEAVERS STAFFING,MATERIALS,26/09/2023,11165651261,368.99,WWW.STUDIO.CO.UK
OXFORDSHIRE CC,CORPORATE CORE,,STATIONERY,26/09/2023,11165651077,32.92,LYRECO UK LTD
OXFORDSHIRE CC,CORPORATE CORE,,STATIONERY,26/09/2023,11165651085,162.43,LYRECO UK LTD
OXFORDSHIRE CC,CHILDREN'S & EDUCATION,"	OCCG GRANT",MATERIALS,26/09/2023,11165650975,10.18,AMZNMKTPLACE
OXFORDSHIRE CC,SOCIAL AND COMMUNITY SERVICES,CSS WITNEY,CATERING PROVISIONS,26/09/2023,11165650907,40.58,CO-OP GROUP 070582
OXFORDSHIRE CC,"CHILDRENS, YOUNG PEOPLE AND FAMILIES",WITNEY,CATERING PROVISIONS,26/09/2023,11165650909,26.91,SAINSBURYS S/MKTS
OXFORDSHIRE CC,"CHILDRENS, YOUNG PEOPLE AND FAMILIES",HEADINGTON LIBRARY,"NEWSPAPERS, PERIODICALS AND PUBLICATIONS",26/09/2023,11165650917,89.4,NEWSTEAM GROUP
OXFORDSHIRE CC,SOCIAL AND COMMUNITY SERVICES,CSS BICESTER,CATERING PROVISIONS,26/09/2023,11165650655,117.03,TESCO STORES 2162
OXFORDSHIRE CC,"CHILDRENS, YOUNG PEOPLE AND FAMILIES",FSP NON-STAFFING - CENTRAL,PAYMENTS TO TRANSPORT OPERATORS,26/09/2023,11165650663,55.4,WWW.GWR.COM
OXFORDSHIRE CC,"CHILDRENS, YOUNG PEOPLE AND FAMILIES","	LEAVING CARE NORTH",PAYMENT TO GOVERNMENT DEPARTMENTS,26/09/2023,11165650873,890,BROMFORD HOUSING ASSOC
OXFORDSHIRE CC,CORPORATE CORE,ICT OPERATIONS & MAI,PURCHASE OF IT EQUIPMENT,26/09/2023,11165651179,115.88,AMZNMKTPLACE
OXFORDSHIRE CC,SOCIAL AND COMMUNITY SERVICES,SCHOOLS FM CATERING AREA 2,CATERING PROVISIONS,26/09/2023,11165650897,70.6,SAINSBURYS S/MKTS
OXFORDSHIRE CC,"CHILDRENS, YOUNG PEOPLE AND FAMILIES",NRPF & HOMELESSNESS,HIRE OF ACCOMMODATION AND FACILITIES,26/09/2023,11165651183,278.42,TRAVELODGE
OXFORDSHIRE CC,SOCIAL AND COMMUNITY SERVICES,CHILDREN IN CARE NON-STAFFING - NORTH,PAYMENTS TO TRANSPORT OPERATORS,26/09/2023,11165650737,7.9,BANBURY SSTP
OXFORDSHIRE CC,CORPORATE CORE,WANTAGE LIBRARY,MATERIALS,26/09/2023,11165650745,44.6,AMZNMKTPLACE
OXFORDSHIRE CC,SOCIAL AND COMMUNITY SERVICES,CSS - BANBURY,VEHICLES AND PLANT - REPAIRS AND MAIN,26/09/2023,11165651211,35,WAVES CAR WASH BANBURY
OXFORDSHIRE CC,"CHILDRENS, YOUNG PEOPLE AND FAMILIES","	LEAVING CARE CITY 2",HARDWARE AND CROCKERY,26/09/2023,11165651219,1.59,TOOLSTATION LTD
OXFORDSHIRE CC,"CHILDRENS, YOUNG PEOPLE AND FAMILIES","	LEAVING CARE CITY 2",MATERIALS,26/09/2023,11165651227,78.2,POUNDLAND LTD - 1230
OXFORDSHIRE CC,CHILDREN'S & EDUCATION,THAME E&A HOME,CATERING PROVISIONS,26/09/2023,11165650657,46,HOLLYWOOD BOWL
OXFORDSHIRE CC,CORPORATE CORE,,STATIONERY,26/09/2023,11165651097,41.62,LYRECO UK LTD
OXFORDSHIRE CC,"CHILDRENS, YOUNG PEOPLE AND FAMILIES","	MUSIC UNALLOCABLE",EDUCATIONAL AND VOCATIONAL TRAINING ,26/09/2023,11165651187,76.8,MARKALLENGROUP.COM/MA-
OXFORDSHIRE CC,CHILDREN'S & EDUCATION,THAME E&A HOME,MATERIALS,26/09/2023,11165650865,29.99,AMAZON.CO.UK 1K2U93X04
OXFORDSHIRE CC,"CHILDRENS, YOUNG PEOPLE AND FAMILIES","	LOOKED AFTER NORTH",ENTERTAINMENT EXPENSES,26/09/2023,11165651041,10,HOLLYWOOD BOWL
OXFORDSHIRE CC,"CHILDRENS, YOUNG PEOPLE AND FAMILIES",EYNSHAM,CATERING PROVISIONS,26/09/2023,11165651153,14.37,TESCO PFS 2488
OXFORDSHIRE CC,CORPORATE CORE,LIBRARY COLLECTIONS,"BOOKS, DVDS AND CDS",26/09/2023,11165650931,446.4,PAYPAL  READINGAGEN
OXFORDSHIRE CC,"CHILDRENS, YOUNG PEOPLE AND FAMILIES","	LEAVING CARE SOUTH",MATERIALS,26/09/2023,11165651033,11.98,AMZNMKTPLACE
OXFORDSHIRE CC,CHILDREN'S & EDUCATION,FIELDWORK UASC,OTHER TRANSPORT ARRANGEMENTS,26/09/2023,11165650829,20.5,OXFORDBUS.CO.UK
OXFORDSHIRE CC,"CHILDRENS, YOUNG PEOPLE AND FAMILIES","	LEAVING CARE SOUTH",MATERIALS,26/09/2023,11165651035,21.99,AMZNMKTPLACE
OXFORDSHIRE CC,"CHILDRENS, YOUNG PEOPLE AND FAMILIES",KINGFISHER,VEHICLE FUEL,26/09/2023,11165651043,35.07,SAINSBURYS BRACKLEY PF
OXFORDSHIRE CC,"CHILDRENS, YOUNG PEOPLE AND FAMILIES","	LOOKED AFTER NORTH",CATERING,26/09/2023,11165651037,66.6,FRANKIE & BENNYS 5389
OXFORDSHIRE CC,"CHILDRENS, YOUNG PEOPLE AND FAMILIES",KINGFISHER,CATERING PROVISIONS,26/09/2023,11165651045,5.5,M&S SIMPLY FOOD
OXFORDSHIRE CC,"CHILDRENS, YOUNG PEOPLE AND FAMILIES",STH EARLY HELP-ABNDN,DOMESTIC SUPPLIES,26/09/2023,11165651231,-85.99,AMZNMKTPLACE
OXFORDSHIRE CC,"CHILDRENS, YOUNG PEOPLE AND FAMILIES","	LOOKED AFTER NORTH",ENTERTAINMENT EXPENSES,26/09/2023,11165651039,36.98,HOLLYWOOD BOWL
OXFORDSHIRE CC,CORPORATE CORE,THAME LIBRARY,"NEWSPAPERS, PERIODICALS AND PUBLICATIONS",26/09/2023,11165651053,5.6,SAINSBURYS S/MKTS
OXFORDSHIRE CC,CHILDREN'S & EDUCATION,FIELDWORK UASC,SUBSCRIPTIONS,26/09/2023,11165650831,22.99,THE GYM GROUP
OXFORDSHIRE CC,CHILDREN'S & EDUCATION,NTS UASC AGENCY,CATERING PROVISIONS,26/09/2023,11165651239,26.3,TESCO STORES 2008
OXFORDSHIRE CC,CHILDREN'S & EDUCATION,40 THE MOORS,CATERING PROVISIONS,26/09/2023,11165651159,15.5,TESCO STORES 2788
OXFORDSHIRE CC,CORPORATE CORE,,STATIONERY,26/09/2023,11165651081,125.72,LYRECO UK LTD
OXFORDSHIRE CC,"CHILDRENS, YOUNG PEOPLE AND FAMILIES",FAMILY SOLUTIONS PLUS NON-STAFF - NORTH,EDUCATIONAL AND VOCATIONAL TRAINING ,26/09/2023,11165651251,3,THE KIDZ BARN
OXFORDSHIRE CC,CHILDREN'S & EDUCATION,40 THE MOORS,CATERING,26/09/2023,11165651157,2.1,CO-OPERATIVE FOOD
OXFORDSHIRE CC,CHILDREN'S & EDUCATION,NTS UASC AGENCY,CATERING PROVISIONS,26/09/2023,11165651241,16,TESCO STORES 2008
OXFORDSHIRE CC,"CHILDRENS, YOUNG PEOPLE AND FAMILIES",40 THE MOORS,FIXTURES & FITTINGS,26/09/2023,11165651013,21,ASDA GEORGE COM LEEDS
OXFORDSHIRE CC,ENVIRONMENT AND ECONOMY,"	TVERC",PAYMENTS TO VOLUNTARY BODIES,26/09/2023,11165651107,202,CIEEM.NET
OXFORDSHIRE CC,"CHILDRENS, YOUNG PEOPLE AND FAMILIES",CARE LEAVERS STAFFING,MATERIALS,26/09/2023,11165651259,105.97,AMZNMKTPLACE
OXFORDSHIRE CC,CORPORATE CORE,"MARKETING, COMMUNICATIONS & ENGAGEMENT","PUBLICITY, PROMOTIONS AND ADVERTISEMENT",26/09/2023,11165651149,500,FACEBK  9PN6WTX9Z2
OXFORDSHIRE CC,CORPORATE CORE,"	LEGAL SERVICES",MATERIALS,26/09/2023,11165650971,174.64,THAMES WATER
OXFORDSHIRE CC,CHILDREN'S & EDUCATION,NTS UASC AGENCY,CATERING PROVISIONS,26/09/2023,11165651235,9.95,CO-OPERATIVE FOOD
OXFORDSHIRE CC,CHILDREN'S & EDUCATION,NTS UASC AGENCY,CATERING PROVISIONS,26/09/2023,11165651243,118.27,LIDL GB ABINGDON
OXFORDSHIRE CC,CORPORATE CORE,"	LEGAL SERVICES",MATERIALS,26/09/2023,11165650973,377.4,THAMES WATER
OXFORDSHIRE CC,"CHILDRENS, YOUNG PEOPLE AND FAMILIES",UASC 16&17,OTHER TRANSPORT ARRANGEMENTS,26/09/2023,11165650827,1.2,STGCOACH/CTYLINK
OXFORDSHIRE CC,ENVIRONMENT AND ECONOMY,BICESTER LIBRARY,STATIONERY,26/09/2023,11165650835,42.24,BARSTOWS STATIONARY
OXFORDSHIRE CC,"CHILDRENS, YOUNG PEOPLE AND FAMILIES",EYNSHAM,CATERING PROVISIONS,26/09/2023,11165650863,4,MARKS&SPENCER PLC SACA
OXFORDSHIRE CC,"CHILDRENS, YOUNG PEOPLE AND FAMILIES",KINGFISHER,HIRE OF ACCOMMODATION AND FACILITIES,26/09/2023,11165650711,100,BKG HOTEL AT BOOKING.C
OXFORDSHIRE CC,CORPORATE CORE,,STATIONERY,26/09/2023,11165651071,47.76,LYRECO UK LTD
OXFORDSHIRE CC,CORPORATE CORE,,STATIONERY,26/09/2023,11165651079,41.62,LYRECO UK LTD
OXFORDSHIRE CC,"CHILDRENS, YOUNG PEOPLE AND FAMILIES",CARE LEAVERS STAFFING,ENTERTAINMENT EXPENSES,26/09/2023,11165651257,34,CLR SPEDEWORTHTICKETS
OXFORDSHIRE CC,CORPORATE CORE,LIBRARY COLLECTIONS,MATERIALS,26/09/2023,11165650933,91.6,AMZNMKTPLACE
OXFORDSHIRE CC,SOCIAL AND COMMUNITY SERVICES,CHILDREN IN CARE NON-STAFFING - NORTH,OTHER TRANSPORT ARRANGEMENTS,26/09/2023,11165650735,4,PEARTREE PARK AND RIDE
OXFORDSHIRE CC,"CHILDRENS, YOUNG PEOPLE AND FAMILIES",UASC 16&17,OTHER TRANSPORT ARRANGEMENTS,26/09/2023,11165650823,12.5,TFL BUSINESS BOPS WEB
OXFORDSHIRE CC,CORPORATE CORE,WALLINGFORD LIBRARY,EQUIPMENT,26/09/2023,11165650935,13.71,AMZNMKTPLACE
OXFORDSHIRE CC,"CHILDRENS, YOUNG PEOPLE AND FAMILIES","	LOOKED AFTER CITY 2",PAYMENTS TO TRANSPORT OPERATORS,26/09/2023,11165650943,40.44,TRAINLINE
OXFORDSHIRE CC,"CHILDRENS, YOUNG PEOPLE AND FAMILIES",EYNSHAM,BIRTHDAY ALLOWANCE,26/09/2023,11165651063,70.99,JD SPORTS FASHION PLC
OXFORDSHIRE CC,"CHILDRENS, YOUNG PEOPLE AND FAMILIES",EYNSHAM,BIRTHDAY ALLOWANCE,26/09/2023,11165651065,18.69,AMZNMKTPLACE
OXFORDSHIRE CC,"CHILDRENS, YOUNG PEOPLE AND FAMILIES",UASC 16&17,OTHER TRANSPORT ARRANGEMENTS,26/09/2023,11165650825,13.5,WWW.THEKEY.CO.UK
OXFORDSHIRE CC,"CHILDRENS, YOUNG PEOPLE AND FAMILIES",THAME E&A HOME,CATERING PROVISIONS,26/09/2023,11165650701,172.2,TESCO STORES 2038
OXFORDSHIRE CC,CORPORATE CORE,,STATIONERY,26/09/2023,11165651073,221.71,LYRECO UK LTD
OXFORDSHIRE CC,"CHILDRENS, YOUNG PEOPLE AND FAMILIES",POST 16 SI TRADED,"SUPPLIES, STATIONERY AND MATERIALS",26/09/2023,11165650929,168.72,AMAZON.CO.UK 1K3956M84
OXFORDSHIRE CC,"CHILDRENS, YOUNG PEOPLE AND FAMILIES","	LOOKED AFTER CITY 2",PAYMENTS TO TRANSPORT OPERATORS,26/09/2023,11165650945,13.25,TRAINLINE
OXFORDSHIRE CC,CHILDREN'S & EDUCATION,"	OCCG GRANT",MATERIALS,25/09/2023,11157442319,7,HEADINGTON HOMEWAR
OXFORDSHIRE CC,"CHILDRENS, YOUNG PEOPLE AND FAMILIES",UASC 16&17,CLOTHING AND UNIFORMS,25/09/2023,11157441997,50,ARGOS HEYFORD HILL
OXFORDSHIRE CC,ENVIRONMENT AND ECONOMY,HARD FM,DRUGS AND MEDICAL SUPPLIES,25/09/2023,11157442465,349.34,CHELMSFORD SAFETY SUPP
OXFORDSHIRE CC,CHILDREN'S & EDUCATION,"	LEAVING CARE NORTH",HARDWARE AND CROCKERY,25/09/2023,11157442473,210,PAYPAL  ARGOSDIRECT
OXFORDSHIRE CC,"CHILDRENS, YOUNG PEOPLE AND FAMILIES",CSS - ABINGDON,HARDWARE AND CROCKERY,25/09/2023,11157442495,349.98,TOOLSTATION LTD
OXFORDSHIRE CC,SOCIAL AND COMMUNITY SERVICES,FLEET OPERATIONS,PAYMENT TO GOVERNMENT DEPARTMENTS,25/09/2023,11157441961,330,DVSA
OXFORDSHIRE CC,CHILDREN'S & EDUCATION,FSP NON-STAFFING - CENTRAL,CATERING PROVISIONS,25/09/2023,11157441963,117,PAYPAL  ARGOSDIRECT
OXFORDSHIRE CC,CHILDREN'S & EDUCATION,FSP NON-STAFFING - CENTRAL,CATERING PROVISIONS,25/09/2023,11157441965,173.95,PAYPAL  ARGOSDIRECT
OXFORDSHIRE CC,"CHILDRENS, YOUNG PEOPLE AND FAMILIES",FSP NON-STAFFING - CENTRAL,NON-STAFF SUBSISTENCE AND EXPENSES,25/09/2023,11157441969,196.97,TRAVELODGE
OXFORDSHIRE CC,CORPORATE CORE,COUNTY HALL,OTHER PREMISES RELATED COSTS,25/09/2023,11157442457,324,FURNITURE@WORK LTD
OXFORDSHIRE CC,SOCIAL AND COMMUNITY SERVICES,CSS - ABINGDON,MATERIALS,25/09/2023,11157442435,254.99,AMZNMKTPLACE
OXFORDSHIRE CC,"CHILDRENS, YOUNG PEOPLE AND FAMILIES","	LEAVING CARE CITY 2",MATERIALS,25/09/2023,11157442453,209.89,AMZNMKTPLACE
OXFORDSHIRE CC,CHILDREN'S & EDUCATION,ATV ADOPTION OXFORD,CATERING,25/09/2023,11157442461,6.75,CO-OPERATIVE FOOD
OXFORDSHIRE CC,"CHILDRENS, YOUNG PEOPLE AND FAMILIES","	LEAVING CARE CITY 2",OTHER TRANSPORT ARRANGEMENTS,25/09/2023,11157442451,50,OXFORD BUS CO
OXFORDSHIRE CC,SOCIAL AND COMMUNITY SERVICES,RESIDENTIAL STRATEGY,OTHER EXPENSES,25/09/2023,11157442365,76.77,OXFAM F9000
OXFORDSHIRE CC,SOCIAL AND COMMUNITY SERVICES,RESIDENTIAL STRATEGY,OTHER EXPENSES,25/09/2023,11157442373,102.99,ARGOS HEYFORD HILL
OXFORDSHIRE CC,SOCIAL AND COMMUNITY SERVICES,RESIDENTIAL STRATEGY,OTHER EXPENSES,25/09/2023,11157442379,87.73,SAINSBURY'S S/MKT
OXFORDSHIRE CC,SOCIAL AND COMMUNITY SERVICES,RESIDENTIAL STRATEGY,OTHER EXPENSES,25/09/2023,11157442381,200.03,B&M 515 - ABINGDON
OXFORDSHIRE CC,SOCIAL AND COMMUNITY SERVICES,RESIDENTIAL STRATEGY,OTHER EXPENSES,25/09/2023,11157442375,108.65,ARGOS LTD
OXFORDSHIRE CC,CHILDREN'S & EDUCATION,SERVICES/SUPPLIES,PAYMENTS TO VOLUNTARY BODIES,25/09/2023,11157442383,10,PAYPAL  DOWNSSYNDRO
OXFORDSHIRE CC,SOCIAL AND COMMUNITY SERVICES,RESIDENTIAL STRATEGY,OTHER EXPENSES,25/09/2023,11157442377,40,B&M 515 - ABINGDON
OXFORDSHIRE CC,"CHILDRENS, YOUNG PEOPLE AND FAMILIES",KINGFISHER,CATERING,25/09/2023,11157442273,19.18,BURGER KING  OSWESTRY
OXFORDSHIRE CC,SOCIAL AND COMMUNITY SERVICES,ABINGDON LIBRARY,"NEWSPAPERS, PERIODICALS AND PUBLICATIONS",25/09/2023,11157442269,55.99,GUARDIAN NEWS & MEDIA
OXFORDSHIRE CC,CORPORATE CORE,THAME LIBRARY,"NEWSPAPERS, PERIODICALS AND PUBLICATIONS",25/09/2023,11157442277,5.6,SAINSBURYS S/MKTS
OXFORDSHIRE CC,SOCIAL AND COMMUNITY SERVICES,"	CENTRAL LIBRARY",IT SERVICES,25/09/2023,11157442267,8.99,AMZNMKTPLACE
OXFORDSHIRE CC,"CHILDRENS, YOUNG PEOPLE AND FAMILIES",EYNSHAM,CATERING PROVISIONS,25/09/2023,11157442271,8.75,MAYFIELDEGGS
OXFORDSHIRE CC,CORPORATE CORE,THAME LIBRARY,"NEWSPAPERS, PERIODICALS AND PUBLICATIONS",25/09/2023,11157442279,7.3,SAINSBURYS S/MKTS
OXFORDSHIRE CC,CHILDREN'S & EDUCATION,"	OCCG GRANT",CATERING PROVISIONS,25/09/2023,11157442321,15.34,ETSY.COM - EVERGIFTCO
OXFORDSHIRE CC,CHILDREN'S & EDUCATION,"	OCCG GRANT",DRUGS AND MEDICAL SUPPLIES,25/09/2023,11157442323,8.98,SAVERS HEALTH & BEAUTY
OXFORDSHIRE CC,CHILDREN'S & EDUCATION,"	OCCG GRANT",DRUGS AND MEDICAL SUPPLIES,25/09/2023,11157442325,28.47,SAVERS HEALTH & BEAUTY
OXFORDSHIRE CC,CHILDREN'S & EDUCATION,"	OCCG GRANT",CATERING PROVISIONS,25/09/2023,11157442327,18.35,TESCO STORES 6880
OXFORDSHIRE CC,CHILDREN'S & EDUCATION,"	OCCG GRANT",MATERIALS,25/09/2023,11157442329,1,CARD FACTORY
OXFORDSHIRE CC,"CHILDRENS, YOUNG PEOPLE AND FAMILIES",DIDCOT MOVE-ON HOME,CATERING PROVISIONS,25/09/2023,11157442347,72.83,SAINSBURYS SMKT
OXFORDSHIRE CC,"CHILDRENS, YOUNG PEOPLE AND FAMILIES",DIDCOT MOVE-ON HOME,CATERING,25/09/2023,11157442349,-5.05,COSTA COFFEE 43011546
OXFORDSHIRE CC,"CHILDRENS, YOUNG PEOPLE AND FAMILIES",DIDCOT MOVE-ON HOME,CATERING,25/09/2023,11157442343,14.15,COSTA COFFEE 43011546
OXFORDSHIRE CC,"CHILDRENS, YOUNG PEOPLE AND FAMILIES",FAMILY SOLUTIONS PLUS NON-STAFF - NORTH,PAYMENTS TO TRANSPORT OPERATORS,25/09/2023,11157442351,844.13,BKG HOTEL AT BOOKING.C
OXFORDSHIRE CC,"CHILDRENS, YOUNG PEOPLE AND FAMILIES",DIDCOT MOVE-ON HOME,CATERING PROVISIONS,25/09/2023,11157442345,24.13,SAINSBURYS SMKT
OXFORDSHIRE CC,"CHILDRENS, YOUNG PEOPLE AND FAMILIES",DIDCOT MOVE-ON HOME,CATERING PROVISIONS,25/09/2023,11157442353,29.95,SAINSBURYS SMKT
OXFORDSHIRE CC,"CHILDRENS, YOUNG PEOPLE AND FAMILIES",FAMILY SOLUTIONS PLUS NON-STAFF � SOUTH,"BOOKS, DVDS AND CDS",25/09/2023,11157442357,43.65,CORAMBAAF
OXFORDSHIRE CC,CHILDREN'S & EDUCATION,CNTL EARLY HELP-BRTN,OTHER SERVICES,25/09/2023,11157442359,300,PAYPAL  ARGOSDIRECT
OXFORDSHIRE CC,"CHILDRENS, YOUNG PEOPLE AND FAMILIES","	RESIDENTIAL STRATEGY",HIRE OF ACCOMMODATION AND FACILITIES,25/09/2023,11157442291,919,HOLIDAY PAYMENT AVR
OXFORDSHIRE CC,"CHILDRENS, YOUNG PEOPLE AND FAMILIES","	LEAVING CARE NORTH",CATERING,25/09/2023,11157442299,10.25,COSTA COFFEE 43011619
OXFORDSHIRE CC,"CHILDRENS, YOUNG PEOPLE AND FAMILIES",EYNSHAM,CATERING PROVISIONS,25/09/2023,11157442293,109.46,TESCO STORES 2008
OXFORDSHIRE CC,CORPORATE CORE,,STATIONERY,25/09/2023,11157442295,-125.72,LYRECO UK LTD
OXFORDSHIRE CC,CORPORATE CORE,,STATIONERY,25/09/2023,11157442297,-33.55,LYRECO UK LTD
OXFORDSHIRE CC,ENVIRONMENT AND ECONOMY,"	COUNTY HALL",CATERING PROVISIONS,25/09/2023,11157442147,17.6,SAINSBURY'S S/MKT
OXFORDSHIRE CC,"CHILDRENS, YOUNG PEOPLE AND FAMILIES","	LOOKED AFTER CITY 2",PAYMENTS TO TRANSPORT OPERATORS,25/09/2023,11157442155,5.2,TRAINLINE
OXFORDSHIRE CC,"CHILDRENS, YOUNG PEOPLE AND FAMILIES",THAME E&A HOME,CATERING PROVISIONS,25/09/2023,11157441867,29.83,SAINSBURYS S/MKTS
OXFORDSHIRE CC,SOCIAL AND COMMUNITY SERVICES,CSS - OXFORD,CATERING PROVISIONS,25/09/2023,11157441875,94.99,ALDI STORES 775-142
OXFORDSHIRE CC,"CHILDRENS, YOUNG PEOPLE AND FAMILIES",FAMILY SOLUTIONS PLUS NON-STAFF - NORTH,PAYMENTS TO TRANSPORT OPERATORS,25/09/2023,11157442479,37.39,TRAINLINE
OXFORDSHIRE CC,ENVIRONMENT AND ECONOMY,THE RIDGEWAY,MATERIALS,25/09/2023,11157441869,18,JOHN LEWIS
OXFORDSHIRE CC,ENVIRONMENT AND ECONOMY,THE RIDGEWAY,MATERIALS,25/09/2023,11157441871,-18,JOHN LEWIS
OXFORDSHIRE CC,SOCIAL AND COMMUNITY SERVICES,CSS - OXFORD,MATERIALS,25/09/2023,11157441877,52.64,ALDI STORES 775-142
OXFORDSHIRE CC,CHILDREN'S & EDUCATION,"	LEAVING CARE NORTH",HARDWARE AND CROCKERY,25/09/2023,11157442475,255.95,PAYPAL  ARGOSDIRECT
OXFORDSHIRE CC,"CHILDRENS, YOUNG PEOPLE AND FAMILIES",THAME E&A HOME,CATERING PROVISIONS,25/09/2023,11157441865,244.32,TESCO STORES 2038
OXFORDSHIRE CC,SOCIAL AND COMMUNITY SERVICES,CSS - OXFORD,MATERIALS,25/09/2023,11157441873,36.42,PETS AT HOME LTD
OXFORDSHIRE CC,"CHILDRENS, YOUNG PEOPLE AND FAMILIES","	SEN/ICT EQUIPMENT",OTHER TRANSPORT ARRANGEMENTS,25/09/2023,11157441925,2.4,UPS LTD
OXFORDSHIRE CC,CORPORATE CORE,WANTAGE LIBRARY,MATERIALS,25/09/2023,11157441923,20.15,AMZNMKTPLACE
OXFORDSHIRE CC,"CHILDRENS, YOUNG PEOPLE AND FAMILIES","	OCCG GRANT",OTHER EXPENSES,25/09/2023,11157441937,9.85,BOOTS 0346
OXFORDSHIRE CC,CHILDREN'S & EDUCATION,"	OCCG GRANT",FURNITURE,25/09/2023,11157442313,258,DUNELM SOFT FURNISHIN
OXFORDSHIRE CC,"CHILDRENS, YOUNG PEOPLE AND FAMILIES",KINGFISHER,MATERIALS,25/09/2023,11157441883,24,TESCO ONLINE
OXFORDSHIRE CC,"CHILDRENS, YOUNG PEOPLE AND FAMILIES",KINGFISHER,CATERING PROVISIONS,25/09/2023,11157441885,50,TESCO GIFT CARD
OXFORDSHIRE CC,"CHILDRENS, YOUNG PEOPLE AND FAMILIES","	HOME SUPPORT",MATERIALS,25/09/2023,11157441887,16.99,AMZNMKTPLACE
OXFORDSHIRE CC,"CHILDRENS, YOUNG PEOPLE AND FAMILIES",EYNSHAM,CATERING,25/09/2023,11157441939,11.8,COSTA COFFEE 43011187
OXFORDSHIRE CC,"CHILDRENS, YOUNG PEOPLE AND FAMILIES",FIELDWORK UASC,MATERIALS,25/09/2023,11157441955,101.98,AMZNMKTPLACE
OXFORDSHIRE CC,"CHILDRENS, YOUNG PEOPLE AND FAMILIES","	RESIDENTIAL STRATEGY",CATERING,25/09/2023,11157441941,46.67,THE RAINBOW FISH BAR
OXFORDSHIRE CC,"CHILDRENS, YOUNG PEOPLE AND FAMILIES",UASC 16&17,OTHER TRANSPORT ARRANGEMENTS,25/09/2023,11157441943,95,OXFORD BUS CO
OXFORDSHIRE CC,"CHILDRENS, YOUNG PEOPLE AND FAMILIES","	LOOKED AFTER NORTH",PAYMENTS TO TRANSPORT OPERATORS,25/09/2023,11157441945,48.39,TRAINLINE
OXFORDSHIRE CC,"CHILDRENS, YOUNG PEOPLE AND FAMILIES",KINGFISHER,SUBSCRIPTIONS,25/09/2023,11157441881,45.99,PUREGYM LIMITED
OXFORDSHIRE CC,CORPORATE CORE,ICT OPERATIONS & MAI,PURCHASE OF IT EQUIPMENT,25/09/2023,11157442407,62.61,AMZNMKTPLACE
OXFORDSHIRE CC,"CHILDRENS, YOUNG PEOPLE AND FAMILIES","	RESIDENTIAL STRATEGY",CATERING PROVISIONS,25/09/2023,11157442415,14.36,HOME BARGAINS FARRINGD
OXFORDSHIRE CC,"CHILDRENS, YOUNG PEOPLE AND FAMILIES",CHAIRMANS ALLOWANCE,IT SOFTWARE,25/09/2023,11157442423,33.15,ZPOS  ROYAL SPICE
OXFORDSHIRE CC,"CHILDRENS, YOUNG PEOPLE AND FAMILIES",CSS WALLINGFORD,CATERING PROVISIONS,25/09/2023,11157441733,9.4,WAITROSE 675
OXFORDSHIRE CC,CORPORATE CORE,CATERING MANAGEMENT SOFT FM,MATERIALS,25/09/2023,11157441735,115,WWW.ARGOS.CO.UK
OXFORDSHIRE CC,"CHILDRENS, YOUNG PEOPLE AND FAMILIES",WITNEY,MATERIALS,25/09/2023,11157441737,2.8,AMZNMKTPLACE
OXFORDSHIRE CC,"CHILDRENS, YOUNG PEOPLE AND FAMILIES",WITNEY,CATERING PROVISIONS,25/09/2023,11157441739,4.2,SAINSBURYS S/MKTS
OXFORDSHIRE CC,"CHILDRENS, YOUNG PEOPLE AND FAMILIES","	RESIDENTIAL STRATEGY",CATERING PROVISIONS,25/09/2023,11157442419,13.69,TESCO STORES 4338
OXFORDSHIRE CC,SOCIAL AND COMMUNITY SERVICES,CSS - DIDCOT,CATERING,25/09/2023,11157442411,18.73,DELIVEROO
OXFORDSHIRE CC,CHILDREN'S & EDUCATION,"	OCCG GRANT",OTHER TRANSPORT ARRANGEMENTS,25/09/2023,11157442315,6,OXFORD BUS TICKETS
OXFORDSHIRE CC,CHILDREN'S & EDUCATION,"	OCCG GRANT",FURNITURE,25/09/2023,11157442317,477.9,DUNELM SOFT FURNISHIN
OXFORDSHIRE CC,SOCIAL AND COMMUNITY SERVICES,CSS - OXFORD,DAY ACTIVITIES,25/09/2023,11157441801,80,ZETTLE_ DELTAVIOLIN
OXFORDSHIRE CC,ENVIRONMENT AND ECONOMY,HARD FM,PREMISES REPAIRS,25/09/2023,11157441809,139.85,B AND Q
OXFORDSHIRE CC,ENVIRONMENT AND ECONOMY,HARD FM,PREMISES REPAIRS,25/09/2023,11157441803,20.95,CJ CLARKE TIMBER MERCH
OXFORDSHIRE CC,ENVIRONMENT AND ECONOMY,HARD FM,PREMISES REPAIRS,25/09/2023,11157441811,36.12,B AND Q
OXFORDSHIRE CC,ENVIRONMENT AND ECONOMY,HARD FM,PREMISES REPAIRS,25/09/2023,11157441813,107.75,WICKES OXFORD
OXFORDSHIRE CC,ENVIRONMENT AND ECONOMY,HARD FM,PREMISES REPAIRS,25/09/2023,11157441805,23.04,CJ CLARKE TIMBER MERCH
OXFORDSHIRE CC,SOCIAL AND COMMUNITY SERVICES,CSS - OXFORD,CATERING PROVISIONS,25/09/2023,11157441799,4.35,ALDI STORES 775-142
OXFORDSHIRE CC,ENVIRONMENT AND ECONOMY,HARD FM,PREMISES REPAIRS,25/09/2023,11157441807,111.5,B AND Q
OXFORDSHIRE CC,ENVIRONMENT AND ECONOMY,HARD FM,PREMISES REPAIRS,25/09/2023,11157441815,69.89,WILLIAMS & CO
OXFORDSHIRE CC,SOCIAL AND COMMUNITY SERVICES,RESIDENTIAL STRATEGY,OTHER EXPENSES,25/09/2023,11157442369,297.02,HOME BARGAINS
OXFORDSHIRE CC,"CHILDRENS, YOUNG PEOPLE AND FAMILIES",EYNSHAM,CATERING,25/09/2023,11157442363,5.8,TESCO PFS 2488
OXFORDSHIRE CC,SOCIAL AND COMMUNITY SERVICES,RESIDENTIAL STRATEGY,OTHER EXPENSES,25/09/2023,11157442371,127.5,HOMEBASE LTD 091
OXFORDSHIRE CC,SOCIAL AND COMMUNITY SERVICES,RESIDENTIAL STRATEGY,OTHER EXPENSES,25/09/2023,11157442367,10.5,SAINSBURYS S/MKTS
OXFORDSHIRE CC,"CHILDRENS, YOUNG PEOPLE AND FAMILIES","	RESIDENTIAL STRATEGY",MATERIALS,25/09/2023,11157441851,134,CURRYS ONLINE
OXFORDSHIRE CC,"CHILDRENS, YOUNG PEOPLE AND FAMILIES",THAME E&A HOME,HARDWARE AND CROCKERY,25/09/2023,11157442171,51.4,WILKO RETAIL LIMITED
OXFORDSHIRE CC,"CHILDRENS, YOUNG PEOPLE AND FAMILIES",CSS - ABINGDON,CATERING PROVISIONS,25/09/2023,11157442497,66.6,TESCO STORES 2008
OXFORDSHIRE CC,"CHILDRENS, YOUNG PEOPLE AND FAMILIES",CSS - ABINGDON,CATERING PROVISIONS,25/09/2023,11157442499,23.58,TESCO STORES 2008
OXFORDSHIRE CC,"CHILDRENS, YOUNG PEOPLE AND FAMILIES","	RESIDENTIAL STRATEGY",CATERING,25/09/2023,11157442217,18.85,MCDONALDS
OXFORDSHIRE CC,"CHILDRENS, YOUNG PEOPLE AND FAMILIES","	RESIDENTIAL STRATEGY",MATERIALS,25/09/2023,11157441849,134,CURRYS ONLINE
OXFORDSHIRE CC,"CHILDRENS, YOUNG PEOPLE AND FAMILIES","	RESIDENTIAL STRATEGY",MATERIALS,25/09/2023,11157441853,-129,AMZNMKTPLACE
OXFORDSHIRE CC,"CHILDRENS, YOUNG PEOPLE AND FAMILIES",FAMILY SOLUTIONS PLUS NON-STAFF � SOUTH,CATERING PROVISIONS,25/09/2023,11157442165,7.75,ESSO RECTORY SSTN
OXFORDSHIRE CC,"CHILDRENS, YOUNG PEOPLE AND FAMILIES",THAME E&A HOME,HARDWARE AND CROCKERY,25/09/2023,11157442173,14,WILKO RETAIL LIMITED
OXFORDSHIRE CC,"CHILDRENS, YOUNG PEOPLE AND FAMILIES","	RESIDENTIAL STRATEGY",CATERING PROVISIONS,25/09/2023,11157442215,126.19,ALDI STORES 775-141
OXFORDSHIRE CC,SOCIAL AND COMMUNITY SERVICES,CSS WALLINGFORD,MATERIALS,25/09/2023,11157441755,23.75,AMZNMKTPLACE
OXFORDSHIRE CC,"CHILDRENS, YOUNG PEOPLE AND FAMILIES",CNTL EARLY HELP-BRTN,FURNITURE,25/09/2023,11157442361,92.95,PAYPAL  ARGOSDIRECT
OXFORDSHIRE CC,"CHILDRENS, YOUNG PEOPLE AND FAMILIES","	LEAVING CARE SOUTH",OTHER TRANSPORT ARRANGEMENTS,25/09/2023,11157441901,4.1,PARKING-WALTON ST
OXFORDSHIRE CC,"CHILDRENS, YOUNG PEOPLE AND FAMILIES",DIDCOT MOVE-ON HOME,HARDWARE AND CROCKERY,25/09/2023,11157441879,116.91,WEBBS GARDEN CENTRES L
OXFORDSHIRE CC,"CHILDRENS, YOUNG PEOPLE AND FAMILIES",CHILDREN IN CARE NON-STAFFING - CENTRL 2,OTHER TRANSPORT ARRANGEMENTS,25/09/2023,11157441899,49.5,WWW.THEKEY.CO.UK
OXFORDSHIRE CC,CHILDREN'S & EDUCATION,40 THE MOORS,CATERING PROVISIONS,25/09/2023,11157442221,2.65,CO-OPERATIVE FOOD
OXFORDSHIRE CC,SOCIAL AND COMMUNITY SERVICES,CHILDREN IN CARE NON-STAFFING - NORTH,VEHICLE FUEL,25/09/2023,11157441903,25.9,BP MOTO KNUTSFORD SOUT
OXFORDSHIRE CC,SOCIAL AND COMMUNITY SERVICES,CSS WALLINGFORD,MATERIALS,25/09/2023,11157441763,37.93,AMZNMKTPLACE
OXFORDSHIRE CC,SOCIAL AND COMMUNITY SERVICES,CSS WALLINGFORD,MATERIALS,25/09/2023,11157441771,17.45,AMZNMKTPLACE
OXFORDSHIRE CC,"CHILDRENS, YOUNG PEOPLE AND FAMILIES",PAUSE PROGRAMME,CATERING,25/09/2023,11157442081,8.89,MCDONALDS
OXFORDSHIRE CC,SOCIAL AND COMMUNITY SERVICES,CSS WALLINGFORD,MATERIALS,25/09/2023,11157441765,10.8,AMZNMKTPLACE
OXFORDSHIRE CC,SOCIAL AND COMMUNITY SERVICES,CSS WALLINGFORD,MATERIALS,25/09/2023,11157441773,59.95,AMZNMKTPLACE
OXFORDSHIRE CC,"CHILDRENS, YOUNG PEOPLE AND FAMILIES",THAME E&A HOME,MATERIALS,25/09/2023,11157442079,35.94,AMZNMKTPLACE
OXFORDSHIRE CC,CHILDREN'S & EDUCATION,40 THE MOORS,MATERIALS,25/09/2023,11157442391,95.19,AMZNMKTPLACE
OXFORDSHIRE CC,"CHILDRENS, YOUNG PEOPLE AND FAMILIES",FAMILY SOLUTIONS PLUS NON-STAFF � SOUTH,PAYMENTS TO TRANSPORT OPERATORS,25/09/2023,11157442399,121.05,TRAINLINE
OXFORDSHIRE CC,"CHILDRENS, YOUNG PEOPLE AND FAMILIES","	DIRECTOR'S OFFICE",PAYMENTS TO TRANSPORT OPERATORS,25/09/2023,11157442087,28,GWR OXFORD TO
OXFORDSHIRE CC,SOCIAL AND COMMUNITY SERVICES,SCHOOLS FM CATERING AREA 2,VEHICLE FUEL,25/09/2023,11157442099,30,TESCO PFS 3700
OXFORDSHIRE CC,"CHILDRENS, YOUNG PEOPLE AND FAMILIES","	LEAVING CARE SOUTH",MATERIALS,25/09/2023,11157442065,23.14,SHEIN.CO.UK
OXFORDSHIRE CC,"CHILDRENS, YOUNG PEOPLE AND FAMILIES","	RESIDENTIAL STRATEGY",CATERING PROVISIONS,25/09/2023,11157442385,20.42,HOME BARGAINS FARRINGD
OXFORDSHIRE CC,CHILDREN'S & EDUCATION,40 THE MOORS,CATERING PROVISIONS,25/09/2023,11157442393,163.08,SAINSBURYS.CO.UK
OXFORDSHIRE CC,"CHILDRENS, YOUNG PEOPLE AND FAMILIES",FAMILY SOLUTIONS PLUS NON-STAFF � SOUTH,HIRE OF ACCOMMODATION AND FACILITIES,25/09/2023,11157442401,76.48,TRAVELODGE
OXFORDSHIRE CC,SOCIAL AND COMMUNITY SERVICES,CSS WALLINGFORD,VEHICLE EQUIPMENT AND EXPENSES - OTHER,25/09/2023,11157441759,11.99,AMZNMKTPLACE
OXFORDSHIRE CC,SOCIAL AND COMMUNITY SERVICES,CSS WALLINGFORD,MATERIALS,25/09/2023,11157441767,8.99,AMZNMKTPLACE
OXFORDSHIRE CC,"CHILDRENS, YOUNG PEOPLE AND FAMILIES","	LEAVING CARE CITY 2",CATERING,25/09/2023,11157442085,8.96,MCDONALDS
OXFORDSHIRE CC,"CHILDRENS, YOUNG PEOPLE AND FAMILIES",PAUSE PROGRAMME,CATERING PROVISIONS,25/09/2023,11157442075,6.4,STARBUCKS BURFORD
OXFORDSHIRE CC,"CHILDRENS, YOUNG PEOPLE AND FAMILIES","	RESIDENTIAL STRATEGY",CATERING PROVISIONS,25/09/2023,11157442387,10.4,ALDI STORES 775-141
OXFORDSHIRE CC,"CHILDRENS, YOUNG PEOPLE AND FAMILIES","	RESIDENTIAL STRATEGY",OTHER EXPENSES,25/09/2023,11157442395,77.4,SAINSBURYS S/MKTS
OXFORDSHIRE CC,"CHILDRENS, YOUNG PEOPLE AND FAMILIES","	OCCG GRANT",CATERING,25/09/2023,11157442403,9.32,MCDONALDS
OXFORDSHIRE CC,"CHILDRENS, YOUNG PEOPLE AND FAMILIES","	RESIDENTIAL STRATEGY",CATERING PROVISIONS,25/09/2023,11157442069,3.5,SAINSBURY'S SMKT
OXFORDSHIRE CC,"CHILDRENS, YOUNG PEOPLE AND FAMILIES",PAUSE PROGRAMME,CATERING PROVISIONS,25/09/2023,11157442077,27.95,ALDI 41 775
OXFORDSHIRE CC,SOCIAL AND COMMUNITY SERVICES,CSS WALLINGFORD,MATERIALS,25/09/2023,11157441761,4.99,AMZNMKTPLACE
OXFORDSHIRE CC,SOCIAL AND COMMUNITY SERVICES,CSS WALLINGFORD,MATERIALS,25/09/2023,11157441769,9.98,AMZNMKTPLACE
OXFORDSHIRE CC,CORPORATE CORE,ICT OPERATIONS & MAI,PURCHASE OF IT EQUIPMENT,25/09/2023,11157442409,62.61,AMZNMKTPLACE
OXFORDSHIRE CC,"CHILDRENS, YOUNG PEOPLE AND FAMILIES","	RESIDENTIAL STRATEGY",CATERING PROVISIONS,25/09/2023,11157442417,42.38,TESCO STORES 4338
OXFORDSHIRE CC,"CHILDRENS, YOUNG PEOPLE AND FAMILIES",NRPF & HOMELESSNESS,PAYMENTS TO TRANSPORT OPERATORS,25/09/2023,11157442413,163,WWW.TAXICODE.COM
OXFORDSHIRE CC,"CHILDRENS, YOUNG PEOPLE AND FAMILIES","	RESIDENTIAL STRATEGY",CATERING PROVISIONS,25/09/2023,11157442421,18.8,MARTIN MCCOLL
OXFORDSHIRE CC,"CHILDRENS, YOUNG PEOPLE AND FAMILIES",DIDCOT MOVE-ON HOME,CATERING PROVISIONS,25/09/2023,11157441985,3.5,SAINSBURYS S/MKTS
OXFORDSHIRE CC,"CHILDRENS, YOUNG PEOPLE AND FAMILIES","	LEAVING CARE NORTH",MATERIALS,25/09/2023,11157442301,80,CURRYS OXFORD
OXFORDSHIRE CC,"CHILDRENS, YOUNG PEOPLE AND FAMILIES","	LEAVING CARE NORTH",STATIONERY,25/09/2023,11157442309,9,ME GROUP INTERNATIONAL
OXFORDSHIRE CC,"CHILDRENS, YOUNG PEOPLE AND FAMILIES","	RIVERSIDE CENTRE",CATERING PROVISIONS,25/09/2023,11157441967,6.89,SAINSBURYS S/MKTS
OXFORDSHIRE CC,CHILDREN'S & EDUCATION,40 THE MOORS,ENTERTAINMENT EXPENSES,25/09/2023,11157442431,14.98,VUE ENTERTAINMENT LTD
OXFORDSHIRE CC,SOCIAL AND COMMUNITY SERVICES,CSS - BANBURY,CATERING PROVISIONS,25/09/2023,11157442447,1.55,WAITROSE 874
OXFORDSHIRE CC,"CHILDRENS, YOUNG PEOPLE AND FAMILIES","	LEAVING CARE CITY 2",CATERING,25/09/2023,11157442455,7.3,CAFFE NERO OXFORD GLOU
OXFORDSHIRE CC,CHILDREN'S & EDUCATION,ATV ADOPTION OXFORD,CATERING,25/09/2023,11157442463,315.48,ZETTLE_ ART CAFE
OXFORDSHIRE CC,SOCIAL AND COMMUNITY SERVICES,CSS BICESTER,MATERIALS,25/09/2023,11157441819,7.99,TESCO SUBSCRIPTION
OXFORDSHIRE CC,"CHILDRENS, YOUNG PEOPLE AND FAMILIES",THAME E&A HOME,CATERING PROVISIONS,25/09/2023,11157442101,5.25,SAINSBURYS S/MKTS
OXFORDSHIRE CC,SOCIAL AND COMMUNITY SERVICES,THE OAKS EMERGENCY & ASSSESSMENT CENTRE,CATERING PROVISIONS,25/09/2023,11157441829,19.49,SAINSBURYS S/MKTS
OXFORDSHIRE CC,CHILDREN'S & EDUCATION,"	LOOKED AFTER CITY 1",SUBSCRIPTIONS,25/09/2023,11157441787,35.99,PUREGYM LIMITED
OXFORDSHIRE CC,CHILDREN'S & EDUCATION,"	LOOKED AFTER CITY 1",SUBSCRIPTIONS,25/09/2023,11157441795,35.99,PUREGYM LIMITED
OXFORDSHIRE CC,"CHILDRENS, YOUNG PEOPLE AND FAMILIES","	RESIDENTIAL STRATEGY",SUBSCRIPTIONS,25/09/2023,11157442429,9.25,TENPIN LTD - 160
OXFORDSHIRE CC,CHILDREN'S & EDUCATION,"	LOOKED AFTER CITY 1",SUBSCRIPTIONS,25/09/2023,11157441791,35.99,PUREGYM LIMITED
OXFORDSHIRE CC,"CHILDRENS, YOUNG PEOPLE AND FAMILIES",EYNSHAM,CATERING PROVISIONS,25/09/2023,11157442425,22.35,CO-OPERATIVE FOOD
OXFORDSHIRE CC,SOCIAL AND COMMUNITY SERVICES,CSS - BANBURY,CATERING PROVISIONS,25/09/2023,11157442449,1.25,ONEBELOW
OXFORDSHIRE CC,"CHILDRENS, YOUNG PEOPLE AND FAMILIES",FIELDWORK UASC,OTHER TRANSPORT ARRANGEMENTS,25/09/2023,11157442433,20,STGCOACH/CTYLINK
OXFORDSHIRE CC,"CHILDRENS, YOUNG PEOPLE AND FAMILIES",THAME E&A HOME,CATERING,25/09/2023,11157442105,7.95,BBS BAKERS AND BARISTA
OXFORDSHIRE CC,SOCIAL AND COMMUNITY SERVICES,CSS WITNEY,ENTERTAINMENT EXPENSES,25/09/2023,11157442113,180,OXFORD PLAYHOUSE
OXFORDSHIRE CC,ENVIRONMENT AND ECONOMY,"	NETWORK & ASSET MGT",EQUIPMENT,25/09/2023,11157441825,16.09,AMZNMKTPLACE
OXFORDSHIRE CC,"CHILDRENS, YOUNG PEOPLE AND FAMILIES","	LEAVING CARE CITY 2",OTHER TRANSPORT ARRANGEMENTS,25/09/2023,11157442117,1.7,STGCOACH/CTYLINK
OXFORDSHIRE CC,"CHILDRENS, YOUNG PEOPLE AND FAMILIES","	LEAVING CARE CITY 2",OTHER TRANSPORT ARRANGEMENTS,25/09/2023,11157442119,2,STGCOACH/CTYLINK
OXFORDSHIRE CC,"CHILDRENS, YOUNG PEOPLE AND FAMILIES","	LEAVING CARE CITY 2",OTHER EXPENSES,25/09/2023,11157441831,179,WWW.CAMRIDER.COM
OXFORDSHIRE CC,CHILDREN'S & EDUCATION,"	LOOKED AFTER CITY 1",SUBSCRIPTIONS,25/09/2023,11157441789,35.99,PUREGYM LIMITED
OXFORDSHIRE CC,CHILDREN'S & EDUCATION,"	LOOKED AFTER CITY 1",SUBSCRIPTIONS,25/09/2023,11157441793,35.99,PUREGYM LIMITED
OXFORDSHIRE CC,"CHILDRENS, YOUNG PEOPLE AND FAMILIES","	RESIDENTIAL STRATEGY",CATERING,25/09/2023,11157442427,10.58,MCDONALDS
OXFORDSHIRE CC,"CHILDRENS, YOUNG PEOPLE AND FAMILIES",THAME E&A HOME,MATERIALS,25/09/2023,11157442103,32.98,GAME RETAIL
OXFORDSHIRE CC,SOCIAL AND COMMUNITY SERVICES,CSS WITNEY,ENTERTAINMENT EXPENSES,25/09/2023,11157442111,21.25,WWW.BETTER.ORG.UK
OXFORDSHIRE CC,"CHILDRENS, YOUNG PEOPLE AND FAMILIES",CHILDREN IN CARE NON-STAFFING - NORTH,PAYMENTS TO TRANSPORT OPERATORS,25/09/2023,11157441833,121.76,TRAINLINE
OXFORDSHIRE CC,SOCIAL AND COMMUNITY SERVICES,THE OAKS EMERGENCY & ASSSESSMENT CENTRE,CATERING PROVISIONS,25/09/2023,11157441827,10,TESCO STORES 4338
OXFORDSHIRE CC,"CHILDRENS, YOUNG PEOPLE AND FAMILIES",CHILDREN IN CARE NON-STAFFING - CENTRL 1,PAYMENT TO GOVERNMENT DEPARTMENTS,25/09/2023,11157441835,37.6,OXFORDSHIRE CC WEB1
OXFORDSHIRE CC,"CHILDRENS, YOUNG PEOPLE AND FAMILIES","	RESIDENTIAL STRATEGY",CATERING PROVISIONS,25/09/2023,11157442041,9.56,RUSSELL'S TAKEAWAY AND
OXFORDSHIRE CC,"CHILDRENS, YOUNG PEOPLE AND FAMILIES",UASC 16&17,DRUGS AND MEDICAL SUPPLIES,25/09/2023,11157442049,2.02,"BOOTS,OXFORD"
OXFORDSHIRE CC,"CHILDRENS, YOUNG PEOPLE AND FAMILIES","	RESIDENTIAL STRATEGY",CATERING,25/09/2023,11157442043,8.4,RUSSELL'S TAKEAWAY AND
OXFORDSHIRE CC,"CHILDRENS, YOUNG PEOPLE AND FAMILIES",UASC 16&17,DRUGS AND MEDICAL SUPPLIES,25/09/2023,11157442051,12.31,SUPERDRUG STORES PLC
OXFORDSHIRE CC,"CHILDRENS, YOUNG PEOPLE AND FAMILIES",UASC 16&17,CATERING PROVISIONS,25/09/2023,11157442045,2,SAINSBURYS S/MKTS
OXFORDSHIRE CC,"CHILDRENS, YOUNG PEOPLE AND FAMILIES",THAME E&A HOME,HIRED AND CONTRACTED SERVICES,25/09/2023,11157442039,12,DUDLEY ROAD BARBER
OXFORDSHIRE CC,"CHILDRENS, YOUNG PEOPLE AND FAMILIES",UASC 16&17,RESIDENTIAL ACTIVITIES,25/09/2023,11157442047,21.99,THE GYM GROUP
OXFORDSHIRE CC,SOCIAL AND COMMUNITY SERVICES,CSS WALLINGFORD,MATERIALS,25/09/2023,11157441747,13.96,AMZNMKTPLACE
OXFORDSHIRE CC,SOCIAL AND COMMUNITY SERVICES,CHILDREN IN CARE NON-STAFFING - NORTH,VEHICLE FUEL,25/09/2023,11157441905,45.16,JOBLINGS
OXFORDSHIRE CC,CHILDREN'S & EDUCATION,40 THE MOORS,CATERING PROVISIONS,25/09/2023,11157442223,11.48,TESCO STORES 2788
OXFORDSHIRE CC,SOCIAL AND COMMUNITY SERVICES,CHILDREN IN CARE NON-STAFFING - NORTH,VEHICLE FUEL,25/09/2023,11157441907,38.31,TESCO PFS 3920
OXFORDSHIRE CC,SOCIAL AND COMMUNITY SERVICES,CHILDREN IN CARE NON-STAFFING - NORTH,CATERING,25/09/2023,11157441915,10.73,HARBOUR KITCHEN
OXFORDSHIRE CC,"CHILDRENS, YOUNG PEOPLE AND FAMILIES",40 THE MOORS,CATERING,25/09/2023,11157442225,1.25,CO-OPERATIVE FOOD
OXFORDSHIRE CC,"CHILDRENS, YOUNG PEOPLE AND FAMILIES",FAMILY SOLUTIONS PLUS NON-STAFF - NORTH,CATERING PROVISIONS,25/09/2023,11157442031,50,TESCO GIFT CARD
OXFORDSHIRE CC,SOCIAL AND COMMUNITY SERVICES,CSS WALLINGFORD,MATERIALS,25/09/2023,11157441749,37.96,AMZNMKTPLACE
OXFORDSHIRE CC,"CHILDRENS, YOUNG PEOPLE AND FAMILIES",WITNEY,CATERING PROVISIONS,25/09/2023,11157441741,11.23,LIDL GB WITNEY
OXFORDSHIRE CC,SOCIAL AND COMMUNITY SERVICES,CSS WALLINGFORD,MATERIALS,25/09/2023,11157441757,11.9,AMZNMKTPLACE
OXFORDSHIRE CC,"CHILDRENS, YOUNG PEOPLE AND FAMILIES","	RESIDENTIAL STRATEGY",CATERING,25/09/2023,11157442033,66.9,OXY ORIENTAL
OXFORDSHIRE CC,"CHILDRENS, YOUNG PEOPLE AND FAMILIES",WITNEY,CATERING PROVISIONS,25/09/2023,11157441743,58.3,LIDL GB WITNEY
OXFORDSHIRE CC,SOCIAL AND COMMUNITY SERVICES,CSS WALLINGFORD,MATERIALS,25/09/2023,11157441751,7.79,AMZNMKTPLACE
OXFORDSHIRE CC,"CHILDRENS, YOUNG PEOPLE AND FAMILIES",THAME E&A HOME,CATERING,25/09/2023,11157442035,1.5,NYX HOLLYWOODBOWLGROUP
OXFORDSHIRE CC,SOCIAL AND COMMUNITY SERVICES,CSS WALLINGFORD,MATERIALS,25/09/2023,11157441745,15.99,AMZNMKTPLACE
OXFORDSHIRE CC,SOCIAL AND COMMUNITY SERVICES,CSS WALLINGFORD,MATERIALS,25/09/2023,11157441753,52.1,AMZNMKTPLACE
OXFORDSHIRE CC,"CHILDRENS, YOUNG PEOPLE AND FAMILIES","	RESIDENTIAL STRATEGY",ENTERTAINMENT EXPENSES,25/09/2023,11157442037,25.05,HOLLYWOOD BOWL
OXFORDSHIRE CC,SOCIAL AND COMMUNITY SERVICES,WALLINGFORD LIBRARY,CATERING PROVISIONS,25/09/2023,11157442335,1.55,WAITROSE 675
OXFORDSHIRE CC,SOCIAL AND COMMUNITY SERVICES,WALLINGFORD LIBRARY,MATERIALS,25/09/2023,11157442333,8.98,AMZNMKTPLACE
OXFORDSHIRE CC,CHILDREN'S & EDUCATION,"	LOOKED AFTER NORTH",VEHICLE FUEL,25/09/2023,11157442331,40,TESCO PFS 3878
OXFORDSHIRE CC,SOCIAL AND COMMUNITY SERVICES,CSS WITNEY,PAYMENTS TO VOLUNTARY BODIES,25/09/2023,11157442185,250,JUSTGIVING AGEUKOXFORD
OXFORDSHIRE CC,"CHILDRENS, YOUNG PEOPLE AND FAMILIES","	LEAVING CARE CITY 2",CATERING PROVISIONS,25/09/2023,11157442121,20,TESCO GIFT CARD
OXFORDSHIRE CC,"CHILDRENS, YOUNG PEOPLE AND FAMILIES","	LEAVING CARE NORTH",MATERIALS,25/09/2023,11157442305,500,CURRYS OXFORD
OXFORDSHIRE CC,"CHILDRENS, YOUNG PEOPLE AND FAMILIES",DIDCOT MOVE-ON HOME,DOMESTIC SUPPLIES,25/09/2023,11157441983,6.5,SAINSBURYS S/MKTS
OXFORDSHIRE CC,"CHILDRENS, YOUNG PEOPLE AND FAMILIES",DIDCOT MOVE-ON HOME,DOMESTIC SUPPLIES,25/09/2023,11157441987,6,SAINSBURYS S/MKTS
OXFORDSHIRE CC,"CHILDRENS, YOUNG PEOPLE AND FAMILIES","	LEAVING CARE NORTH",MATERIALS,25/09/2023,11157442303,88,CURRYS OXFORD
OXFORDSHIRE CC,"CHILDRENS, YOUNG PEOPLE AND FAMILIES","	LEAVING CARE NORTH",CATERING,25/09/2023,11157442307,6,MCDONALDS
OXFORDSHIRE CC,"CHILDRENS, YOUNG PEOPLE AND FAMILIES",DIDCOT MOVE-ON HOME,CATERING PROVISIONS,25/09/2023,11157441989,8.99,SAINSBURYS S/MKTS
OXFORDSHIRE CC,"CHILDRENS, YOUNG PEOPLE AND FAMILIES","	LEAVING CARE CITY 2",MATERIALS,22/09/2023,11149658655,22,WWW.ARGOS.CO.UK
OXFORDSHIRE CC,SOCIAL AND COMMUNITY SERVICES,CSS - ABINGDON,MATERIALS,22/09/2023,11149660955,39.04,AMZNMKTPLACE
OXFORDSHIRE CC,"CHILDRENS, YOUNG PEOPLE AND FAMILIES","	LEAVING CARE CITY 2",OTHER TRANSPORT ARRANGEMENTS,22/09/2023,11149658813,4.5,STGCOACH/CTYLINK
OXFORDSHIRE CC,CHILDREN'S & EDUCATION,"	LOOKED AFTER SOUTH",CATERING,22/09/2023,11149661049,16.58,BURGER KING
OXFORDSHIRE CC,CHILDREN'S & EDUCATION,40 THE MOORS,CATERING PROVISIONS,22/09/2023,11149660803,37.2,SAINSBURYS S/MKTS
OXFORDSHIRE CC,"CHILDRENS, YOUNG PEOPLE AND FAMILIES",PAUSE PROGRAMME,CATERING,22/09/2023,11149658525,8.79,MCDONALDS
OXFORDSHIRE CC,"CHILDRENS, YOUNG PEOPLE AND FAMILIES","	OCCG GRANT",CATERING,22/09/2023,11149657847,26.47,LIDL GB
OXFORDSHIRE CC,SOCIAL AND COMMUNITY SERVICES,CHILDREN IN CARE NON-STAFFING - NORTH,OTHER TRANSPORT ARRANGEMENTS,22/09/2023,11149657687,8.6,M6 TOLL
OXFORDSHIRE CC,ENVIRONMENT AND ECONOMY,HARD FM,PREMISES REPAIRS,22/09/2023,11149657149,254.85,WICKES OXFORD
OXFORDSHIRE CC,CHILDREN'S & EDUCATION,CHILDREN IN CARE NON-STAFFING - CENTRL 1,PAYMENTS TO TRANSPORT OPERATORS,22/09/2023,11149657227,154.47,TRAINLINE
OXFORDSHIRE CC,SOCIAL AND COMMUNITY SERVICES,CSS WITNEY,CATERING PROVISIONS,22/09/2023,11149661015,17.43,CO-OP GROUP 070582
OXFORDSHIRE CC,SHARED SERVICES,CSC SUPP & SERVICES,"SUPPLIES, STATIONERY AND MATERIALS",22/09/2023,11149657651,591,SP INSTITUTE OF CS
OXFORDSHIRE CC,"CHILDRENS, YOUNG PEOPLE AND FAMILIES",FAMILY SOLUTIONS PLUS NON-STAFF - NORTH,PAYMENT TO GOVERNMENT DEPARTMENTS,22/09/2023,11149660405,14,GEN REGISTER OFFICE
OXFORDSHIRE CC,CHILDREN'S & EDUCATION,"	OCCG GRANT",SUBSCRIPTIONS,22/09/2023,11149660481,35.99,PUREGYM LIMITED
OXFORDSHIRE CC,"CHILDRENS, YOUNG PEOPLE AND FAMILIES","	LEAVING CARE NORTH",CATERING,22/09/2023,11149660557,6.59,MCDONALDS
OXFORDSHIRE CC,"CHILDRENS, YOUNG PEOPLE AND FAMILIES",FSP STAFFING � CENTRAL,CATERING,22/09/2023,11149657003,2,KOOKABURRA COFFEE
OXFORDSHIRE CC,"CHILDRENS, YOUNG PEOPLE AND FAMILIES",WITNEY,MATERIALS,22/09/2023,11149657061,13.58,AMZNMKTPLACE
OXFORDSHIRE CC,CORPORATE CORE,,STATIONERY,22/09/2023,11149660353,58.18,LYRECO UK LTD
OXFORDSHIRE CC,"CHILDRENS, YOUNG PEOPLE AND FAMILIES","	RESIDENTIAL STRATEGY",CATERING,22/09/2023,11149660745,13.1,THE MAYFLOWER CHINESE
OXFORDSHIRE CC,"CHILDRENS, YOUNG PEOPLE AND FAMILIES",FSP NON-STAFFING - CENTRAL,OTHER TRANSPORT ARRANGEMENTS,22/09/2023,11149661271,2,STGCOACH/CTYLINK
OXFORDSHIRE CC,"CHILDRENS, YOUNG PEOPLE AND FAMILIES",UASC 16&17,CATERING PROVISIONS,22/09/2023,11149658001,26.99,TESCO STORES 2994
OXFORDSHIRE CC,"CHILDRENS, YOUNG PEOPLE AND FAMILIES",FSP STAFFING � CENTRAL,OTHER TRANSPORT ARRANGEMENTS,22/09/2023,11149657015,4,OCC PR THORNHILL FAMIL
OXFORDSHIRE CC,SOCIAL AND COMMUNITY SERVICES,CSS WALLINGFORD,VEHICLE EQUIPMENT AND EXPENSES - OTHER,22/09/2023,11149657085,16.06,AMZNMKTPLACE
OXFORDSHIRE CC,SOCIAL AND COMMUNITY SERVICES,COMMUNITY PARTNERSHIP TEAM,MATERIALS,22/09/2023,11149657475,5.7,AMZNMKTPLACE
OXFORDSHIRE CC,"CHILDRENS, YOUNG PEOPLE AND FAMILIES",FSP NON-STAFFING - CENTRAL,NON-STAFF SUBSISTENCE AND EXPENSES,22/09/2023,11149658095,75.49,TRAVELODGE
OXFORDSHIRE CC,"CHILDRENS, YOUNG PEOPLE AND FAMILIES","	LOOKED AFTER NORTH",VEHICLE FUEL,22/09/2023,11149657865,11.34,ASDA PETROL 4206
OXFORDSHIRE CC,"CHILDRENS, YOUNG PEOPLE AND FAMILIES","	LEAVING CARE CITY 2",MATERIALS,22/09/2023,11149661035,195.93,AMZNMKTPLACE
OXFORDSHIRE CC,"CHILDRENS, YOUNG PEOPLE AND FAMILIES",CHILDREN IN CARE NON-STAFFING - NORTH,OTHER EXPENSES,22/09/2023,11149657207,129.49,PREMIER INN
OXFORDSHIRE CC,"CHILDRENS, YOUNG PEOPLE AND FAMILIES",CHILDREN IN CARE NON-STAFFING - NORTH,HIRE OF ACCOMMODATION AND FACILITIES,22/09/2023,11149658671,162.48,TRAVELODGE
OXFORDSHIRE CC,"CHILDRENS, YOUNG PEOPLE AND FAMILIES",FIELDWORK UASC,OTHER TRANSPORT ARRANGEMENTS,22/09/2023,11149660909,20,STGCOACH/CTYLINK
OXFORDSHIRE CC,"CHILDRENS, YOUNG PEOPLE AND FAMILIES","	LOOKED AFTER CITY 2",PAYMENTS TO TRANSPORT OPERATORS,22/09/2023,11149659227,34.74,TRAINLINE
OXFORDSHIRE CC,"CHILDRENS, YOUNG PEOPLE AND FAMILIES","	LOOKED AFTER CITY 2",OTHER TRANSPORT ARRANGEMENTS,22/09/2023,11149659239,2,OXFORD BUS COMPANY
OXFORDSHIRE CC,"CHILDRENS, YOUNG PEOPLE AND FAMILIES","	LEAVING CARE CITY 2",MATERIALS,22/09/2023,11149661023,242.46,AMZNMKTPLACE
OXFORDSHIRE CC,"CHILDRENS, YOUNG PEOPLE AND FAMILIES",CSS WALLINGFORD,CLEANING MATERIALS,22/09/2023,11149656973,77.72,AMZNMKTPLACE
OXFORDSHIRE CC,SOCIAL AND COMMUNITY SERVICES,CSS BICESTER,MATERIALS,22/09/2023,11149657103,34.25,AMZNMKTPLACE
OXFORDSHIRE CC,SOCIAL AND COMMUNITY SERVICES,CSS - OXFORD,CATERING PROVISIONS,22/09/2023,11149657497,11.12,ALDI STORES 775-142
OXFORDSHIRE CC,ENVIRONMENT AND ECONOMY,DIDCOT LIBRARY,"NEWSPAPERS, PERIODICALS AND PUBLICATIONS",22/09/2023,11149658409,95.6,PPOINT_ AMIN NEWSAGENT
OXFORDSHIRE CC,"CHILDRENS, YOUNG PEOPLE AND FAMILIES",FAMILY SOLUTIONS PLUS NON-STAFF - NORTH,HIRE OF ACCOMMODATION AND FACILITIES,22/09/2023,11149660413,122,LEONARDO HTL PLYMOUTH
OXFORDSHIRE CC,CHILDREN'S & EDUCATION,"	OCCG GRANT",SUBSCRIPTIONS,22/09/2023,11149660491,35.99,PUREGYM LIMITED
OXFORDSHIRE CC,"CHILDRENS, YOUNG PEOPLE AND FAMILIES","	LOOKED AFTER NORTH",POSTAGE AND DELIVERY,22/09/2023,11149660571,6.85,POST OFFICE COUNTER
OXFORDSHIRE CC,"CHILDRENS, YOUNG PEOPLE AND FAMILIES",THAME E&A HOME,CATERING PROVISIONS,22/09/2023,11149658233,19.4,SAINSBURYS S/MKTS
OXFORDSHIRE CC,"CHILDRENS, YOUNG PEOPLE AND FAMILIES",THAME E&A HOME,MATERIALS,22/09/2023,11149658563,16.47,AMAZON.CO.UK 1K2V43LI4
OXFORDSHIRE CC,"CHILDRENS, YOUNG PEOPLE AND FAMILIES","	LOOKED AFTER NORTH","SUPPLIES, STATIONERY AND MATERIALS",22/09/2023,11149660585,49.88,LITTLEMORE POSTOFFICE
OXFORDSHIRE CC,SOCIAL AND COMMUNITY SERVICES,CSS BICESTER,MATERIALS,22/09/2023,11149657119,14.15,AMZNMKTPLACE
OXFORDSHIRE CC,ENVIRONMENT AND ECONOMY,HARD FM,PREMISES REPAIRS,22/09/2023,11149657159,273,B AND Q
OXFORDSHIRE CC,CHILDREN'S & EDUCATION,CHILDREN IN CARE NON-STAFFING - CENTRL 1,PAYMENT TO GOVERNMENT DEPARTMENTS,22/09/2023,11149657251,82.5,HM PASSPORT OFFICE
OXFORDSHIRE CC,SOCIAL AND COMMUNITY SERVICES,CSS - BANBURY,MATERIALS,22/09/2023,11149660993,13.39,AMZNMKTPLACE
OXFORDSHIRE CC,CORPORATE CORE,,STATIONERY,22/09/2023,11149660381,282.07,LYRECO UK LTD
OXFORDSHIRE CC,"CHILDRENS, YOUNG PEOPLE AND FAMILIES","	LEAVING CARE NORTH",EDUCATIONAL AND VOCATIONAL TRAINING ,22/09/2023,11149660435,234,APPLE CONSTRCTN TRNG L
OXFORDSHIRE CC,CHILDREN'S & EDUCATION,FIELDWORK UASC,CATERING PROVISIONS,22/09/2023,11149660505,2.5,CO-OPERATIVE FOOD
OXFORDSHIRE CC,SOCIAL AND COMMUNITY SERVICES,SCHOOLS FM CATERING AREA 2,MATERIALS,22/09/2023,11149657377,63.6,AMZNMKTPLACE
OXFORDSHIRE CC,"CHILDRENS, YOUNG PEOPLE AND FAMILIES","	LEAVING CARE CITY 1",CATERING,22/09/2023,11149657363,6,FERRYBOAT INN
OXFORDSHIRE CC,CORPORATE CORE,LIBRARY COLLECTIONS,"BOOKS, DVDS AND CDS",22/09/2023,11149658011,605.68,OVERDRIVE DIST
OXFORDSHIRE CC,SOCIAL AND COMMUNITY SERVICES,CSS - BANBURY,FURNITURE,22/09/2023,11149661003,6,DUNELM SOFT FURNISHIN
OXFORDSHIRE CC,"CHILDRENS, YOUNG PEOPLE AND FAMILIES",PAUSE PROGRAMME,CATERING,22/09/2023,11149658601,10.2,COSTA COFFEE 43011357
OXFORDSHIRE CC,"CHILDRENS, YOUNG PEOPLE AND FAMILIES",WITNEY,CATERING PROVISIONS,22/09/2023,11149660601,11.15,SAINSBURYS S/MKTS
OXFORDSHIRE CC,"CHILDRENS, YOUNG PEOPLE AND FAMILIES",DIDCOT MOVE-ON HOME,CATERING,22/09/2023,11149660647,4.55,COSTA COFFEE 43011546
OXFORDSHIRE CC,"CHILDRENS, YOUNG PEOPLE AND FAMILIES","	RESIDENTIAL STRATEGY",CATERING PROVISIONS,22/09/2023,11149660761,5.95,MARTIN MCCOLL
OXFORDSHIRE CC,CORPORATE CORE,SCHOOLS FM CATERING AREA 1,CATERING PROVISIONS,22/09/2023,11149660611,17.2,CO OPERATIVE FOOD
OXFORDSHIRE CC,"CHILDRENS, YOUNG PEOPLE AND FAMILIES",CSS WALLINGFORD,CATERING PROVISIONS,22/09/2023,11149656989,11.8,WAITROSE 675
OXFORDSHIRE CC,"CHILDRENS, YOUNG PEOPLE AND FAMILIES",WITNEY,MATERIALS,22/09/2023,11149657047,13.63,AMZNMKTPLACE
OXFORDSHIRE CC,"CHILDRENS, YOUNG PEOPLE AND FAMILIES","	OCCG GRANT",CATERING,22/09/2023,11149657835,10,MIDDLE EAST SUPERMARKE
OXFORDSHIRE CC,SOCIAL AND COMMUNITY SERVICES,CHILDREN IN CARE NON-STAFFING - NORTH,OTHER TRANSPORT ARRANGEMENTS,22/09/2023,11149657699,1.2,RINGGO PARKING
OXFORDSHIRE CC,"CHILDRENS, YOUNG PEOPLE AND FAMILIES","	OCCG GRANT",CATERING,22/09/2023,11149657827,8.12,MIDDLE EAST SUPERMARKE
OXFORDSHIRE CC,"CHILDRENS, YOUNG PEOPLE AND FAMILIES","	LEAVING CARE SOUTH",OTHER TRANSPORT ARRANGEMENTS,22/09/2023,11149657617,32,OXFORDBUS.CO.UK
OXFORDSHIRE CC,SHARED SERVICES,CSC SUPP & SERVICES,PURCHASE OF IT EQUIPMENT,22/09/2023,11149657669,9.99,AMZNMKTPLACE
OXFORDSHIRE CC,CORPORATE CORE,,STATIONERY,22/09/2023,11149660373,42.49,LYRECO UK LTD
OXFORDSHIRE CC,CHILDREN'S & EDUCATION,SERVICES/SUPPLIES,PAYMENTS TO VOLUNTARY BODIES,22/09/2023,11149660735,396,PAYPAL  NAS UK NAS UK
OXFORDSHIRE CC,"CHILDRENS, YOUNG PEOPLE AND FAMILIES",SEND CASEWORK TEAM,POSTAGE AND DELIVERY,22/09/2023,11149661303,6.99,ROYAL MAIL GROUP LTD
OXFORDSHIRE CC,ENVIRONMENT AND ECONOMY,"	SAMUELSON HOUSE",CATERING PROVISIONS,22/09/2023,11149657925,42.84,MILK AND MORE (RECUR
OXFORDSHIRE CC,"CHILDRENS, YOUNG PEOPLE AND FAMILIES",DEPUTY DIRECTOR &MAN,CATERING PROVISIONS,22/09/2023,11149658693,4.7,SAINSBURY'S S/MKT
OXFORDSHIRE CC,SOCIAL AND COMMUNITY SERVICES,CSS - ABINGDON,MATERIALS,22/09/2023,11149660941,19.55,AMZNMKTPLACE
OXFORDSHIRE CC,CORPORATE CORE,SCHOOLS FM CATERING AREA 4,MATERIALS,22/09/2023,11149658391,102.98,NISBETS LTD
OXFORDSHIRE CC,"CHILDRENS, YOUNG PEOPLE AND FAMILIES",DIDCOT MOVE-ON HOME,CATERING PROVISIONS,22/09/2023,11149658175,4.51,SAINSBURYS S/MKTS
OXFORDSHIRE CC,SOCIAL AND COMMUNITY SERVICES,SCHOOLS FM CATERING AREA 2,MATERIALS,22/09/2023,11149657385,16.97,AMZNMKTPLACE
OXFORDSHIRE CC,"CHILDRENS, YOUNG PEOPLE AND FAMILIES",FSP NON-STAFFING - CENTRAL,OTHER TRANSPORT ARRANGEMENTS,22/09/2023,11149661265,2,OXFORD BUS COMPANY
OXFORDSHIRE CC,"CHILDRENS, YOUNG PEOPLE AND FAMILIES",MSI,"SUPPLIES, STATIONERY AND MATERIALS",22/09/2023,11149661315,48.81,AMZNMKTPLACE
OXFORDSHIRE CC,"CHILDRENS, YOUNG PEOPLE AND FAMILIES",MSI,"SUPPLIES, STATIONERY AND MATERIALS",22/09/2023,11149661315,30.07,AMZNMKTPLACE
OXFORDSHIRE CC,"CHILDRENS, YOUNG PEOPLE AND FAMILIES","	OSCB",CATERING PROVISIONS,22/09/2023,11149660981,3.5,CO-OPERATIVE FOOD
OXFORDSHIRE CC,"CHILDRENS, YOUNG PEOPLE AND FAMILIES",PAUSE PROGRAMME,CATERING,22/09/2023,11149658585,5.45,FULLERS KINGS ARMS
OXFORDSHIRE CC,SOCIAL AND COMMUNITY SERVICES,FLEET OPERATIONS,CATERING PROVISIONS,22/09/2023,11149658059,18.4,MILK AND MORE (RECUR
OXFORDSHIRE CC,SOCIAL AND COMMUNITY SERVICES,COWLEY LIBRARY,"SUPPLIES, STATIONERY AND MATERIALS",22/09/2023,11149661073,3,WILKO RETAIL LIMITED
OXFORDSHIRE CC,ENVIRONMENT AND ECONOMY,HARD FM,PREMISES REPAIRS,22/09/2023,11149657175,10.06,WILLIAMS & CO
OXFORDSHIRE CC,"CHILDRENS, YOUNG PEOPLE AND FAMILIES","	LEAVING CARE CITY 2",MATERIALS,22/09/2023,11149658643,4.25,POUNDLAND LTD - 1586
OXFORDSHIRE CC,SOCIAL AND COMMUNITY SERVICES,CSS - OXFORD,CATERING PROVISIONS,22/09/2023,11149658303,52.46,ALDI STORES 775-142
OXFORDSHIRE CC,CORPORATE CORE,SCHOOLS FM CATERING AREA 4,CATERING PROVISIONS,22/09/2023,11149658369,6.5,TESCO STORES 6426
OXFORDSHIRE CC,SOCIAL AND COMMUNITY SERVICES,CSS - ABINGDON,MATERIALS,22/09/2023,11149660951,39.07,AMZNMKTPLACE
OXFORDSHIRE CC,SOCIAL AND COMMUNITY SERVICES,"	MUSEUMS COLLECTIONS",CATERING PROVISIONS,22/09/2023,11149659185,4.62,MILK AND MORE (RECUR
OXFORDSHIRE CC,"CHILDRENS, YOUNG PEOPLE AND FAMILIES","	LOOKED AFTER CITY 2",OTHER TRANSPORT ARRANGEMENTS,22/09/2023,11149659253,2,OXFORD BUS COMPANY
OXFORDSHIRE CC,"CHILDRENS, YOUNG PEOPLE AND FAMILIES","	LOOKED AFTER CITY 2",OTHER TRANSPORT ARRANGEMENTS,22/09/2023,11149659215,5.9,GO SOUTH COAST
OXFORDSHIRE CC,"CHILDRENS, YOUNG PEOPLE AND FAMILIES","	RESIDENTIAL STRATEGY",CATERING PROVISIONS,22/09/2023,11149660771,3.05,MARTIN MCCOLL
OXFORDSHIRE CC,CORPORATE CORE,,STATIONERY,22/09/2023,11149660343,123.46,LYRECO UK LTD
OXFORDSHIRE CC,"CHILDRENS, YOUNG PEOPLE AND FAMILIES",FSP NON-STAFFING - CENTRAL,OTHER TRANSPORT ARRANGEMENTS,22/09/2023,11149661241,2,ARRIVA THE SHIRES LIMI
OXFORDSHIRE CC,SOCIAL AND COMMUNITY SERVICES,CHILDREN IN CARE NON-STAFFING - NORTH,ENTERTAINMENT EXPENSES,22/09/2023,11149659505,242,LILLESHALL NATIONAL SP
OXFORDSHIRE CC,"CHILDRENS, YOUNG PEOPLE AND FAMILIES",THAME E&A HOME,HARDWARE AND CROCKERY,22/09/2023,11149659571,84.98,HADDENHAM GARDEN CEN L
OXFORDSHIRE CC,"CHILDRENS, YOUNG PEOPLE AND FAMILIES","	LEAVING CARE SOUTH",CATERING,22/09/2023,11149660069,7.78,MCDONALDS
OXFORDSHIRE CC,SOCIAL AND COMMUNITY SERVICES,CSS WANTAGE,ENTERTAINMENT EXPENSES,22/09/2023,11149659665,23.8,WWW.BETTER.ORG.UK
OXFORDSHIRE CC,"CHILDRENS, YOUNG PEOPLE AND FAMILIES",DIDCOT MOVE-ON HOME,CATERING PROVISIONS,22/09/2023,11149659729,2.37,ALDI 99 775
OXFORDSHIRE CC,CORPORATE CORE,THAME LIBRARY,"NEWSPAPERS, PERIODICALS AND PUBLICATIONS",22/09/2023,11149660183,5.6,SAINSBURYS S/MKTS
OXFORDSHIRE CC,CHILDREN'S & EDUCATION,CHILDREN IN CARE NON-STAFFING - CENTRL 1,PAYMENTS TO TRANSPORT OPERATORS,22/09/2023,11149657239,93.6,BKG HOTEL AT BOOKING.C
OXFORDSHIRE CC,SHARED SERVICES,CSC SUPP & SERVICES,OTHER TRAINING COURSES AND QUALIFICATION,22/09/2023,11149657663,948,WWW.TOTALSUCCESS.CO.UK
OXFORDSHIRE CC,CORPORATE CORE,,STATIONERY,22/09/2023,11149660363,70.14,LYRECO UK LTD
OXFORDSHIRE CC,"CHILDRENS, YOUNG PEOPLE AND FAMILIES",FAMILY SOLUTIONS PLUS NON-STAFF - NORTH,EDUCATIONAL AND VOCATIONAL TRAINING ,22/09/2023,11149661327,3,THE KIDZ BARN
OXFORDSHIRE CC,SOCIAL AND COMMUNITY SERVICES,COWLEY LIBRARY,DOMESTIC SUPPLIES,22/09/2023,11149661081,3.05,CO-OPERATIVE FOOD
OXFORDSHIRE CC,"CHILDRENS, YOUNG PEOPLE AND FAMILIES",CARE LEAVERS STAFFING,CATERING PROVISIONS,22/09/2023,11149661375,8,SIP CARS PARKS (1) LIM
OXFORDSHIRE CC,SOCIAL AND COMMUNITY SERVICES,CHILDREN IN CARE NON-STAFFING - NORTH,CATERING PROVISIONS,22/09/2023,11149657707,3.3,MARKS&SPENCER PLC SACA
OXFORDSHIRE CC,"CHILDRENS, YOUNG PEOPLE AND FAMILIES","	LEAVING CARE SOUTH",MATERIALS,22/09/2023,11149657629,119.99,CURRYS DIDCOT
OXFORDSHIRE CC,SHARED SERVICES,CSC SUPP & SERVICES,"SUPPLIES, STATIONERY AND MATERIALS",22/09/2023,11149657675,12.46,AMZNMKTPLACE
OXFORDSHIRE CC,SOCIAL AND COMMUNITY SERVICES,HOLTON SITE,CATERING PROVISIONS,22/09/2023,11149657319,14.95,MILK AND MORE (RECUR
OXFORDSHIRE CC,CORPORATE CORE,"MARKETING, COMMUNICATIONS & ENGAGEMENT","PUBLICITY, PROMOTIONS AND ADVERTISEMENT",22/09/2023,11149660691,500,FACEBK  XNA9LU39Z2
OXFORDSHIRE CC,"CHILDRENS, YOUNG PEOPLE AND FAMILIES","	RESIDENTIAL STRATEGY",CATERING,22/09/2023,11149660753,20.2,THE MAYFLOWER CHINESE
OXFORDSHIRE CC,"CHILDRENS, YOUNG PEOPLE AND FAMILIES",THAME E&A HOME,OTHER TRANSPORT ARRANGEMENTS,22/09/2023,11149658487,5.8,WESTGATE OXFORD CAR PA
OXFORDSHIRE CC,"CHILDRENS, YOUNG PEOPLE AND FAMILIES",THAME E&A HOME,MATERIALS,22/09/2023,11149658551,64.92,AMZNMKTPLACE
OXFORDSHIRE CC,"CHILDRENS, YOUNG PEOPLE AND FAMILIES",FAMILY SOLUTIONS PLUS NON-STAFF - NORTH,PAYMENTS TO TRANSPORT OPERATORS,22/09/2023,11149660395,104.54,TRAINLINE
OXFORDSHIRE CC,CORPORATE CORE,BUSINESS INTELLECTUAL PROPERTY CENTRE,CATERING PROVISIONS,22/09/2023,11149658923,25.67,SAINSBURYS S/MKTS
OXFORDSHIRE CC,"CHILDRENS, YOUNG PEOPLE AND FAMILIES",THAME E&A HOME,OTHER TRANSPORT ARRANGEMENTS,22/09/2023,11149658319,4.8,WESTGATE OXFORD CAR PA
OXFORDSHIRE CC,CORPORATE CORE,SCHOOLS FM CATERING AREA 4,CATERING PROVISIONS,22/09/2023,11149658381,5.49,AMAZON  026-2076214-40
OXFORDSHIRE CC,CHILDREN'S & EDUCATION,DISABILITIES TEAM S,OTHER TRANSPORT ARRANGEMENTS,22/09/2023,11149660521,24.5,OXFORDBUS.CO.UK
OXFORDSHIRE CC,SOCIAL AND COMMUNITY SERVICES,CSS WITNEY,CATERING PROVISIONS,22/09/2023,11149659641,35.7,MILK AND MORE (RECUR
OXFORDSHIRE CC,CHILDREN'S & EDUCATION,"	LEAVING CARE NORTH",HARDWARE AND CROCKERY,22/09/2023,11149661223,74.5,ASDA GEORGE COM LEEDS
OXFORDSHIRE CC,CORPORATE CORE,,STATIONERY,22/09/2023,11149660273,30.31,LYRECO UK LTD
OXFORDSHIRE CC,SOCIAL AND COMMUNITY SERVICES,CSS WANTAGE,ENTERTAINMENT EXPENSES,22/09/2023,11149659655,9.9,WWW.BETTER.ORG.UK
OXFORDSHIRE CC,SOCIAL AND COMMUNITY SERVICES,"	CENTRAL LIBRARY",IT SERVICES,22/09/2023,11149660055,4.99,AMZNMKTPLACE
OXFORDSHIRE CC,CHILDREN'S & EDUCATION,40 THE MOORS,CATERING PROVISIONS,22/09/2023,11149659811,13,MARTIN MCCOLL
OXFORDSHIRE CC,CORPORATE CORE,HISTORY SERVICE,FURNITURE,22/09/2023,11149659461,3,AMZNMKTPLACE
OXFORDSHIRE CC,CHILDREN'S & EDUCATION,"	OCCG GRANT",MATERIALS,22/09/2023,11149659483,68.99,AMZNMKTPLACE
OXFORDSHIRE CC,CORPORATE CORE,SKILLS & LEARNING,CATERING,22/09/2023,11149659361,206.9,WAITROSE.COM
OXFORDSHIRE CC,"CHILDRENS, YOUNG PEOPLE AND FAMILIES","	RESIDENTIAL STRATEGY",CATERING,22/09/2023,11149658473,17.98,POPEYES LOUISIANA CHIC
OXFORDSHIRE CC,"CHILDRENS, YOUNG PEOPLE AND FAMILIES",THAME E&A HOME,MATERIALS,22/09/2023,11149658537,11.99,AMZNMKTPLACE
OXFORDSHIRE CC,SOCIAL AND COMMUNITY SERVICES,CSS WITNEY,MATERIALS,22/09/2023,11149659633,27.08,AMZNMKTPLACE
OXFORDSHIRE CC,"CHILDRENS, YOUNG PEOPLE AND FAMILIES",DIDCOT MOVE-ON HOME,CATERING PROVISIONS,22/09/2023,11149659737,26.72,ALDI 99 775
OXFORDSHIRE CC,CHILDREN'S & EDUCATION,"	LEAVING CARE NORTH",HARDWARE AND CROCKERY,22/09/2023,11149661211,179,CURRYS ONLINE
OXFORDSHIRE CC,"CHILDRENS, YOUNG PEOPLE AND FAMILIES",FSP NON-STAFFING - CENTRAL,OTHER TRANSPORT ARRANGEMENTS,22/09/2023,11149661249,2.5,OXFORD BUS COMPANY
OXFORDSHIRE CC,"CHILDRENS, YOUNG PEOPLE AND FAMILIES",FSP NON-STAFFING - CENTRAL,OTHER TRANSPORT ARRANGEMENTS,22/09/2023,11149661259,2,OXFORD BUS COMPANY
OXFORDSHIRE CC,SOCIAL AND COMMUNITY SERVICES,SUMMERTOWN LIBRARY,HEALTH AND SAFETY EQUIPMENT,22/09/2023,11149660047,7.49,EXTRA
OXFORDSHIRE CC,CHILDREN'S & EDUCATION,"	LEAVING CARE NORTH",HARDWARE AND CROCKERY,22/09/2023,11149661233,131.98,B&Q MARKETPLACE
OXFORDSHIRE CC,CORPORATE CORE,,STATIONERY,22/09/2023,11149660277,219.48,LYRECO UK LTD
OXFORDSHIRE CC,CORPORATE CORE,,STATIONERY,22/09/2023,11149660259,94.26,LYRECO UK LTD
OXFORDSHIRE CC,CORPORATE CORE,,STATIONERY,22/09/2023,11149660305,146.1,LYRECO UK LTD
OXFORDSHIRE CC,CORPORATE CORE,,STATIONERY,22/09/2023,11149660285,207.66,LYRECO UK LTD
OXFORDSHIRE CC,ENVIRONMENT AND ECONOMY,HARD FM,PREMISES REPAIRS,21/09/2023,9138737686,14.07,B AND Q
OXFORDSHIRE CC,"CHILDRENS, YOUNG PEOPLE AND FAMILIES",NTS UASC AGENCY,MATERIALS,21/09/2023,9138737794,271.92,AMZNMKTPLACE
OXFORDSHIRE CC,"CHILDRENS, YOUNG PEOPLE AND FAMILIES",NTS UASC AGENCY,MATERIALS,21/09/2023,9138737822,11.97,AMZNMKTPLACE
OXFORDSHIRE CC,SOCIAL AND COMMUNITY SERVICES,"	SHARED LIVES",CATERING PROVISIONS,21/09/2023,9138739530,9.1,WAITROSE 211
OXFORDSHIRE CC,SOCIAL AND COMMUNITY SERVICES,CHILDREN IN CARE NON-STAFFING - NORTH,PAYMENTS TO TRANSPORT OPERATORS,21/09/2023,9138738116,85,CROSS COUNTRY RAIL
OXFORDSHIRE CC,SOCIAL AND COMMUNITY SERVICES,SCHOOLS FM CATERING AREA 2,MATERIALS,21/09/2023,9138737956,6.99,AMZNMKTPLACE
OXFORDSHIRE CC,ENVIRONMENT AND ECONOMY,THE RIDGEWAY,EQUIPMENT,21/09/2023,9138738028,12,HELLOPRINT UNITED KING
OXFORDSHIRE CC,CORPORATE CORE,INCOME TEAM,PAYMENT TO GOVERNMENT DEPARTMENTS,21/09/2023,9138738044,11,OXFORDSHIRE CC WEB1
OXFORDSHIRE CC,"CHILDRENS, YOUNG PEOPLE AND FAMILIES",KINGFISHER,VEHICLE FUEL,21/09/2023,9138739538,48.78,TESCO PAY AT PUMP 4267
OXFORDSHIRE CC,SOCIAL AND COMMUNITY SERVICES,SCHOOLS FM CATERING AREA 2,MATERIALS,21/09/2023,9138737974,308.03,AMZNMKTPLACE
OXFORDSHIRE CC,SOCIAL AND COMMUNITY SERVICES,SCHOOLS FM CATERING AREA 2,MATERIALS,21/09/2023,9138737966,50.91,AMZNMKTPLACE
OXFORDSHIRE CC,"CHILDRENS, YOUNG PEOPLE AND FAMILIES","	DISABILITIES TEAM-C",HIRE OF ACCOMMODATION AND FACILITIES,21/09/2023,9138737988,96.99,EXPEDIA HOTELSCOM72660
OXFORDSHIRE CC,ENVIRONMENT AND ECONOMY,THE RIDGEWAY,EQUIPMENT,21/09/2023,9138738024,223.16,HELLOPRINT UNITED KING
OXFORDSHIRE CC,"CHILDRENS, YOUNG PEOPLE AND FAMILIES",CHILDREN IN CARE NON-STAFFING - SOUTH,OTHER TRANSPORT ARRANGEMENTS,21/09/2023,9138737574,36,WWW.001ROYALCABS.CO.UK
OXFORDSHIRE CC,"CHILDRENS, YOUNG PEOPLE AND FAMILIES",NTS UASC AGENCY,MATERIALS,21/09/2023,9138737784,271.92,AMZNMKTPLACE
OXFORDSHIRE CC,"CHILDRENS, YOUNG PEOPLE AND FAMILIES",NTS UASC AGENCY,MATERIALS,21/09/2023,9138737814,82.64,AMZNMKTPLACE
OXFORDSHIRE CC,"CHILDRENS, YOUNG PEOPLE AND FAMILIES",CSS WALLINGFORD,FURNITURE,21/09/2023,9138737536,115.28,AMZNMKTPLACE
OXFORDSHIRE CC,SOCIAL AND COMMUNITY SERVICES,CSS WALLINGFORD,VEHICLE FUEL,21/09/2023,9138737590,15.98,ESSO RECTORY SSTN
OXFORDSHIRE CC,CORPORATE CORE,BUSINESS INTELLECTUAL PROPERTY CENTRE,PAYMENTS TO TRANSPORT OPERATORS,21/09/2023,9138738936,21.35,TRAINLINE
OXFORDSHIRE CC,"CHILDRENS, YOUNG PEOPLE AND FAMILIES",NTS UASC AGENCY,MATERIALS,21/09/2023,9138737790,17.99,AMZNMKTPLACE
OXFORDSHIRE CC,"CHILDRENS, YOUNG PEOPLE AND FAMILIES",NTS UASC AGENCY,MATERIALS,21/09/2023,9138737818,210.24,AMZNMKTPLACE
OXFORDSHIRE CC,"CHILDRENS, YOUNG PEOPLE AND FAMILIES",NTS UASC AGENCY,MATERIALS,21/09/2023,9138737844,24.34,AMZNMKTPLACE
OXFORDSHIRE CC,CORPORATE CORE,"	LEGAL SERVICES",PURCHASE OF IT EQUIPMENT,21/09/2023,9138739174,5.89,AMZNMKTPLACE
OXFORDSHIRE CC,SOCIAL AND COMMUNITY SERVICES,CSS WANTAGE,CATERING PROVISIONS,21/09/2023,9138739308,20.2,SAINSBURYS S/MKTS
OXFORDSHIRE CC,SOCIAL AND COMMUNITY SERVICES,CSS WITNEY,MATERIALS,21/09/2023,9138739288,7.5,AMZNMKTPLACE
OXFORDSHIRE CC,ENVIRONMENT AND ECONOMY,"ROSE HILL CC, THE OVAL",GROUNDS MAINTENANCE CONTRACTS,21/09/2023,9138739336,-18,B AND Q
OXFORDSHIRE CC,"CHILDRENS, YOUNG PEOPLE AND FAMILIES",CSS WALLINGFORD,MATERIALS,21/09/2023,9138737544,51.57,AMZNMKTPLACE
OXFORDSHIRE CC,ENVIRONMENT AND ECONOMY,"	COUNTY PRINT FINSHRS",HARDWARE AND CROCKERY,21/09/2023,9138737702,51.97,WWW.SCREWFIX.COM
OXFORDSHIRE CC,CHILDREN'S & EDUCATION,UASC 16&17,HIRE OF ACCOMMODATION AND FACILITIES,21/09/2023,9138737676,112.5,MARKS TEY HOTEL NFE7D5
OXFORDSHIRE CC,SOCIAL AND COMMUNITY SERVICES,UASC 16&17,MATERIALS,21/09/2023,9138737716,131.98,SPORTSDIRECT 218
OXFORDSHIRE CC,"CHILDRENS, YOUNG PEOPLE AND FAMILIES","	LEAVING CARE CITY 2",MATERIALS,21/09/2023,9138737760,439,CURRYS ONLINE
OXFORDSHIRE CC,CORPORATE CORE,"	PERSONNEL",STATIONERY,21/09/2023,9138739120,9.63,AMZNMKTPLACE
OXFORDSHIRE CC,CORPORATE CORE,"	LEGAL SERVICES",MATERIALS,21/09/2023,9138739182,9.99,AMZNMKTPLACE
OXFORDSHIRE CC,"CHILDRENS, YOUNG PEOPLE AND FAMILIES",THAME E&A HOME,HARDWARE AND CROCKERY,21/09/2023,9138739260,91.4,WILKO RETAIL LIMITED
OXFORDSHIRE CC,SOCIAL AND COMMUNITY SERVICES,SCHOOLS FM CATERING AREA 2,CATERING PROVISIONS,21/09/2023,9138738824,15.15,SAINSBURYS S/MKTS
OXFORDSHIRE CC,SOCIAL AND COMMUNITY SERVICES,CSS WITNEY,CATERING PROVISIONS,21/09/2023,9138738852,8.85,MARKS&SPENCER PLC SACA
OXFORDSHIRE CC,CHILDREN'S & EDUCATION,"	LEAVING CARE NORTH",CATERING PROVISIONS,21/09/2023,9138738110,2.97,ALDI 112 775
OXFORDSHIRE CC,"CHILDRENS, YOUNG PEOPLE AND FAMILIES",THAME E&A HOME,MATERIALS,21/09/2023,9138738718,10.62,AMZNMKTPLACE
OXFORDSHIRE CC,"CHILDRENS, YOUNG PEOPLE AND FAMILIES","	LEAVING CARE CITY 2",CATERING,21/09/2023,9138738776,8.63,MCDONALDS
OXFORDSHIRE CC,CORPORATE CORE,FRONTIER CAV EU PROJECT,OTHER TRANSPORT ARRANGEMENTS,21/09/2023,9138740106,5.5,TFL TRAVEL CH
OXFORDSHIRE CC,CHILDREN'S & EDUCATION,"	OCCG GRANT",MATERIALS,21/09/2023,9138740116,13.99,AMZNMKTPLACE
OXFORDSHIRE CC,"CHILDRENS, YOUNG PEOPLE AND FAMILIES",PAUSE PROGRAMME,CATERING,21/09/2023,9138738676,9.26,MCDONALDS
OXFORDSHIRE CC,"CHILDRENS, YOUNG PEOPLE AND FAMILIES",PAUSE PROGRAMME,CATERING PROVISIONS,21/09/2023,9138738682,18.75,ICELAND
OXFORDSHIRE CC,ENVIRONMENT AND ECONOMY,OPERATIONS,"SUPPLIES, STATIONERY AND MATERIALS",21/09/2023,9138738696,23.99,AMZNMKTPLACE
OXFORDSHIRE CC,"CHILDRENS, YOUNG PEOPLE AND FAMILIES","	RESIDENTIAL STRATEGY",OTHER TRANSPORT ARRANGEMENTS,21/09/2023,9138738664,4.5,STGCOACH/CTYLINK
OXFORDSHIRE CC,"CHILDRENS, YOUNG PEOPLE AND FAMILIES",THAME E&A HOME,MATERIALS,21/09/2023,9138738710,9.39,AMZNMKTPLACE
OXFORDSHIRE CC,"CHILDRENS, YOUNG PEOPLE AND FAMILIES",THAME E&A HOME,MATERIALS,21/09/2023,9138740014,48.95,DECATHLON UK LIMITED
OXFORDSHIRE CC,CORPORATE CORE,OXFDSHIRE PUBLIC SPACE INNOVATION NETWK,OTHER TRANSPORT ARRANGEMENTS,21/09/2023,9138740054,5.5,TFL TRAVEL CH
OXFORDSHIRE CC,ENVIRONMENT AND ECONOMY,"	NAT TRAILS GENERAL",ENTERTAINMENT EXPENSES,21/09/2023,9138740088,57.92,TICKETPASS
OXFORDSHIRE CC,CORPORATE CORE,HISTORY SERVICE,EQUIPMENT,21/09/2023,9138739194,87.24,AMZNMKTPLACE
OXFORDSHIRE CC,SOCIAL AND COMMUNITY SERVICES,CSS WITNEY,MATERIALS,21/09/2023,9138739292,5.75,AMZNMKTPLACE
OXFORDSHIRE CC,"CHILDRENS, YOUNG PEOPLE AND FAMILIES","	LEAVING CARE CITY 1",CATERING,21/09/2023,9138737732,6.4,SQ  COIN DE PARIS
OXFORDSHIRE CC,"CHILDRENS, YOUNG PEOPLE AND FAMILIES",NTS UASC AGENCY,MATERIALS,21/09/2023,9138737770,17.99,AMZNMKTPLACE
OXFORDSHIRE CC,"CHILDRENS, YOUNG PEOPLE AND FAMILIES",DIDCOT MOVE-ON HOME,RESIDENTIAL ACTIVITIES,21/09/2023,9138739046,"3,172.80",PGL TRAVEL
OXFORDSHIRE CC,CORPORATE CORE,SKILLS & LEARNING,MATERIALS,21/09/2023,9138739130,25.99,ONE4ALL
OXFORDSHIRE CC,CORPORATE CORE,"	LEGAL SERVICES",STAFF USE OF PUBLIC TRANSPORT,21/09/2023,9138739188,47.7,WWW.GWR.COM
OXFORDSHIRE CC,"CHILDRENS, YOUNG PEOPLE AND FAMILIES",NTS UASC AGENCY,MATERIALS,21/09/2023,9138737850,24.34,AMZNMKTPLACE
OXFORDSHIRE CC,SOCIAL AND COMMUNITY SERVICES,CSS WITNEY,CATERING PROVISIONS,21/09/2023,9138738860,1.8,MARKS&SPENCER PLC SACA
OXFORDSHIRE CC,ENVIRONMENT AND ECONOMY,HARD FM,PREMISES REPAIRS,21/09/2023,9138737696,39.92,WILLIAMS & CO
OXFORDSHIRE CC,"CHILDRENS, YOUNG PEOPLE AND FAMILIES","	LEAVING CARE CITY 1",STAFF USE OF PUBLIC TRANSPORT,21/09/2023,9138737736,2,OXFORD PARKWAY SSTP
OXFORDSHIRE CC,SOCIAL AND COMMUNITY SERVICES,CORP PROC SERVICE,OTHER TRAINING COURSES AND QUALIFICATION,21/09/2023,9138739054,260.44,WWW.CIPS.ORG
OXFORDSHIRE CC,"CHILDRENS, YOUNG PEOPLE AND FAMILIES",NTS UASC AGENCY,MATERIALS,21/09/2023,9138737808,111.5,AMZNMKTPLACE
OXFORDSHIRE CC,"CHILDRENS, YOUNG PEOPLE AND FAMILIES",CHILDREN IN CARE NON-STAFFING - CENTRL 1,MATERIALS,21/09/2023,9138737834,210.24,AMZNMKTPLACE
OXFORDSHIRE CC,CHILDREN'S & EDUCATION,"	LOOKED AFTER CITY 1",OTHER TRANSPORT ARRANGEMENTS,21/09/2023,9138737622,91.5,WWW.THEKEY.CO.UK
OXFORDSHIRE CC,ENVIRONMENT AND ECONOMY,"	WASTE MNGMNT GEN",MATERIALS,21/09/2023,9138738986,24.46,AMAZON.CO.UK 1K3663OT4
OXFORDSHIRE CC,"CHILDRENS, YOUNG PEOPLE AND FAMILIES",NTS UASC AGENCY,MATERIALS,21/09/2023,9138737858,135.84,AMZNMKTPLACE
OXFORDSHIRE CC,"CHILDRENS, YOUNG PEOPLE AND FAMILIES",PAUSE PROGRAMME,MATERIALS,21/09/2023,9138738206,57.85,THE RANGE
OXFORDSHIRE CC,CHILDREN'S & EDUCATION,CNTL EARLY HELP-RHIL,CATERING PROVISIONS,21/09/2023,9138739568,8.04,TESCO STORES 2994
OXFORDSHIRE CC,"CHILDRENS, YOUNG PEOPLE AND FAMILIES","	LEAVING CARE NORTH",OTHER TRANSPORT ARRANGEMENTS,21/09/2023,9138739746,1.8,S OXFORDS PARKING FEE
OXFORDSHIRE CC,CORPORATE CORE,,STATIONERY,21/09/2023,9138739654,58.75,LYRECO UK LTD
OXFORDSHIRE CC,CORPORATE CORE,,STATIONERY,21/09/2023,9138739660,7.21,LYRECO UK LTD
OXFORDSHIRE CC,"CHILDRENS, YOUNG PEOPLE AND FAMILIES",HOUSE PROJECT,CATERING PROVISIONS,21/09/2023,9138739686,22.25,SAINSBURYS S/MKTS
OXFORDSHIRE CC,CHILDREN'S & EDUCATION,"	LOOKED AFTER NORTH",CATERING PROVISIONS,21/09/2023,9138739728,2,TESCO STORES 2025
OXFORDSHIRE CC,"CHILDRENS, YOUNG PEOPLE AND FAMILIES",WITNEY,CATERING PROVISIONS,21/09/2023,9138738588,27.08,SAINSBURYS S/MKTS
OXFORDSHIRE CC,"CHILDRENS, YOUNG PEOPLE AND FAMILIES",PAUSE PROGRAMME,CLOTHING AND UNIFORMS,21/09/2023,9138738186,45.2,PRIMARK 440
OXFORDSHIRE CC,CHILDREN'S & EDUCATION,"	OCCG GRANT",MATERIALS,21/09/2023,9138738216,13.5,TIMPSON LTD
OXFORDSHIRE CC,CORPORATE CORE,,STATIONERY,21/09/2023,9138739620,27.24,LYRECO UK LTD
OXFORDSHIRE CC,CORPORATE CORE,,STATIONERY,21/09/2023,9138739614,14.06,LYRECO UK LTD
OXFORDSHIRE CC,CHILDREN'S & EDUCATION,"	LOOKED AFTER NORTH",CATERING,21/09/2023,9138739736,11.99,DOMINOS ALDERSHOT
OXFORDSHIRE CC,"CHILDRENS, YOUNG PEOPLE AND FAMILIES","	LOOKED AFTER NORTH",PAYMENTS TO TRANSPORT OPERATORS,21/09/2023,9138739778,-2.9,TRAINLINE
OXFORDSHIRE CC,"CHILDRENS, YOUNG PEOPLE AND FAMILIES","	LOOKED AFTER NORTH",PAYMENTS TO TRANSPORT OPERATORS,21/09/2023,9138739760,27.4,TRAINLINE
OXFORDSHIRE CC,CORPORATE CORE,SCHOOLS FM CATERING AREA 1,CATERING PROVISIONS,21/09/2023,9138739790,44.5,ICELAND
OXFORDSHIRE CC,SOCIAL AND COMMUNITY SERVICES,RESIDENTIAL STRATEGY,OTHER EXPENSES,21/09/2023,9138739826,3,POUNDLAND LTD - 1366
OXFORDSHIRE CC,"CHILDRENS, YOUNG PEOPLE AND FAMILIES",FIELDWORK UASC,HARDWARE AND CROCKERY,21/09/2023,9138738268,43.68,WWW.SCREWFIX.COM
OXFORDSHIRE CC,CORPORATE CORE,ICT OPERATIONS & MAI,PURCHASE OF IT EQUIPMENT,21/09/2023,9138739908,433.01,AMZNMKTPLACE
OXFORDSHIRE CC,CHILDREN'S & EDUCATION,FIELDWORK UASC,SUBSCRIPTIONS,21/09/2023,9138738494,21.99,THE GYM GROUP
OXFORDSHIRE CC,ENVIRONMENT AND ECONOMY,HARD FM,PROFESSIONAL SUBSCRIPTIONS,21/09/2023,9138740030,418.8,WEST OXFORDSHIRE DISTR
OXFORDSHIRE CC,CHILDREN'S & EDUCATION,"	LEAVING CARE CITY 2",FURNITURE,21/09/2023,9138740002,53.99,AMAZON  204-6167296-20
OXFORDSHIRE CC,CHILDREN'S & EDUCATION,HOUSE PROJECT,CATERING PROVISIONS,21/09/2023,9138739984,5.8,WESTGATE OXFORD CAR PA
OXFORDSHIRE CC,"CHILDRENS, YOUNG PEOPLE AND FAMILIES","	LEAVING CARE CITY 2",CATERING,21/09/2023,9138738770,5.79,MCDONALDS
OXFORDSHIRE CC,CHILDREN'S & EDUCATION,"	OCCG GRANT",CATERING PROVISIONS,21/09/2023,9138740120,4.85,TESCO STORES 4480
OXFORDSHIRE CC,ENVIRONMENT AND ECONOMY,BANBURY LIBRARY,FURNITURE,21/09/2023,9138738700,105.6,BOARDS DIRECT
OXFORDSHIRE CC,ENVIRONMENT AND ECONOMY,HARD FM,PAYMENT TO GOVERNMENT DEPARTMENTS,21/09/2023,9138740022,341,VALE OF WHITE HORSE DC
OXFORDSHIRE CC,"CHILDRENS, YOUNG PEOPLE AND FAMILIES",FSP NON-STAFFING - CENTRAL,OTHER TRANSPORT ARRANGEMENTS,21/09/2023,9138740062,2,OXFORD BUS COMPANY
OXFORDSHIRE CC,ENVIRONMENT AND ECONOMY,"	NAT TRAILS GENERAL",MATERIALS,21/09/2023,9138740092,27.15,AMZNMKTPLACE
OXFORDSHIRE CC,CHILDREN'S & EDUCATION,HOUSE PROJECT,CATERING PROVISIONS,21/09/2023,9138739992,12.35,GREGGS
OXFORDSHIRE CC,CHILDREN'S & EDUCATION,FAMILY SOLUTIONS PLUS NON-STAFF � SOUTH,PAYMENT TO GOVERNMENT DEPARTMENTS,21/09/2023,9138739934,11,OXFORDSHIRE CC WEB1
OXFORDSHIRE CC,SOCIAL AND COMMUNITY SERVICES,CSS - BANBURY,MATERIALS,21/09/2023,9138739972,4.99,AMZNMKTPLACE
OXFORDSHIRE CC,"CHILDRENS, YOUNG PEOPLE AND FAMILIES",FAMILY SOLUTIONS PLUS NON-STAFF � SOUTH,PAYMENT TO GOVERNMENT DEPARTMENTS,21/09/2023,9138740008,38,GEN REGISTER OFFICE
OXFORDSHIRE CC,ENVIRONMENT AND ECONOMY,BANBURY LIBRARY,EQUIPMENT,21/09/2023,9138738690,24.99,AMAZON.CO.UK 148RH7Y34
OXFORDSHIRE CC,"CHILDRENS, YOUNG PEOPLE AND FAMILIES",THAME E&A HOME,MATERIALS,21/09/2023,9138738712,68.99,AMZNMKTPLACE
OXFORDSHIRE CC,CORPORATE CORE,OXFDSHIRE PUBLIC SPACE INNOVATION NETWK,OTHER TRANSPORT ARRANGEMENTS,21/09/2023,9138740046,2,OXFORD BUS COMPANY
OXFORDSHIRE CC,"CHILDRENS, YOUNG PEOPLE AND FAMILIES",NTS UASC AGENCY,MATERIALS,21/09/2023,9138737778,97.68,AMZNMKTPLACE
OXFORDSHIRE CC,CORPORATE CORE,,STATIONERY,21/09/2023,9138739666,35.22,LYRECO UK LTD
OXFORDSHIRE CC,"CHILDRENS, YOUNG PEOPLE AND FAMILIES",THAME E&A HOME,CATERING PROVISIONS,21/09/2023,9138738372,86.68,ETSY.COM - MULTIPLE SH
OXFORDSHIRE CC,CORPORATE CORE,PUBLIC HEALTH GENERA,PAYMENTS TO TRANSPORT OPERATORS,21/09/2023,9138738422,95.8,WWW.GWR.COM
OXFORDSHIRE CC,"CHILDRENS, YOUNG PEOPLE AND FAMILIES",HOUSE PROJECT,OTHER TRANSPORT ARRANGEMENTS,21/09/2023,9138739674,2,OXFORD BUS COMPANY
OXFORDSHIRE CC,"CHILDRENS, YOUNG PEOPLE AND FAMILIES",KINGFISHER,VEHICLE FUEL,21/09/2023,9138739706,55.63,ASDA F/STN
OXFORDSHIRE CC,CHILDREN'S & EDUCATION,40 THE MOORS,OTHER EXPENSES,21/09/2023,9138739846,20,TESCO STORES 2788
OXFORDSHIRE CC,CORPORATE CORE,ICT OPERATIONS & MAI,PURCHASE OF IT EQUIPMENT,21/09/2023,9138739918,22.79,AMZNMKTPLACE
OXFORDSHIRE CC,"CHILDRENS, YOUNG PEOPLE AND FAMILIES",PAUSE PROGRAMME,CATERING PROVISIONS,21/09/2023,9138738190,15.19,WM MORRISONS STORE
OXFORDSHIRE CC,"CHILDRENS, YOUNG PEOPLE AND FAMILIES","	RESIDENTIAL STRATEGY",CATERING PROVISIONS,21/09/2023,9138738222,21.8,TESCO STORES 4338
OXFORDSHIRE CC,CORPORATE CORE,,STATIONERY,21/09/2023,9138739628,65.83,LYRECO UK LTD
OXFORDSHIRE CC,CORPORATE CORE,,STATIONERY,21/09/2023,9138739648,32.92,LYRECO UK LTD
OXFORDSHIRE CC,"CHILDRENS, YOUNG PEOPLE AND FAMILIES",DIDCOT MOVE-ON HOME,CATERING PROVISIONS,21/09/2023,9138738764,11.2,ALDI 99 775
OXFORDSHIRE CC,"CHILDRENS, YOUNG PEOPLE AND FAMILIES","	LOOKED AFTER NORTH",PAYMENTS TO TRANSPORT OPERATORS,21/09/2023,9138739774,-2.9,TRAINLINE
OXFORDSHIRE CC,CORPORATE CORE,"MARKETING, COMMUNICATIONS & ENGAGEMENT","PUBLICITY, PROMOTIONS AND ADVERTISEMENT",21/09/2023,9138739806,500,GOOGLE ADS4896546035
OXFORDSHIRE CC,"CHILDRENS, YOUNG PEOPLE AND FAMILIES",THAME E&A HOME,CLOTHING AND UNIFORMS,21/09/2023,9138738380,64.99,JD SPORTS FASHION PLC
OXFORDSHIRE CC,SOCIAL AND COMMUNITY SERVICES,CSS - OXFORD,CATERING PROVISIONS,21/09/2023,9138738476,30.85,ALDI STORES 775-142
OXFORDSHIRE CC,CHILDREN'S & EDUCATION,FIELDWORK UASC,SUBSCRIPTIONS,21/09/2023,9138738502,-21.99,THE GYM GROUP
OXFORDSHIRE CC,CORPORATE CORE,PUBLIC HEALTH GENERA,PAYMENTS TO TRANSPORT OPERATORS,21/09/2023,9138738430,86.8,WWW.GWR.COM
OXFORDSHIRE CC,"CHILDRENS, YOUNG PEOPLE AND FAMILIES",FAMILY SOLUTIONS PLUS NON-STAFF - NORTH,PAYMENTS TO TRANSPORT OPERATORS,21/09/2023,9138738462,22.6,WWW.GWR.COM
OXFORDSHIRE CC,SOCIAL AND COMMUNITY SERVICES,COMMUNITY PARTNERSHIP TEAM,CATERING PROVISIONS,21/09/2023,9138738020,170.55,TESCO STORES 2008
OXFORDSHIRE CC,"CHILDRENS, YOUNG PEOPLE AND FAMILIES",PAUSE PROGRAMME,CLOTHING AND UNIFORMS,21/09/2023,9138738196,25.99,MATALAN ECOM
OXFORDSHIRE CC,"CHILDRENS, YOUNG PEOPLE AND FAMILIES",EYNSHAM,DRUGS AND MEDICAL SUPPLIES,21/09/2023,9138739608,9.99,AMAZON.CO.UK 1K9858CN4
OXFORDSHIRE CC,CORPORATE CORE,,STATIONERY,21/09/2023,9138739634,245.7,LYRECO UK LTD
OXFORDSHIRE CC,CORPORATE CORE,,STATIONERY,21/09/2023,9138739656,24.24,LYRECO UK LTD
OXFORDSHIRE CC,"CHILDRENS, YOUNG PEOPLE AND FAMILIES",HOUSE PROJECT,OTHER TRANSPORT ARRANGEMENTS,21/09/2023,9138739682,2,OXFORD BUS COMPANY
OXFORDSHIRE CC,"CHILDRENS, YOUNG PEOPLE AND FAMILIES",KINGFISHER,VEHICLE FUEL,21/09/2023,9138739712,31.44,SAINSBURYS PETROL
OXFORDSHIRE CC,"CHILDRENS, YOUNG PEOPLE AND FAMILIES","	LOOKED AFTER NORTH",PAYMENTS TO TRANSPORT OPERATORS,21/09/2023,9138739768,-2.9,TRAINLINE
OXFORDSHIRE CC,"CHILDRENS, YOUNG PEOPLE AND FAMILIES",NTS UASC AGENCY,MATERIALS,21/09/2023,9138737802,24.34,AMZNMKTPLACE
OXFORDSHIRE CC,"CHILDRENS, YOUNG PEOPLE AND FAMILIES","	RESIDENTIAL STRATEGY",CATERING PROVISIONS,21/09/2023,9138738230,10,TESCO STORES 4338
OXFORDSHIRE CC,"CHILDRENS, YOUNG PEOPLE AND FAMILIES",CSS WANTAGE,CATERING PROVISIONS,20/09/2023,9133272474,3.7,SIP CARS PARKS (1) LIM
OXFORDSHIRE CC,ENTERPRISEVC,,CAR LEASING - PRIVATE RENTALS,20/09/2023,9133272852,160.49,ENTERPRISE RENT-A-CAR
OXFORDSHIRE CC,ENTERPRISEVC,,CAR LEASING - PRIVATE RENTALS,20/09/2023,9133272860,120.54,ENTERPRISE RENT-A-CAR
OXFORDSHIRE CC,CORPORATE CORE,HISTORY SERVICE,EQUIPMENT,20/09/2023,9133272736,11.99,AMZNMKTPLACE
OXFORDSHIRE CC,CORPORATE CORE,HISTORY SERVICE,EQUIPMENT,20/09/2023,9133272738,6.98,AMZNMKTPLACE
OXFORDSHIRE CC,CORPORATE CORE,,STATIONERY,20/09/2023,9133272832,75.38,LYRECO UK LTD
OXFORDSHIRE CC,CORPORATE CORE,THAME LIBRARY,"NEWSPAPERS, PERIODICALS AND PUBLICATIONS",20/09/2023,9133272814,5.6,SAINSBURYS S/MKTS
OXFORDSHIRE CC,"CHILDRENS, YOUNG PEOPLE AND FAMILIES",EYNSHAM,CATERING PROVISIONS,20/09/2023,9133272822,98.85,TESCO STORES 2008
OXFORDSHIRE CC,"CHILDRENS, YOUNG PEOPLE AND FAMILIES","	LEAVING CARE CITY 2",OTHER TRANSPORT ARRANGEMENTS,20/09/2023,9133272532,4.8,WESTGATE OXFORD CAR PA
OXFORDSHIRE CC,"CHILDRENS, YOUNG PEOPLE AND FAMILIES",WITNEY,CATERING PROVISIONS,20/09/2023,9133272774,2,ASDA STORES 4920
OXFORDSHIRE CC,CORPORATE CORE,BANKING,OTHER EXPENSES,20/09/2023,9133272476,199,WWW.LLOYDSBANKCARDNETM
OXFORDSHIRE CC,ENVIRONMENT AND ECONOMY,HARD FM,PREMISES REPAIRS,20/09/2023,9133272510,26.99,WWW.SCREWFIX.COM
OXFORDSHIRE CC,ENVIRONMENT AND ECONOMY,"	COUNTY PRINT FINSHRS",MATERIALS,20/09/2023,9133272518,7.99,AMZNMKTPLACE
OXFORDSHIRE CC,ENTERPRISEVC,,CAR LEASING - PRIVATE RENTALS,20/09/2023,9133272868,162.98,ENTERPRISE RENT-A-CAR
OXFORDSHIRE CC,"CHILDRENS, YOUNG PEOPLE AND FAMILIES",KINGFISHER,OTHER TRANSPORT ARRANGEMENTS,20/09/2023,9133272876,1.5,HUMBER BRIDGE BOARD
OXFORDSHIRE CC,"CHILDRENS, YOUNG PEOPLE AND FAMILIES",UASC POST 18,OTHER TRANSPORT ARRANGEMENTS,20/09/2023,9133272796,17,OXFORDBUS.CO.UK
OXFORDSHIRE CC,"CHILDRENS, YOUNG PEOPLE AND FAMILIES",WITNEY,CATERING PROVISIONS,20/09/2023,9133272776,24.69,ASDA STORES 4920
OXFORDSHIRE CC,CORPORATE CORE,,STATIONERY,20/09/2023,9133272834,11.71,LYRECO UK LTD
OXFORDSHIRE CC,ENTERPRISEVC,,CAR LEASING - PRIVATE RENTALS,20/09/2023,9133272842,125.98,ENTERPRISE RENT-A-CAR
OXFORDSHIRE CC,CHILDREN'S & EDUCATION,40 THE MOORS,CATERING,20/09/2023,9133272932,5.74,TESCO STORES 2788
OXFORDSHIRE CC,"CHILDRENS, YOUNG PEOPLE AND FAMILIES",CHILDREN IN CARE NON-STAFFING - CENTRL 2,PAYMENT TO GOVERNMENT DEPARTMENTS,20/09/2023,9133272548,53.5,HM PASSPORT OFFICE
OXFORDSHIRE CC,ENVIRONMENT AND ECONOMY,"	COUNTY PRINT FINSHRS",MATERIALS,20/09/2023,9133272516,17.23,AMZNMKTPLACE
OXFORDSHIRE CC,CORPORATE CORE,,STATIONERY,20/09/2023,9133272830,88.93,LYRECO UK LTD
OXFORDSHIRE CC,ENTERPRISEVC,,CAR LEASING - PRIVATE RENTALS,20/09/2023,9133272840,77.98,ENTERPRISE RENT-A-CAR
OXFORDSHIRE CC,ENTERPRISEVC,,CAR LEASING - PRIVATE RENTALS,20/09/2023,9133272870,285.91,ENTERPRISE RENT-A-CAR
OXFORDSHIRE CC,"CHILDRENS, YOUNG PEOPLE AND FAMILIES",KINGFISHER,OTHER TRANSPORT ARRANGEMENTS,20/09/2023,9133272878,1.5,HUMBER BRIDGE BOARD
OXFORDSHIRE CC,CHILDREN'S & EDUCATION,"	OCCG GRANT",OTHER TRANSPORT ARRANGEMENTS,20/09/2023,9133272886,91.5,WWW.THEKEY.CO.UK
OXFORDSHIRE CC,"CHILDRENS, YOUNG PEOPLE AND FAMILIES",CSS WALLINGFORD,CLOTHING AND UNIFORMS,20/09/2023,9133272444,37.61,AMZNMKTPLACE
OXFORDSHIRE CC,"CHILDRENS, YOUNG PEOPLE AND FAMILIES",TRANSPORT COSTS,TRANSPORT TO SCHOOL,20/09/2023,9133272452,664.5,SQ  CIARASCARS ALLOA
OXFORDSHIRE CC,"CHILDRENS, YOUNG PEOPLE AND FAMILIES",CSS WALLINGFORD,CLEANING MATERIALS,20/09/2023,9133272446,13.7,WAITROSE 675
OXFORDSHIRE CC,"CHILDRENS, YOUNG PEOPLE AND FAMILIES",CHILDREN IN CARE NON-STAFFING - SOUTH,OTHER TRANSPORT ARRANGEMENTS,20/09/2023,9133272454,235.5,SQ  CIARASCARS ALLOA
OXFORDSHIRE CC,"CHILDRENS, YOUNG PEOPLE AND FAMILIES",NTS UASC AGENCY,MATERIALS,20/09/2023,9133272542,11.97,AMZNMKTPLACE
OXFORDSHIRE CC,"CHILDRENS, YOUNG PEOPLE AND FAMILIES",MANAGEMENT RECHARGES,HIRED AND CONTRACTED SERVICES,20/09/2023,9133272558,9.98,AMZNMKTPLACE
OXFORDSHIRE CC,"CHILDRENS, YOUNG PEOPLE AND FAMILIES",NTS UASC AGENCY,MATERIALS,20/09/2023,9133272540,16,AMZNMKTPLACE
OXFORDSHIRE CC,ENTERPRISEVC,,CAR LEASING - PRIVATE RENTALS,20/09/2023,9133272854,38.75,ENTERPRISE RENT-A-CAR
OXFORDSHIRE CC,ENTERPRISEVC,,CAR LEASING - PRIVATE RENTALS,20/09/2023,9133272862,856.27,ENTERPRISE RENT-A-CAR
OXFORDSHIRE CC,ENTERPRISEVC,,CAR LEASING - PRIVATE RENTALS,20/09/2023,9133272848,57.95,ENTERPRISE RENT-A-CAR
OXFORDSHIRE CC,ENTERPRISEVC,,CAR LEASING - PRIVATE RENTALS,20/09/2023,9133272872,"1,606.42",ENTERPRISE RENT-A-CAR
OXFORDSHIRE CC,CORPORATE CORE,"MARKETING, COMMUNICATIONS & ENGAGEMENT",TRAINING RELATED EXPENDITURE,20/09/2023,9133272790,24.98,LINKEDIN PRE 943146848
OXFORDSHIRE CC,"CHILDRENS, YOUNG PEOPLE AND FAMILIES","	RESIDENTIAL STRATEGY",CATERING PROVISIONS,20/09/2023,9133272448,46.78,HOME BARGAINS FARRINGD
OXFORDSHIRE CC,"CHILDRENS, YOUNG PEOPLE AND FAMILIES",TRANSPORT COSTS,TRANSPORT TO SCHOOL,20/09/2023,9133272456,247.5,SQ  CIARASCARS ALLOA
OXFORDSHIRE CC,SOCIAL AND COMMUNITY SERVICES,CSS - ABINGDON,MATERIALS,20/09/2023,9133272460,28.7,ALDI STORES
OXFORDSHIRE CC,ENTERPRISEVC,,CAR LEASING - PRIVATE RENTALS,20/09/2023,9133272856,50.63,ENTERPRISE RENT-A-CAR
OXFORDSHIRE CC,ENTERPRISEVC,,CAR LEASING - PRIVATE RENTALS,20/09/2023,9133272864,46.3,ENTERPRISE RENT-A-CAR
OXFORDSHIRE CC,"CHILDRENS, YOUNG PEOPLE AND FAMILIES","	LOOKED AFTER CITY 2",PAYMENTS TO TRANSPORT OPERATORS,20/09/2023,9133272730,16.7,TRAINLINE
OXFORDSHIRE CC,ENVIRONMENT AND ECONOMY,"	MUSEUM RETAIL",CATERING PROVISIONS,20/09/2023,9133272740,65.7,SP ECODUKA
OXFORDSHIRE CC,ENTERPRISEVC,,CAR LEASING - PRIVATE RENTALS,20/09/2023,9133272866,65.98,ENTERPRISE RENT-A-CAR
OXFORDSHIRE CC,ENTERPRISEVC,,CAR LEASING - PRIVATE RENTALS,20/09/2023,9133272850,98.63,ENTERPRISE RENT-A-CAR
OXFORDSHIRE CC,ENTERPRISEVC,,CAR LEASING - PRIVATE RENTALS,20/09/2023,9133272858,120.19,ENTERPRISE RENT-A-CAR
OXFORDSHIRE CC,CORPORATE CORE,"	LEGAL SERVICES",EDUCATIONAL AND VOCATIONAL TRAINING ,20/09/2023,9133272734,156,LLG ENTERPRISES LTD
OXFORDSHIRE CC,CHILDREN'S & EDUCATION,NRPF & HOMELESSNESS,MATERIALS,20/09/2023,9133272742,25,WWW.ARGOS.CO.UK
OXFORDSHIRE CC,"CHILDRENS, YOUNG PEOPLE AND FAMILIES",CSS WALLINGFORD,STATIONERY,20/09/2023,9133272442,26.15,AMZNMKTPLACE
OXFORDSHIRE CC,"CHILDRENS, YOUNG PEOPLE AND FAMILIES",TRANSPORT COSTS,TRANSPORT TO SCHOOL,20/09/2023,9133272450,247.5,SQ  CIARASCARS ALLOA
OXFORDSHIRE CC,"CHILDRENS, YOUNG PEOPLE AND FAMILIES",TRANSPORT COSTS,TRANSPORT TO SCHOOL,20/09/2023,9133272458,247.5,SQ  CIARASCARS ALLOA
OXFORDSHIRE CC,"CHILDRENS, YOUNG PEOPLE AND FAMILIES",CSS WANTAGE,MATERIALS,20/09/2023,9133272472,16.99,AMZNMKTPLACE
OXFORDSHIRE CC,"CHILDRENS, YOUNG PEOPLE AND FAMILIES","	DISABILITIES TEAM-C",OTHER TRANSPORT ARRANGEMENTS,20/09/2023,9133272538,525,STAGECOACH SERVICES
OXFORDSHIRE CC,CORPORATE CORE,,STATIONERY,20/09/2023,9133272824,12.67,LYRECO UK LTD
OXFORDSHIRE CC,CHILDREN'S & EDUCATION,"	LEAVING CARE NORTH",CATERING PROVISIONS,20/09/2023,9133272594,7.7,SAINSBURYS SUPERMA
OXFORDSHIRE CC,CHILDREN'S & EDUCATION,"	LEAVING CARE CITY 2",FURNITURE,20/09/2023,9133272976,74.99,AMZNMKTPLACE
OXFORDSHIRE CC,"CHILDRENS, YOUNG PEOPLE AND FAMILIES",FSP NON-STAFFING - CENTRAL,OTHER TRANSPORT ARRANGEMENTS,20/09/2023,9133272984,2,OXFORD BUS COMPANY
OXFORDSHIRE CC,"CHILDRENS, YOUNG PEOPLE AND FAMILIES",UASC 16&17,OTHER TRANSPORT ARRANGEMENTS,20/09/2023,9133272648,49.5,OXFORDBUS.CO.UK
OXFORDSHIRE CC,SOCIAL AND COMMUNITY SERVICES,CHILDREN IN CARE NON-STAFFING - NORTH,CATERING PROVISIONS,20/09/2023,9133272588,12.4,TESCO STORES 4480
OXFORDSHIRE CC,SOCIAL AND COMMUNITY SERVICES,CHILDREN IN CARE NON-STAFFING - NORTH,PAYMENTS TO TRANSPORT OPERATORS,20/09/2023,9133272596,35.8,REDFUNNEL.CO.UK
OXFORDSHIRE CC,"CHILDRENS, YOUNG PEOPLE AND FAMILIES",THAME E&A HOME,MATERIALS,20/09/2023,9133272678,18.89,AMZNMKTPLACE
OXFORDSHIRE CC,"CHILDRENS, YOUNG PEOPLE AND FAMILIES","	LOOKED AFTER NORTH",CATERING,20/09/2023,9133272896,6.59,CHERWELL VALLEY COSTA
OXFORDSHIRE CC,CORPORATE CORE,SCHOOLS FM CATERING AREA 1,MATERIALS,20/09/2023,9133272906,37.32,AMZNMKTPLACE
OXFORDSHIRE CC,"CHILDRENS, YOUNG PEOPLE AND FAMILIES","	RESIDENTIAL STRATEGY",CATERING PROVISIONS,20/09/2023,9133272674,13.3,SAINSBURYS S/MKTS
OXFORDSHIRE CC,ENVIRONMENT AND ECONOMY,HARD FM,PREMISES REPAIRS,20/09/2023,9133272504,19,B & Q 1176
OXFORDSHIRE CC,ENVIRONMENT AND ECONOMY,HARD FM,PREMISES REPAIRS,20/09/2023,9133272512,121.9,B AND Q
OXFORDSHIRE CC,CORPORATE CORE,,STATIONERY,20/09/2023,9133272826,100.82,LYRECO UK LTD
OXFORDSHIRE CC,ENTERPRISEVC,,CAR LEASING - PRIVATE RENTALS,20/09/2023,9133272836,138.53,ENTERPRISE RENT-A-CAR
OXFORDSHIRE CC,ENTERPRISEVC,,CAR LEASING - PRIVATE RENTALS,20/09/2023,9133272844,65.98,ENTERPRISE RENT-A-CAR
OXFORDSHIRE CC,"CHILDRENS, YOUNG PEOPLE AND FAMILIES","	LEAVING CARE CITY 1",OTHER EXPENSES,20/09/2023,9133272520,619,AMZNMKTPLACE
OXFORDSHIRE CC,"CHILDRENS, YOUNG PEOPLE AND FAMILIES",THAME E&A HOME,HARDWARE AND CROCKERY,20/09/2023,9133272748,118.5,HOMEBASE LTD 091
OXFORDSHIRE CC,SOCIAL AND COMMUNITY SERVICES,CSS WANTAGE,ENTERTAINMENT EXPENSES,20/09/2023,9133272756,14.48,HOLLYWOOD BOWL
OXFORDSHIRE CC,"CHILDRENS, YOUNG PEOPLE AND FAMILIES",NTS UASC AGENCY,MATERIALS,20/09/2023,9133272544,16,AMZNMKTPLACE
OXFORDSHIRE CC,"CHILDRENS, YOUNG PEOPLE AND FAMILIES","	DISABILITIES TEAM-C",PAYMENTS TO TRANSPORT OPERATORS,20/09/2023,9133272560,56.6,CHILTERN RAILWAYS
OXFORDSHIRE CC,ENVIRONMENT AND ECONOMY,HARD FM,PREMISES REPAIRS,20/09/2023,9133272506,71.67,WWW.HISLTD.CO.UK
OXFORDSHIRE CC,ENVIRONMENT AND ECONOMY,HARD FM,PREMISES REPAIRS,20/09/2023,9133272514,15.11,WILLIAMS & CO
OXFORDSHIRE CC,CORPORATE CORE,,STATIONERY,20/09/2023,9133272828,8.96,LYRECO UK LTD
OXFORDSHIRE CC,ENTERPRISEVC,,CAR LEASING - PRIVATE RENTALS,20/09/2023,9133272838,86.18,ENTERPRISE RENT-A-CAR
OXFORDSHIRE CC,ENTERPRISEVC,,CAR LEASING - PRIVATE RENTALS,20/09/2023,9133272846,145.82,ENTERPRISE RENT-A-CAR
OXFORDSHIRE CC,"CHILDRENS, YOUNG PEOPLE AND FAMILIES",HOUSE PROJECT,OTHER TRANSPORT ARRANGEMENTS,20/09/2023,9133272874,9.8,WESTGATE OXFORD CAR PA
OXFORDSHIRE CC,"CHILDRENS, YOUNG PEOPLE AND FAMILIES","	LOOKED AFTER CITY 2",VEHICLE FUEL,20/09/2023,9133272750,38.03,TESCO PAY AT PUMP 4267
OXFORDSHIRE CC,"CHILDRENS, YOUNG PEOPLE AND FAMILIES","	SEN/ICT EQUIPMENT",PURCHASE OF IT EQUIPMENT,20/09/2023,9133272758,9.98,AMZNMKTPLACE
OXFORDSHIRE CC,CHILDREN'S & EDUCATION,THAME E&A HOME,CATERING,20/09/2023,9133272808,12.45,SAINSBURYS S/MKTS
OXFORDSHIRE CC,"CHILDRENS, YOUNG PEOPLE AND FAMILIES",WITNEY,CATERING PROVISIONS,20/09/2023,9133272772,8.1,ICELAND
OXFORDSHIRE CC,"CHILDRENS, YOUNG PEOPLE AND FAMILIES",CHILDREN IN CARE NON-STAFFING - CENTRL 1,PAYMENTS TO TRANSPORT OPERATORS,20/09/2023,9133272546,96.39,TRAINLINE
OXFORDSHIRE CC,ENVIRONMENT AND ECONOMY,HARD FM,PREMISES REPAIRS,20/09/2023,9133272508,20.99,WWW.SCREWFIX.COM
OXFORDSHIRE CC,CHILDREN'S & EDUCATION,"	OCCG GRANT",OTHER TRANSPORT ARRANGEMENTS,20/09/2023,9133272884,5,WWW.THEKEY.CO.UK
OXFORDSHIRE CC,CHILDREN'S & EDUCATION,40 THE MOORS,OTHER TRANSPORT ARRANGEMENTS,20/09/2023,9133272634,11.5,SUPERDRUG STORES PLC
OXFORDSHIRE CC,"CHILDRENS, YOUNG PEOPLE AND FAMILIES",PAUSE PROGRAMME,OTHER TRANSPORT ARRANGEMENTS,20/09/2023,9133272608,2,OXFORDBUS.CO.UK
OXFORDSHIRE CC,"CHILDRENS, YOUNG PEOPLE AND FAMILIES",FIELDWORK UASC,OTHER TRANSPORT ARRANGEMENTS,20/09/2023,9133272616,49,1M  LOGISTICS
OXFORDSHIRE CC,"CHILDRENS, YOUNG PEOPLE AND FAMILIES",FSP NON-STAFFING - CENTRAL,DOMESTIC SUPPLIES,20/09/2023,9133272960,230,WWW.ARGOS.CO.UK
OXFORDSHIRE CC,SOCIAL AND COMMUNITY SERVICES,CSS - BANBURY,MATERIALS,20/09/2023,9133272968,9.99,AMZNMKTPLACE
OXFORDSHIRE CC,"CHILDRENS, YOUNG PEOPLE AND FAMILIES","	LEAVING CARE CITY 2",MATERIALS,20/09/2023,9133272690,20.75,POUNDLAND LTD - 1949
OXFORDSHIRE CC,ENVIRONMENT AND ECONOMY,"	NAT TRAILS GENERAL",VEHICLE FUEL,20/09/2023,9133272698,78.26,BP BENSON CONNECT
OXFORDSHIRE CC,"CHILDRENS, YOUNG PEOPLE AND FAMILIES",CHILDREN IN CARE NON-STAFFING - SOUTH,PAYMENTS TO TRANSPORT OPERATORS,20/09/2023,9133272684,17.2,WWW.GWR.COM
OXFORDSHIRE CC,"CHILDRENS, YOUNG PEOPLE AND FAMILIES","	LEAVING CARE CITY 2",CATERING,20/09/2023,9133272692,10.34,STARBUCKS COFFEE
OXFORDSHIRE CC,"CHILDRENS, YOUNG PEOPLE AND FAMILIES",DIDCOT MOVE-ON HOME,CATERING PROVISIONS,20/09/2023,9133272686,12.3,SAINSBURYS PETROL
OXFORDSHIRE CC,SOCIAL AND COMMUNITY SERVICES,SCHOOLS FM CATERING AREA 2,CATERING PROVISIONS,20/09/2023,9133272694,49.02,BOOKER LTD - 38584104
OXFORDSHIRE CC,"CHILDRENS, YOUNG PEOPLE AND FAMILIES","	LEAVING CARE CITY 2",PAYMENTS TO TRANSPORT OPERATORS,20/09/2023,9133272688,9.3,GWR DIDCOT PKWY TO
OXFORDSHIRE CC,"CHILDRENS, YOUNG PEOPLE AND FAMILIES","	OCCG GRANT",MATERIALS,20/09/2023,9133272696,32.5,POUNDLAND LTD - 1586
OXFORDSHIRE CC,CORPORATE CORE,LIBRARY COLLECTIONS,"BOOKS, DVDS AND CDS",20/09/2023,9133272618,329.31,OVERDRIVE DIST
OXFORDSHIRE CC,CHILDREN'S & EDUCATION,"	LEAVING CARE CITY 2",PAYMENTS TO OTHER ESTABLISHMENTS,20/09/2023,9133272978,250,ALLPAY  A2DOMINION HOU
OXFORDSHIRE CC,"CHILDRENS, YOUNG PEOPLE AND FAMILIES",FSP NON-STAFFING - CENTRAL,OTHER TRANSPORT ARRANGEMENTS,20/09/2023,9133272986,2,STGCOACH/CTYLINK
OXFORDSHIRE CC,CHILDREN'S & EDUCATION,FIELDWORK UASC,OTHER TRANSPORT ARRANGEMENTS,20/09/2023,9133272650,17,OXFORDBUS.CO.UK
OXFORDSHIRE CC,"CHILDRENS, YOUNG PEOPLE AND FAMILIES","	OCCG GRANT",MATERIALS,20/09/2023,9133272636,7,POUNDLAND LTD - 1586
OXFORDSHIRE CC,SOCIAL AND COMMUNITY SERVICES,CSS WITNEY,CATERING,20/09/2023,9133272972,8.5,SUMUP   MADEIRA SUPERM
OXFORDSHIRE CC,CORPORATE CORE,OXFDSHIRE PUBLIC SPACE INNOVATION NETWK,PAYMENTS TO TRANSPORT OPERATORS,20/09/2023,9133272980,62.06,TRAINLINE
OXFORDSHIRE CC,"CHILDRENS, YOUNG PEOPLE AND FAMILIES",THAME E&A HOME,MATERIALS,20/09/2023,9133272680,54.11,AMZNMKTPLACE
OXFORDSHIRE CC,SOCIAL AND COMMUNITY SERVICES,CSS - BANBURY,MEDICAL AND COUNSELLING FEES,20/09/2023,9133272970,-108.9,WWW.MANAGEATHOME.CO.UK
OXFORDSHIRE CC,CHILDREN'S & EDUCATION,FIELDWORK UASC,SUBSCRIPTIONS,20/09/2023,9133272652,22.99,PUREGYM LIMITED
OXFORDSHIRE CC,CHILDREN'S & EDUCATION,CHILDREN IN CARE NON-STAFFING - SOUTH,CATERING,20/09/2023,9133272898,25.85,BREWERS FAYRE 41510610
OXFORDSHIRE CC,"CHILDRENS, YOUNG PEOPLE AND FAMILIES","	LEAVING CARE SOUTH",OTHER TRANSPORT ARRANGEMENTS,20/09/2023,9133272584,92.3,OXFORDBUS.CO.UK
OXFORDSHIRE CC,CHILDREN'S & EDUCATION,"	LEAVING CARE NORTH",CATERING PROVISIONS,20/09/2023,9133272592,10.8,TESCO STORES 2413
OXFORDSHIRE CC,"CHILDRENS, YOUNG PEOPLE AND FAMILIES",QUALITY ASSURANCE SOUTH TEAM,PAYMENTS TO TRANSPORT OPERATORS,20/09/2023,9133272974,105.66,TRAINLINE
OXFORDSHIRE CC,CORPORATE CORE,OXFDSHIRE PUBLIC SPACE INNOVATION NETWK,OTHER TRANSPORT ARRANGEMENTS,20/09/2023,9133272982,2,OXFORD BUS COMPANY
OXFORDSHIRE CC,ENVIRONMENT AND ECONOMY,"	ROW MAINT",EQUIPMENT,20/09/2023,9133272682,214.25,OXON FASTENING SYSTEMS
OXFORDSHIRE CC,"CHILDRENS, YOUNG PEOPLE AND FAMILIES",CSS - ABINGDON,CATERING PROVISIONS,20/09/2023,9133273018,2.5,TESCO STORES 2008
OXFORDSHIRE CC,CHILDREN'S & EDUCATION,"	OCCG GRANT",MATERIALS,20/09/2023,9133273026,3,POUNDLAND LTD - 2308
OXFORDSHIRE CC,CHILDREN'S & EDUCATION,"	OCCG GRANT",MATERIALS,20/09/2023,9133273022,5.99,EBAY COMMERCE UK LTD
OXFORDSHIRE CC,CHILDREN'S & EDUCATION,"	OCCG GRANT",CATERING PROVISIONS,20/09/2023,9133273030,3.5,TESCO STORES 4480
OXFORDSHIRE CC,CHILDREN'S & EDUCATION,"	OCCG GRANT",MATERIALS,20/09/2023,9133273024,1,POUNDLAND LTD - 2308
OXFORDSHIRE CC,CHILDREN'S & EDUCATION,CHILDREN IN CARE NON-STAFFING - SOUTH,CATERING,20/09/2023,9133272900,34.42,LEON 14942101
OXFORDSHIRE CC,CORPORATE CORE,INCOME TEAM,PAYMENT TO GOVERNMENT DEPARTMENTS,20/09/2023,9133272580,1.5,FIND A WILL
OXFORDSHIRE CC,CORPORATE CORE,SCHOOLS FM CATERING AREA 1,MATERIALS,20/09/2023,9133272902,77.94,AMZNMKTPLACE
OXFORDSHIRE CC,SHARED SERVICES,CSC SUPP & SERVICES,"SUPPLIES, STATIONERY AND MATERIALS",20/09/2023,9133272586,74.45,SQ  SMM MEDIA LIMITED
OXFORDSHIRE CC,"CHILDRENS, YOUNG PEOPLE AND FAMILIES",PAUSE PROGRAMME,CATERING,20/09/2023,9133272676,7.85,COSTA COFFEE 43010890
OXFORDSHIRE CC,"CHILDRENS, YOUNG PEOPLE AND FAMILIES",VIRTUAL SCHOOL POST 16 PPP,"SUPPLIES, STATIONERY AND MATERIALS",20/09/2023,9133272670,92.27,AMZNMKTPLACE
OXFORDSHIRE CC,CORPORATE CORE,SCHOOLS FM CATERING AREA 1,MATERIALS,20/09/2023,9133272904,72.8,AMZNMKTPLACE
OXFORDSHIRE CC,"CHILDRENS, YOUNG PEOPLE AND FAMILIES",FSP NON-STAFFING - CENTRAL,PAYMENTS TO TRANSPORT OPERATORS,20/09/2023,9133272920,156.6,WWW.GWR.COM
OXFORDSHIRE CC,"CHILDRENS, YOUNG PEOPLE AND FAMILIES",FSP NON-STAFFING - CENTRAL,OTHER TRANSPORT ARRANGEMENTS,20/09/2023,9133272988,2,STGCOACH/CTYLINK
OXFORDSHIRE CC,CORPORATE CORE,SCHOOLS FM CATERING AREA 4,CATERING PROVISIONS,20/09/2023,9133272664,6.35,TESCO STORES 6426
OXFORDSHIRE CC,"CHILDRENS, YOUNG PEOPLE AND FAMILIES","	RESIDENTIAL STRATEGY",OTHER TRANSPORT ARRANGEMENTS,20/09/2023,9133272672,4.5,STGCOACH/CTYLINK
OXFORDSHIRE CC,"CHILDRENS, YOUNG PEOPLE AND FAMILIES","	LOOKED AFTER NORTH",MATERIALS,20/09/2023,9133272894,14,THE WORKS
OXFORDSHIRE CC,CORPORATE CORE,"MARKETING, COMMUNICATIONS & ENGAGEMENT","PUBLICITY, PROMOTIONS AND ADVERTISEMENT",20/09/2023,9133272914,270.58,SPOTIFY
OXFORDSHIRE CC,"CHILDRENS, YOUNG PEOPLE AND FAMILIES",EYNSHAM,CATERING PROVISIONS,20/09/2023,9133272922,6.03,SPAR EYNSHAM
OXFORDSHIRE CC,"CHILDRENS, YOUNG PEOPLE AND FAMILIES",THAME E&A HOME,MATERIALS,20/09/2023,9133272568,10.49,AMZNMKTPLACE
OXFORDSHIRE CC,"CHILDRENS, YOUNG PEOPLE AND FAMILIES",FAMILY SOLUTIONS PLUS NON-STAFF - NORTH,PAYMENT TO GOVERNMENT DEPARTMENTS,20/09/2023,9133272962,14,LAMBETH INTERNET PAYM
OXFORDSHIRE CC,CORPORATE CORE,SCHOOLS FM CATERING AREA 1,CATERING PROVISIONS,20/09/2023,9133272908,2.7,MARKS&SPENCER PLC SACA
OXFORDSHIRE CC,"CHILDRENS, YOUNG PEOPLE AND FAMILIES",FSP NON-STAFFING - CENTRAL,OTHER TRANSPORT ARRANGEMENTS,20/09/2023,9133272916,59,OXFORD BUS TICKETS
OXFORDSHIRE CC,SOCIAL AND COMMUNITY SERVICES,"	CENTRAL LIBRARY",STATIONERY,20/09/2023,9133272924,16.47,RYMAN 1172
OXFORDSHIRE CC,"CHILDRENS, YOUNG PEOPLE AND FAMILIES",DIDCOT MOVE-ON HOME,CATERING PROVISIONS,20/09/2023,9133272570,133.92,B&M 514 - DICOT
OXFORDSHIRE CC,"CHILDRENS, YOUNG PEOPLE AND FAMILIES",40 THE MOORS,CATERING,20/09/2023,9133272938,107.53,SAINSBURYS.CO.UK
OXFORDSHIRE CC,CORPORATE CORE,SCHOOLS FM CATERING AREA 1,CATERING PROVISIONS,20/09/2023,9133272910,5.8,MARKS&SPENCER PLC SACA
OXFORDSHIRE CC,"CHILDRENS, YOUNG PEOPLE AND FAMILIES",FSP NON-STAFFING - CENTRAL,PAYMENTS TO TRANSPORT OPERATORS,20/09/2023,9133272918,32.8,TRAINLINE
OXFORDSHIRE CC,"CHILDRENS, YOUNG PEOPLE AND FAMILIES",PAUSE PROGRAMME,OTHER TRANSPORT ARRANGEMENTS,20/09/2023,9133272606,2,OXFORDBUS.CO.UK
OXFORDSHIRE CC,SOCIAL AND COMMUNITY SERVICES,LOOKED AFTER NORTH,PAYMENTS TO TRANSPORT OPERATORS,20/09/2023,9133272958,187,BKG HOTEL AT BOOKING.C
OXFORDSHIRE CC,SOCIAL AND COMMUNITY SERVICES,CSS - BANBURY,ENTERTAINMENT EXPENSES,20/09/2023,9133272966,15.6,SPICEBALL LEISURE CENT
OXFORDSHIRE CC,CHILDREN'S & EDUCATION,UASC 16&17,RESIDENTIAL ACTIVITIES,20/09/2023,9133273020,3.99,EBAY COMMERCE UK LTD
OXFORDSHIRE CC,CHILDREN'S & EDUCATION,"	OCCG GRANT",CATERING PROVISIONS,20/09/2023,9133273028,2.49,LIDL GB
OXFORDSHIRE CC,SOCIAL AND COMMUNITY SERVICES,CSS BICESTER,CATERING PROVISIONS,19/09/2023,9128011184,124.62,TESCO STORES 2162
OXFORDSHIRE CC,SOCIAL AND COMMUNITY SERVICES,CSS - BANBURY,MATERIALS,19/09/2023,9128011724,119.99,ROBERT DYAS ECOM
OXFORDSHIRE CC,SOCIAL AND COMMUNITY SERVICES,CSS WITNEY,CATERING PROVISIONS,19/09/2023,9128011736,20.63,CO-OP GROUP 070582
OXFORDSHIRE CC,CHILDREN'S & EDUCATION,"	LEAVING CARE CITY 2",FURNITURE,19/09/2023,9128011744,50.05,B&M 236 - COWLEY
OXFORDSHIRE CC,"CHILDRENS, YOUNG PEOPLE AND FAMILIES",VIRTUAL SCHOOL POST 16 PPP,"SUPPLIES, STATIONERY AND MATERIALS",19/09/2023,9128011408,8.18,AMZNMKTPLACE
OXFORDSHIRE CC,"CHILDRENS, YOUNG PEOPLE AND FAMILIES",VIRTUAL SCHOOL POST 16 PPP,"SUPPLIES, STATIONERY AND MATERIALS",19/09/2023,9128011416,5.98,AMZNMKTPLACE
OXFORDSHIRE CC,ENVIRONMENT AND ECONOMY,HARD FM,PREMISES REPAIRS,19/09/2023,9128011176,21.09,B & Q 1176
OXFORDSHIRE CC,"CHILDRENS, YOUNG PEOPLE AND FAMILIES","	PHYSICAL DISABILITY",DISABILITY AIDS AND EQUIPMENT,19/09/2023,9128011518,30.01,AMZNMKTPLACE
OXFORDSHIRE CC,ENVIRONMENT AND ECONOMY,HARD FM,PREMISES REPAIRS,19/09/2023,9128011178,15.16,B & Q 1176
OXFORDSHIRE CC,CORPORATE CORE,"	CORPORATE FINANCE",PAYMENTS TO TRANSPORT OPERATORS,19/09/2023,9128011390,170.6,WWW.GWR.COM
OXFORDSHIRE CC,"CHILDRENS, YOUNG PEOPLE AND FAMILIES",WITNEY,OTHER TRANSPORT ARRANGEMENTS,19/09/2023,9128011398,5.7,STGCOACH/CTYLINK
OXFORDSHIRE CC,"CHILDRENS, YOUNG PEOPLE AND FAMILIES",BANBURY CC,CATERING PROVISIONS,19/09/2023,9128011720,5.8,TESCO STORES 2064
OXFORDSHIRE CC,"CHILDRENS, YOUNG PEOPLE AND FAMILIES",UASC POST 18,CATERING,19/09/2023,9128011392,3.6,COSTA COWLEY
OXFORDSHIRE CC,"CHILDRENS, YOUNG PEOPLE AND FAMILIES",WITNEY,OTHER TRANSPORT ARRANGEMENTS,19/09/2023,9128011400,5.7,STGCOACH/CTYLINK
OXFORDSHIRE CC,"CHILDRENS, YOUNG PEOPLE AND FAMILIES","	LEAVING CARE CITY 2",OTHER TRANSPORT ARRANGEMENTS,19/09/2023,9128011450,2,STGCOACH/CTYLINK
OXFORDSHIRE CC,ENVIRONMENT AND ECONOMY,LIBRARY PROJECTS,FURNITURE,19/09/2023,9128011444,59.95,AMZNMKTPLACE
OXFORDSHIRE CC,"CHILDRENS, YOUNG PEOPLE AND FAMILIES","	LEAVING CARE CITY 2",CATERING,19/09/2023,9128011452,30,NANDOS BICESTER
OXFORDSHIRE CC,"CHILDRENS, YOUNG PEOPLE AND FAMILIES","	LEAVING CARE CITY 1",STAFF USE OF PUBLIC TRANSPORT,19/09/2023,9128011186,38.3,TRAINLINE
OXFORDSHIRE CC,"CHILDRENS, YOUNG PEOPLE AND FAMILIES",WITNEY,OTHER TRANSPORT ARRANGEMENTS,19/09/2023,9128011402,5.7,STGCOACH/CTYLINK
OXFORDSHIRE CC,"CHILDRENS, YOUNG PEOPLE AND FAMILIES",CSS WALLINGFORD,MATERIALS,19/09/2023,9128011150,5.38,AMZNMKTPLACE
OXFORDSHIRE CC,CHILDREN'S & EDUCATION,"	OCCG GRANT",MATERIALS,19/09/2023,9128011796,159.99,ARGOS BICESTER
OXFORDSHIRE CC,"CHILDRENS, YOUNG PEOPLE AND FAMILIES",CSS WALLINGFORD,MATERIALS,19/09/2023,9128011152,10.76,AMZNMKTPLACE
OXFORDSHIRE CC,"CHILDRENS, YOUNG PEOPLE AND FAMILIES","	LEAVING CARE CITY 2",CATERING,19/09/2023,9128011454,6.75,COSTA COFFEE 43010835
OXFORDSHIRE CC,ENVIRONMENT AND ECONOMY,HARD FM,PREMISES REPAIRS,19/09/2023,9128011180,20.94,WILLIAMS & CO
OXFORDSHIRE CC,"CHILDRENS, YOUNG PEOPLE AND FAMILIES","	LEAVING CARE CITY 1",OTHER EXPENSES,19/09/2023,9128011188,40,CO-OPERATIVE FOOD
OXFORDSHIRE CC,SOCIAL AND COMMUNITY SERVICES,THE OAKS EMERGENCY & ASSSESSMENT CENTRE,TELEPHONE - EQUIPMENT,19/09/2023,9128011196,10,MIP TESCO MOBILE TOPUP
OXFORDSHIRE CC,"CHILDRENS, YOUNG PEOPLE AND FAMILIES",WITNEY,OTHER TRANSPORT ARRANGEMENTS,19/09/2023,9128011396,5.7,STGCOACH/CTYLINK
OXFORDSHIRE CC,SOCIAL AND COMMUNITY SERVICES,CSS WITNEY,MATERIALS,19/09/2023,9128011732,1.25,POUNDLAND LTD - 1912
OXFORDSHIRE CC,"CHILDRENS, YOUNG PEOPLE AND FAMILIES",QUALITY ASSURANCE CITY TEAM,PAYMENTS TO TRANSPORT OPERATORS,19/09/2023,9128011740,77.54,TRAINLINE
OXFORDSHIRE CC,"CHILDRENS, YOUNG PEOPLE AND FAMILIES",STH EARLY HELP-ABNDN,DOMESTIC SUPPLIES,19/09/2023,9128011748,85.99,AMZNMKTPLACE
OXFORDSHIRE CC,SOCIAL AND COMMUNITY SERVICES,CSS WITNEY,CATERING PROVISIONS,19/09/2023,9128011734,5.75,CO-OP GROUP 070582
OXFORDSHIRE CC,"CHILDRENS, YOUNG PEOPLE AND FAMILIES",QUALITY ASSURANCE NORTH TEAM,PAYMENTS TO TRANSPORT OPERATORS,19/09/2023,9128011742,31.7,REDFUNNEL.CO.UK
OXFORDSHIRE CC,"CHILDRENS, YOUNG PEOPLE AND FAMILIES","	LEAVING CARE CITY 2",OTHER TRANSPORT ARRANGEMENTS,19/09/2023,9128011448,2,STGCOACH/CTYLINK
OXFORDSHIRE CC,"CHILDRENS, YOUNG PEOPLE AND FAMILIES","	LEAVING CARE CITY 2",CATERING PROVISIONS,19/09/2023,9128011456,48.33,SAINSBURYS S/MKTS
OXFORDSHIRE CC,"CHILDRENS, YOUNG PEOPLE AND FAMILIES",CSS WALLINGFORD,MATERIALS,19/09/2023,9128011148,6.99,AMZNMKTPLACE
OXFORDSHIRE CC,ENVIRONMENT AND ECONOMY,"	NAT TRAILS GENERAL",VEHICLES AND PLANT - REPAIRS AND MAIN,19/09/2023,9128011440,449.12,SUMUP   NB AUTO CARE
OXFORDSHIRE CC,SOCIAL AND COMMUNITY SERVICES,THE OAKS EMERGENCY & ASSSESSMENT CENTRE,CATERING PROVISIONS,19/09/2023,9128011198,105.81,TESCO STORES 4338
OXFORDSHIRE CC,"CHILDRENS, YOUNG PEOPLE AND FAMILIES",UASC 16&17,RESIDENTIAL ACTIVITIES,19/09/2023,9128011376,36,ADIDASWWW.ADIDAS.CO.UK
OXFORDSHIRE CC,"CHILDRENS, YOUNG PEOPLE AND FAMILIES",WITNEY,CATERING,19/09/2023,9128011404,3.7,SUMUP   MISSING BEAN L
OXFORDSHIRE CC,"CHILDRENS, YOUNG PEOPLE AND FAMILIES",VIRTUAL SCHOOL POST 16 PPP,"SUPPLIES, STATIONERY AND MATERIALS",19/09/2023,9128011412,179.4,AMZNMKTPLACE
OXFORDSHIRE CC,"CHILDRENS, YOUNG PEOPLE AND FAMILIES",CHILDREN IN CARE NON-STAFFING - NORTH,ENTERTAINMENT EXPENSES,19/09/2023,9128011420,14.99,THE LIGHT CINEMAS BANB
OXFORDSHIRE CC,SOCIAL AND COMMUNITY SERVICES,CSS - BANBURY,CATERING PROVISIONS,19/09/2023,9128011728,29.08,SAINSBURY'S S/MKT
OXFORDSHIRE CC,SOCIAL AND COMMUNITY SERVICES,CSS - BANBURY,CATERING,19/09/2023,9128011722,25,CAKEBOX BANBURY
OXFORDSHIRE CC,SOCIAL AND COMMUNITY SERVICES,CSS - BANBURY,MATERIALS,19/09/2023,9128011730,5.21,AMZNMKTPLACE
OXFORDSHIRE CC,"CHILDRENS, YOUNG PEOPLE AND FAMILIES",CHILDREN IN CARE NON-STAFFING - NORTH,CATERING PROVISIONS,19/09/2023,9128011426,1.25,NYA LIGHT CINEMAS (HOL
OXFORDSHIRE CC,ENVIRONMENT AND ECONOMY,"	NAT TRAILS GENERAL",MATERIALS,19/09/2023,9128011442,26.89,OXON FASTENING SYSTEMS
OXFORDSHIRE CC,"CHILDRENS, YOUNG PEOPLE AND FAMILIES",FSP NON-STAFFING - CENTRAL,CATERING PROVISIONS,19/09/2023,9128011774,10.55,TESCO STORES 6167
OXFORDSHIRE CC,"CHILDRENS, YOUNG PEOPLE AND FAMILIES","	PHYSICAL DISABILITY",DISABILITY AIDS AND EQUIPMENT,19/09/2023,9128011520,17.95,AMZNMKTPLACE
OXFORDSHIRE CC,"CHILDRENS, YOUNG PEOPLE AND FAMILIES",VIRTUAL SCHOOL POST 16 PPP,"SUPPLIES, STATIONERY AND MATERIALS",19/09/2023,9128011414,21.96,AMZNMKTPLACE
OXFORDSHIRE CC,"CHILDRENS, YOUNG PEOPLE AND FAMILIES",ATV ADOPTION OXFORD,CATERING,19/09/2023,9128011752,378.57,ZETTLE_ ART CAFE
OXFORDSHIRE CC,"CHILDRENS, YOUNG PEOPLE AND FAMILIES",CHILDREN IN CARE NON-STAFFING - SOUTH,MATERIALS,19/09/2023,9128011160,104.97,AMAZON.CO.UK 143ME4KA4
OXFORDSHIRE CC,"CHILDRENS, YOUNG PEOPLE AND FAMILIES",CHILDREN IN CARE NON-STAFFING - SOUTH,CATERING PROVISIONS,19/09/2023,9128011162,70,ASDA STORES LTD
OXFORDSHIRE CC,"CHILDRENS, YOUNG PEOPLE AND FAMILIES",FSP NON-STAFFING - CENTRAL,OTHER TRANSPORT ARRANGEMENTS,19/09/2023,9128011776,2,OXFORD BUS COMPANY
OXFORDSHIRE CC,CHILDREN'S & EDUCATION,FIELDWORK UASC,OTHER TRANSPORT ARRANGEMENTS,19/09/2023,9128011378,20.5,OXFORDBUS.CO.UK
OXFORDSHIRE CC,"CHILDRENS, YOUNG PEOPLE AND FAMILIES",CHILDREN IN CARE NON-STAFFING - NORTH,OTHER TRANSPORT ARRANGEMENTS,19/09/2023,9128011428,1.8,CAR PARK CHARGES
OXFORDSHIRE CC,"CHILDRENS, YOUNG PEOPLE AND FAMILIES",CHILDREN IN CARE NON-STAFFING - SOUTH,PAYMENTS TO TRANSPORT OPERATORS,19/09/2023,9128011164,-82.1,TRAINLINE
OXFORDSHIRE CC,CHILDREN'S & EDUCATION,FIELDWORK UASC,PAYMENTS TO TRANSPORT OPERATORS,19/09/2023,9128011380,44.42,TRAINLINE
OXFORDSHIRE CC,"CHILDRENS, YOUNG PEOPLE AND FAMILIES",FIELDWORK UASC,MATERIALS,19/09/2023,9128011712,25,CYCLE KING
OXFORDSHIRE CC,"CHILDRENS, YOUNG PEOPLE AND FAMILIES",ATV ADOPTION OXFORD,CATERING,19/09/2023,9128011754,378.58,ZETTLE_ ART CAFE
OXFORDSHIRE CC,"CHILDRENS, YOUNG PEOPLE AND FAMILIES",FSP NON-STAFFING - CENTRAL,OTHER TRANSPORT ARRANGEMENTS,19/09/2023,9128011772,2,OXFORD BUS COMPANY
OXFORDSHIRE CC,SOCIAL AND COMMUNITY SERVICES,CSS WANTAGE,POSTAGE AND DELIVERY,19/09/2023,9128011516,1.5,FEE2PAYONLINE
OXFORDSHIRE CC,"CHILDRENS, YOUNG PEOPLE AND FAMILIES","	LOOKED AFTER NORTH",CATERING,19/09/2023,9128011306,7.25,GREGGS PLC
OXFORDSHIRE CC,"CHILDRENS, YOUNG PEOPLE AND FAMILIES","	LOOKED AFTER NORTH",PAYMENTS TO TRANSPORT OPERATORS,19/09/2023,9128011632,25.16,TRAINLINE
OXFORDSHIRE CC,CHILDREN'S & EDUCATION,CHILDREN IN CARE NON-STAFFING - SOUTH,ENTERTAINMENT EXPENSES,19/09/2023,9128011640,17.5,DEEP SEA WORLD
OXFORDSHIRE CC,CHILDREN'S & EDUCATION,CHILDREN IN CARE NON-STAFFING - SOUTH,PAYMENT TO GOVERNMENT DEPARTMENTS,19/09/2023,9128011642,64,HM PASSPORT OFFICE
OXFORDSHIRE CC,"CHILDRENS, YOUNG PEOPLE AND FAMILIES",FSP NON-STAFFING - CENTRAL,MATERIALS,19/09/2023,9128011668,90,WWW.ARGOS.CO.UK
OXFORDSHIRE CC,CORPORATE CORE,SCHOOLS FM CATERING AREA 1,MATERIALS,19/09/2023,9128011660,29.99,AMZNMKTPLACE
OXFORDSHIRE CC,"CHILDRENS, YOUNG PEOPLE AND FAMILIES",FAMILY SOLUTIONS PLUS NON-STAFF � SOUTH,HIRE OF ACCOMMODATION AND FACILITIES,19/09/2023,9128011692,142.78,TRAVELODGE
OXFORDSHIRE CC,SOCIAL AND COMMUNITY SERVICES,CSS - BANBURY,CATERING PROVISIONS,19/09/2023,9128011710,53.95,SAINSBURYS.CO.UK
OXFORDSHIRE CC,CORPORATE CORE,CATERING MANAGEMENT SOFT FM,MATERIALS,19/09/2023,9128011706,198.56,AMAZON.CO.UK 142EL2KP4
OXFORDSHIRE CC,CORPORATE CORE,CATERING MANAGEMENT SOFT FM,MATERIALS,19/09/2023,9128011708,59.68,AMAZON.CO.UK 1474W2KW4
OXFORDSHIRE CC,CORPORATE CORE,INCOME TEAM,PAYMENT TO GOVERNMENT DEPARTMENTS,19/09/2023,9128011272,1.5,FIND A WILL
OXFORDSHIRE CC,CHILDREN'S & EDUCATION,THAME E&A HOME,CATERING,19/09/2023,9128011670,6.35,MARTIN MCCOLL
OXFORDSHIRE CC,CORPORATE CORE,CATERING MANAGEMENT SOFT FM,MATERIALS,19/09/2023,9128011704,27.13,AMZNMKTPLACE
OXFORDSHIRE CC,"CHILDRENS, YOUNG PEOPLE AND FAMILIES",FAMILY SOLUTIONS PLUS NON-STAFF - NORTH,PAYMENTS TO TRANSPORT OPERATORS,19/09/2023,9128011360,58.7,WWW.GWR.COM
OXFORDSHIRE CC,"CHILDRENS, YOUNG PEOPLE AND FAMILIES","	RIVERSIDE CENTRE",MATERIALS,19/09/2023,9128011596,7.99,AMAZON.CO.UK 1412A37C4
OXFORDSHIRE CC,"CHILDRENS, YOUNG PEOPLE AND FAMILIES","	LOOKED AFTER NORTH",MATERIALS,19/09/2023,9128011638,28.95,WWW.ARGOS.CO.UK
OXFORDSHIRE CC,"CHILDRENS, YOUNG PEOPLE AND FAMILIES",FAMILY SOLUTIONS PLUS NON-STAFF - NORTH,CATERING PROVISIONS,19/09/2023,9128011654,1.45,ICELAND
OXFORDSHIRE CC,"CHILDRENS, YOUNG PEOPLE AND FAMILIES",DIDCOT MOVE-ON HOME,CATERING PROVISIONS,19/09/2023,9128011340,9.54,SAINSBURYS S/MKTS
OXFORDSHIRE CC,CORPORATE CORE,SCHOOLS FM CATERING AREA 1,MATERIALS,19/09/2023,9128011656,26.94,AMZNMKTPLACE
OXFORDSHIRE CC,"CHILDRENS, YOUNG PEOPLE AND FAMILIES",CHILDREN IN CARE NON-STAFFING - NORTH,ENTERTAINMENT EXPENSES,19/09/2023,9128011422,5,THE LIGHT CINEMAS BANB
OXFORDSHIRE CC,"CHILDRENS, YOUNG PEOPLE AND FAMILIES",VIRTUAL SCHOOL POST 16 PPP,"SUPPLIES, STATIONERY AND MATERIALS",19/09/2023,9128011410,6.39,AMZNMKTPLACE
OXFORDSHIRE CC,SOCIAL AND COMMUNITY SERVICES,CSS - BANBURY,MATERIALS,19/09/2023,9128011726,30.99,AMZNMKTPLACE
OXFORDSHIRE CC,"CHILDRENS, YOUNG PEOPLE AND FAMILIES",QUALITY ASSURANCE NORTH TEAM,PAYMENTS TO TRANSPORT OPERATORS,19/09/2023,9128011738,68.77,TRAINLINE
OXFORDSHIRE CC,CHILDREN'S & EDUCATION,"	LEAVING CARE CITY 2",FURNITURE,19/09/2023,9128011746,94.5,ASDA STORE 4442
OXFORDSHIRE CC,"CHILDRENS, YOUNG PEOPLE AND FAMILIES",40 THE MOORS,CATERING PROVISIONS,19/09/2023,9128011374,41.87,SAINSBURY'S S/MKT
OXFORDSHIRE CC,"CHILDRENS, YOUNG PEOPLE AND FAMILIES",CHILDREN IN CARE NON-STAFFING - NORTH,ENTERTAINMENT EXPENSES,19/09/2023,9128011424,11.95,THE LIGHT CINEMAS BANB
OXFORDSHIRE CC,SOCIAL AND COMMUNITY SERVICES,"	PUBLIC HEALTH GENERA",TRAINING RELATED EXPENDITURE,19/09/2023,9128011568,409.32,WESTMINSTER INSIGHT
OXFORDSHIRE CC,CORPORATE CORE,,STATIONERY,19/09/2023,9128011608,445.34,LYRECO UK LTD
OXFORDSHIRE CC,CORPORATE CORE,,STATIONERY,19/09/2023,9128011616,175.61,LYRECO UK LTD
OXFORDSHIRE CC,CORPORATE CORE,,STATIONERY,19/09/2023,9128011618,17.23,LYRECO UK LTD
OXFORDSHIRE CC,CHILDREN'S & EDUCATION,"	OCCG GRANT",OTHER TRANSPORT ARRANGEMENTS,19/09/2023,9128011626,28,WWW.THEKEY.CO.UK
OXFORDSHIRE CC,"CHILDRENS, YOUNG PEOPLE AND FAMILIES",MANAGEMENT RECHARGES,HIRED AND CONTRACTED SERVICES,19/09/2023,9128011214,39.19,AMZNMKTPLACE
OXFORDSHIRE CC,SOCIAL AND COMMUNITY SERVICES,"	SHARED LIVES",CATERING PROVISIONS,19/09/2023,9128011570,9.85,WAITROSE 211
OXFORDSHIRE CC,SOCIAL AND COMMUNITY SERVICES,CHILDREN IN CARE NON-STAFFING - NORTH,HIRE OF ACCOMMODATION AND FACILITIES,19/09/2023,9128011282,118,"THE CALEDON, COWES"
OXFORDSHIRE CC,"CHILDRENS, YOUNG PEOPLE AND FAMILIES",40 THE MOORS,"SUPPLIES, STATIONERY AND MATERIALS",19/09/2023,9128011678,12.98,AMZNMKTPLACE
OXFORDSHIRE CC,"CHILDRENS, YOUNG PEOPLE AND FAMILIES",40 THE MOORS,"SUPPLIES, STATIONERY AND MATERIALS",19/09/2023,9128011680,5.79,AMZNMKTPLACE
OXFORDSHIRE CC,CORPORATE CORE,,STATIONERY,19/09/2023,9128011614,114,LYRECO UK LTD
OXFORDSHIRE CC,CORPORATE CORE,,STATIONERY,19/09/2023,9128011622,26.04,LYRECO UK LTD
OXFORDSHIRE CC,"CHILDRENS, YOUNG PEOPLE AND FAMILIES",FAMILY SOLUTIONS PLUS NON-STAFF - NORTH,PAYMENTS TO TRANSPORT OPERATORS,19/09/2023,9128011650,67.86,TRAINLINE
OXFORDSHIRE CC,CORPORATE CORE,SCHOOLS FM CATERING AREA 1,MATERIALS,19/09/2023,9128011658,46.32,AMZNMKTPLACE
OXFORDSHIRE CC,"CHILDRENS, YOUNG PEOPLE AND FAMILIES","	LOOKED AFTER NORTH",OTHER TRANSPORT ARRANGEMENTS,19/09/2023,9128011302,2.5,WARWICK DC PARKING
OXFORDSHIRE CC,"CHILDRENS, YOUNG PEOPLE AND FAMILIES",FIELDWORK UASC,PROFESSIONAL SUBSCRIPTIONS,19/09/2023,9128011310,11.89,ONTOPUP.COM
OXFORDSHIRE CC,"CHILDRENS, YOUNG PEOPLE AND FAMILIES","	LOOKED AFTER NORTH",PAYMENTS TO TRANSPORT OPERATORS,19/09/2023,9128011634,25.16,TRAINLINE
OXFORDSHIRE CC,"CHILDRENS, YOUNG PEOPLE AND FAMILIES",FAMILY SOLUTIONS PLUS NON-STAFF � SOUTH,PAYMENTS TO TRANSPORT OPERATORS,19/09/2023,9128011690,122.22,TRAINLINE
OXFORDSHIRE CC,"CHILDRENS, YOUNG PEOPLE AND FAMILIES",40 THE MOORS,CATERING,19/09/2023,9128011676,5.85,TESCO STORES 2788
OXFORDSHIRE CC,"CHILDRENS, YOUNG PEOPLE AND FAMILIES",FAMILY SOLUTIONS PLUS STAFFING - SOUTH,CLOTHING AND UNIFORMS,19/09/2023,9128011684,14,PRIMARK 440
OXFORDSHIRE CC,"CHILDRENS, YOUNG PEOPLE AND FAMILIES","	LOOKED AFTER NORTH",OTHER TRANSPORT ARRANGEMENTS,19/09/2023,9128011300,2.5,WARWICK DC PARKING
OXFORDSHIRE CC,"CHILDRENS, YOUNG PEOPLE AND FAMILIES","	LOOKED AFTER NORTH",CATERING PROVISIONS,19/09/2023,9128011304,25.7,TESCO STORES 2813
OXFORDSHIRE CC,"CHILDRENS, YOUNG PEOPLE AND FAMILIES",FIELDWORK UASC,HARDWARE AND CROCKERY,19/09/2023,9128011312,44.89,WWW.SCREWFIX.COM
OXFORDSHIRE CC,"CHILDRENS, YOUNG PEOPLE AND FAMILIES","	LOOKED AFTER NORTH",CATERING PROVISIONS,19/09/2023,9128011636,1.7,WM MORRISONS STORE
OXFORDSHIRE CC,"CHILDRENS, YOUNG PEOPLE AND FAMILIES",FAMILY SOLUTIONS PLUS NON-STAFF - NORTH,PAYMENTS TO TRANSPORT OPERATORS,19/09/2023,9128011652,8.86,TRAINLINE
OXFORDSHIRE CC,CHILDREN'S & EDUCATION,CHILDREN IN CARE NON-STAFFING - SOUTH,CATERING,19/09/2023,9128011644,20.59,PRET A MANGER
OXFORDSHIRE CC,"CHILDRENS, YOUNG PEOPLE AND FAMILIES",CHILDREN IN CARE NON-STAFFING - SOUTH,PAYMENTS TO TRANSPORT OPERATORS,19/09/2023,9128011166,-66,TRAINLINE
OXFORDSHIRE CC,"CHILDRENS, YOUNG PEOPLE AND FAMILIES",FSP NON-STAFFING - CENTRAL,PAYMENTS TO TRANSPORT OPERATORS,19/09/2023,9128011566,32,EASYJET
OXFORDSHIRE CC,"CHILDRENS, YOUNG PEOPLE AND FAMILIES",CNTL EARLY HELP-BRTN,EQUIPMENT,19/09/2023,9128011666,133.1,ASDA GEORGE COM LEEDS
OXFORDSHIRE CC,"CHILDRENS, YOUNG PEOPLE AND FAMILIES",FAMILY SOLUTIONS PLUS NON-STAFF - NORTH,PAYMENTS TO TRANSPORT OPERATORS,19/09/2023,9128011358,58.7,WWW.GWR.COM
OXFORDSHIRE CC,"CHILDRENS, YOUNG PEOPLE AND FAMILIES",MANAGEMENT RECHARGES,HIRED AND CONTRACTED SERVICES,19/09/2023,9128011220,9.89,AMZNMKTPLACE
OXFORDSHIRE CC,"CHILDRENS, YOUNG PEOPLE AND FAMILIES","	RESIDENTIAL STRATEGY",MATERIALS,19/09/2023,9128011228,-19.98,AMZ INVOPAK
OXFORDSHIRE CC,"CHILDRENS, YOUNG PEOPLE AND FAMILIES",THAME E&A HOME,MATERIALS,19/09/2023,9128011254,6.49,AMZNMKTPLACE
OXFORDSHIRE CC,CORPORATE CORE,,STATIONERY,19/09/2023,9128011610,10.4,LYRECO UK LTD
OXFORDSHIRE CC,CORPORATE CORE,,STATIONERY,19/09/2023,9128011612,37.63,LYRECO UK LTD
OXFORDSHIRE CC,"CHILDRENS, YOUNG PEOPLE AND FAMILIES","	RESIDENTIAL STRATEGY",MATERIALS,19/09/2023,9128011230,-19.98,AMZ INVOPAK
OXFORDSHIRE CC,CORPORATE CORE,,STATIONERY,19/09/2023,9128011620,70.13,LYRECO UK LTD
OXFORDSHIRE CC,CORPORATE CORE,CENTRAL BUYING TEAM,PROFESSIONAL SUBSCRIPTIONS,19/09/2023,9128011232,145,WWW.CIPS.ORG
OXFORDSHIRE CC,"CHILDRENS, YOUNG PEOPLE AND FAMILIES",KINGFISHER,"BOOKS, DVDS AND CDS",19/09/2023,9128011580,8.88,STARBUCKS
OXFORDSHIRE CC,CORPORATE CORE,THAME LIBRARY,"NEWSPAPERS, PERIODICALS AND PUBLICATIONS",19/09/2023,9128011592,5.6,SAINSBURYS S/MKTS
OXFORDSHIRE CC,SOCIAL AND COMMUNITY SERVICES,CHILDREN IN CARE NON-STAFFING - NORTH,HIRE OF ACCOMMODATION AND FACILITIES,19/09/2023,9128011284,37,"THE CALEDON, COWES"
OXFORDSHIRE CC,"CHILDRENS, YOUNG PEOPLE AND FAMILIES",FAMILY SOLUTIONS PLUS NON-STAFF - NORTH,OTHER TRANSPORT ARRANGEMENTS,19/09/2023,9128011648,4.5,OXFORDBUS.CO.UK
OXFORDSHIRE CC,"CHILDRENS, YOUNG PEOPLE AND FAMILIES",CHILDREN IN CARE NON-STAFFING - CENTRL 1,PAYMENT TO GOVERNMENT DEPARTMENTS,19/09/2023,9128011210,22,OXFORDSHIRE CC WEB1
OXFORDSHIRE CC,"CHILDRENS, YOUNG PEOPLE AND FAMILIES",MANAGEMENT RECHARGES,HIRED AND CONTRACTED SERVICES,19/09/2023,9128011218,31.16,AMZNMKTPLACE
OXFORDSHIRE CC,"CHILDRENS, YOUNG PEOPLE AND FAMILIES","	RESIDENTIAL STRATEGY",MATERIALS,19/09/2023,9128011226,599.99,AMZNMKTPLACE
OXFORDSHIRE CC,"CHILDRENS, YOUNG PEOPLE AND FAMILIES",THAME E&A HOME,CATERING PROVISIONS,19/09/2023,9128011252,203.67,TESCO STORES 2038
OXFORDSHIRE CC,"CHILDRENS, YOUNG PEOPLE AND FAMILIES",MANAGEMENT RECHARGES,HIRED AND CONTRACTED SERVICES,19/09/2023,9128011216,39.19,AMZNMKTPLACE
OXFORDSHIRE CC,"CHILDRENS, YOUNG PEOPLE AND FAMILIES",WITNEY,CATERING,19/09/2023,9128011538,23,SUMUP   ARCHIES BAKERY
OXFORDSHIRE CC,"CHILDRENS, YOUNG PEOPLE AND FAMILIES",FSP NON-STAFFING - CENTRAL,PAYMENTS TO TRANSPORT OPERATORS,19/09/2023,9128011564,149.98,EASYJET
OXFORDSHIRE CC,CHILDREN'S & EDUCATION,KINGFISHER,CATERING,18/09/2023,9119893430,8.48,MCDONALDS
OXFORDSHIRE CC,"CHILDRENS, YOUNG PEOPLE AND FAMILIES",THAME E&A HOME,CATERING PROVISIONS,18/09/2023,9119893358,69.74,SAINSBURYS SUPERMA
OXFORDSHIRE CC,"CHILDRENS, YOUNG PEOPLE AND FAMILIES","	LEAVING CARE SOUTH",OTHER TRANSPORT ARRANGEMENTS,18/09/2023,9119893372,2,STGCOACH/CTYLINK
OXFORDSHIRE CC,"CHILDRENS, YOUNG PEOPLE AND FAMILIES",PAUSE PROGRAMME,CATERING,18/09/2023,9119893388,7.2,COFFEE NO 1 WALLINGFOR
OXFORDSHIRE CC,"CHILDRENS, YOUNG PEOPLE AND FAMILIES",CSS WALLINGFORD,DRUGS AND MEDICAL SUPPLIES,18/09/2023,9119892548,61.6,AMZNMKTPLACE
OXFORDSHIRE CC,"CHILDRENS, YOUNG PEOPLE AND FAMILIES","	RESIDENTIAL STRATEGY",CATERING PROVISIONS,18/09/2023,9119892580,11.88,SUZY'S
OXFORDSHIRE CC,CORPORATE CORE,,STATIONERY,18/09/2023,9119894342,91.85,LYRECO UK LTD
OXFORDSHIRE CC,"CHILDRENS, YOUNG PEOPLE AND FAMILIES","	LEAVING CARE SOUTH",CATERING,18/09/2023,9119893376,17.65,NEDS NOODLE BAR
OXFORDSHIRE CC,"CHILDRENS, YOUNG PEOPLE AND FAMILIES",EYNSHAM,CATERING PROVISIONS,18/09/2023,9119894298,168.11,TESCO STORES 2008
OXFORDSHIRE CC,"CHILDRENS, YOUNG PEOPLE AND FAMILIES",THAME E&A HOME,CATERING PROVISIONS,18/09/2023,9119893356,4.2,SAINSBURYS S/MKTS
OXFORDSHIRE CC,"CHILDRENS, YOUNG PEOPLE AND FAMILIES","	RESIDENTIAL STRATEGY",CATERING,18/09/2023,9119892572,25.1,THE MAYFLOWER CHINESE
OXFORDSHIRE CC,CORPORATE CORE,SCHOOLS FM CATERING AREA 4,CATERING PROVISIONS,18/09/2023,9119893370,21.2,ALDI STORES
OXFORDSHIRE CC,"CHILDRENS, YOUNG PEOPLE AND FAMILIES",THAME E&A HOME,CATERING,18/09/2023,9119893384,17.2,THE WANDERING KITCHEN
OXFORDSHIRE CC,"CHILDRENS, YOUNG PEOPLE AND FAMILIES",EYNSHAM,DRUGS AND MEDICAL SUPPLIES,18/09/2023,9119894286,10.18,AMZNMKTPLACE
OXFORDSHIRE CC,"CHILDRENS, YOUNG PEOPLE AND FAMILIES",CSS WALLINGFORD,CATERING PROVISIONS,18/09/2023,9119892552,25.03,AMZNMKTPLACE
OXFORDSHIRE CC,CORPORATE CORE,,STATIONERY,18/09/2023,9119894318,65.83,LYRECO UK LTD
OXFORDSHIRE CC,"CHILDRENS, YOUNG PEOPLE AND FAMILIES",EYNSHAM,OTHER COMMUNICATIONS,18/09/2023,9119894292,10.99,NETFLIX.COM
OXFORDSHIRE CC,"CHILDRENS, YOUNG PEOPLE AND FAMILIES",CSS WANTAGE,CATERING PROVISIONS,18/09/2023,9119892664,8.18,B&M 515 - ABINGDON
OXFORDSHIRE CC,SOCIAL AND COMMUNITY SERVICES,CSS BICESTER,MATERIALS,18/09/2023,9119892672,119.99,AMZNMKTPLACE
OXFORDSHIRE CC,CORPORATE CORE,,STATIONERY,18/09/2023,9119894308,32.92,LYRECO UK LTD
OXFORDSHIRE CC,CORPORATE CORE,,STATIONERY,18/09/2023,9119894332,25.1,LYRECO UK LTD
OXFORDSHIRE CC,"CHILDRENS, YOUNG PEOPLE AND FAMILIES",EYNSHAM,CATERING PROVISIONS,18/09/2023,9119894162,8.75,MAYFIELDEGGS
OXFORDSHIRE CC,ENVIRONMENT AND ECONOMY,HARD FM,PREMISES REPAIRS,18/09/2023,9119892702,4.8,WICKES OXFORD
OXFORDSHIRE CC,"CHILDRENS, YOUNG PEOPLE AND FAMILIES",PAUSE PROGRAMME,MATERIALS,18/09/2023,9119893102,12.24,AMZNMKTPLACE
OXFORDSHIRE CC,CORPORATE CORE,,STATIONERY,18/09/2023,9119894338,65.83,LYRECO UK LTD
OXFORDSHIRE CC,"CHILDRENS, YOUNG PEOPLE AND FAMILIES","	RESIDENTIAL STRATEGY",IT SOFTWARE,18/09/2023,9119893414,39.6,ZPOS  ROYAL SPICE
OXFORDSHIRE CC,"CHILDRENS, YOUNG PEOPLE AND FAMILIES","	RESIDENTIAL STRATEGY",CATERING PROVISIONS,18/09/2023,9119893418,9.5,MARTIN MCCOLL
OXFORDSHIRE CC,ENVIRONMENT AND ECONOMY,HARD FM,PREMISES REPAIRS,18/09/2023,9119892708,83.16,WICKES OXFORD
OXFORDSHIRE CC,"CHILDRENS, YOUNG PEOPLE AND FAMILIES",PAUSE PROGRAMME,MATERIALS,18/09/2023,9119893106,10.95,AMZNMKTPLACE
OXFORDSHIRE CC,"CHILDRENS, YOUNG PEOPLE AND FAMILIES","	LOOKED AFTER NORTH",CATERING PROVISIONS,18/09/2023,9119893142,23.24,TESCO STORES 2413
OXFORDSHIRE CC,"CHILDRENS, YOUNG PEOPLE AND FAMILIES",PAUSE PROGRAMME,MATERIALS,18/09/2023,9119893436,19,POUNDLAND LTD - 1586
OXFORDSHIRE CC,"CHILDRENS, YOUNG PEOPLE AND FAMILIES",PAUSE PROGRAMME,MATERIALS,18/09/2023,9119893392,58,THEWORKS.CO.UK
OXFORDSHIRE CC,"CHILDRENS, YOUNG PEOPLE AND FAMILIES","	LOOKED AFTER NORTH",CATERING PROVISIONS,18/09/2023,9119893146,12.78,MOTO CHERWELL VALLEY
OXFORDSHIRE CC,"CHILDRENS, YOUNG PEOPLE AND FAMILIES","	RESIDENTIAL STRATEGY",CATERING PROVISIONS,18/09/2023,9119892582,12.69,TESCO STORES 4338
OXFORDSHIRE CC,CORPORATE CORE,INCOME TEAM,PAYMENT TO GOVERNMENT DEPARTMENTS,18/09/2023,9119893402,11,OXFORDSHIRE CC WEB1
OXFORDSHIRE CC,CORPORATE CORE,,STATIONERY,18/09/2023,9119894314,32.92,LYRECO UK LTD
OXFORDSHIRE CC,"CHILDRENS, YOUNG PEOPLE AND FAMILIES",FSP NON-STAFFING - CENTRAL,OTHER TRANSPORT ARRANGEMENTS,18/09/2023,9119894736,6.2,ZETTLE_ ROYAL CARS
OXFORDSHIRE CC,CORPORATE CORE,,STATIONERY,18/09/2023,9119894346,32.92,LYRECO UK LTD
OXFORDSHIRE CC,CHILDREN'S & EDUCATION,KINGFISHER,CATERING,18/09/2023,9119893422,9.29,MCDONALDS
OXFORDSHIRE CC,"CHILDRENS, YOUNG PEOPLE AND FAMILIES",PAUSE PROGRAMME,MATERIALS,18/09/2023,9119893440,4,THEWORKS.CO.UK
OXFORDSHIRE CC,CORPORATE CORE,MOTOR FLEET,MOTOR IF OWN DAMAGE,18/09/2023,9119894174,938.4,WHOLESALE AUTOPARTS
OXFORDSHIRE CC,CORPORATE CORE,THAME LIBRARY,"NEWSPAPERS, PERIODICALS AND PUBLICATIONS",18/09/2023,9119894214,5.6,SAINSBURYS S/MKTS
OXFORDSHIRE CC,"CHILDRENS, YOUNG PEOPLE AND FAMILIES",CSS WALLINGFORD,PURCHASE OF IT EQUIPMENT,18/09/2023,9119892556,39.99,AMZNMKTPLACE
OXFORDSHIRE CC,CORPORATE CORE,,STATIONERY,18/09/2023,9119894356,32.92,LYRECO UK LTD
OXFORDSHIRE CC,CHILDREN'S & EDUCATION,KINGFISHER,CATERING,18/09/2023,9119893428,14.07,OXFORD PEARTREE KFC
OXFORDSHIRE CC,"CHILDRENS, YOUNG PEOPLE AND FAMILIES",DIDCOT MOVE-ON HOME,CATERING,18/09/2023,9119893446,57.45,DELIVEROO
OXFORDSHIRE CC,CORPORATE CORE,MOTOR FLEET,MOTOR IF OWN DAMAGE,18/09/2023,9119894178,396,WHOLESALE AUTOPARTS
OXFORDSHIRE CC,CORPORATE CORE,THAME LIBRARY,CATERING PROVISIONS,18/09/2023,9119894218,7.3,SAINSBURYS S/MKTS
OXFORDSHIRE CC,"CHILDRENS, YOUNG PEOPLE AND FAMILIES","	RESIDENTIAL STRATEGY",CATERING PROVISIONS,18/09/2023,9119892576,21.5,TESCO STORES 4338
OXFORDSHIRE CC,CHILDREN'S & EDUCATION,FIELDWORK UASC,OTHER TRANSPORT ARRANGEMENTS,18/09/2023,9119893200,13.5,WWW.THEKEY.CO.UK
OXFORDSHIRE CC,"CHILDRENS, YOUNG PEOPLE AND FAMILIES",DIDCOT MOVE-ON HOME,CATERING PROVISIONS,18/09/2023,9119893256,2.8,SAINSBURYS S/MKTS
OXFORDSHIRE CC,"CHILDRENS, YOUNG PEOPLE AND FAMILIES",THAME E&A HOME,HARDWARE AND CROCKERY,18/09/2023,9119893814,137.75,HOMEBASE LTD 091
OXFORDSHIRE CC,"CHILDRENS, YOUNG PEOPLE AND FAMILIES","	LOOKED AFTER CITY 2",MATERIALS,18/09/2023,9119893838,91.72,AMZNMKTPLACE
OXFORDSHIRE CC,"CHILDRENS, YOUNG PEOPLE AND FAMILIES",KIDLINGTON LIBRARY,"NEWSPAPERS, PERIODICALS AND PUBLICATIONS",18/09/2023,9119894150,197,OXFORD HOUSE CAF?
OXFORDSHIRE CC,CORPORATE CORE,,STATIONERY,18/09/2023,9119894366,15.94,LYRECO UK LTD
OXFORDSHIRE CC,"CHILDRENS, YOUNG PEOPLE AND FAMILIES",THAME E&A HOME,VEHICLE FUEL,18/09/2023,9119893516,16.43,MELLORS MOT & GARAGE L
OXFORDSHIRE CC,"CHILDRENS, YOUNG PEOPLE AND FAMILIES",KIDLINGTON LIBRARY,"NEWSPAPERS, PERIODICALS AND PUBLICATIONS",18/09/2023,9119894142,38,OXFORD HOUSE CAF?
OXFORDSHIRE CC,"CHILDRENS, YOUNG PEOPLE AND FAMILIES",KIDLINGTON LIBRARY,"NEWSPAPERS, PERIODICALS AND PUBLICATIONS",18/09/2023,9119894138,192,OXFORD HOUSE CAF?
OXFORDSHIRE CC,"CHILDRENS, YOUNG PEOPLE AND FAMILIES","	LEAVING CARE NORTH",OTHER EXPENSES,18/09/2023,9119894156,6.2,LYNWOOD AND CO
OXFORDSHIRE CC,"CHILDRENS, YOUNG PEOPLE AND FAMILIES",UASC 16&17,DRUGS AND MEDICAL SUPPLIES,18/09/2023,9119894396,9.15,BOOTS 0346
OXFORDSHIRE CC,CHILDREN'S & EDUCATION,FAMILY SOLUTIONS PLUS NON-STAFF - NORTH,CATERING PROVISIONS,18/09/2023,9119894804,78.68,ALDI 49 775
OXFORDSHIRE CC,"CHILDRENS, YOUNG PEOPLE AND FAMILIES","	LOOKED AFTER CITY 2",FURNITURE,18/09/2023,9119893822,231,IKEA LTD SHOP ONLINE
OXFORDSHIRE CC,"CHILDRENS, YOUNG PEOPLE AND FAMILIES",KIDLINGTON LIBRARY,"NEWSPAPERS, PERIODICALS AND PUBLICATIONS",18/09/2023,9119894146,186.8,OXFORD HOUSE CAF?
OXFORDSHIRE CC,"CHILDRENS, YOUNG PEOPLE AND FAMILIES",CSS WALLINGFORD,STATIONERY,18/09/2023,9119892544,7.78,AMZNMKTPLACE
OXFORDSHIRE CC,"CHILDRENS, YOUNG PEOPLE AND FAMILIES",WITNEY,CATERING PROVISIONS,18/09/2023,9119892592,17.4,ASDA STORES 4920
OXFORDSHIRE CC,"CHILDRENS, YOUNG PEOPLE AND FAMILIES",WITNEY,CATERING PROVISIONS,18/09/2023,9119892588,77.77,ASDA STORES 4920
OXFORDSHIRE CC,CORPORATE CORE,,STATIONERY,18/09/2023,9119894322,274.28,LYRECO UK LTD
OXFORDSHIRE CC,"CHILDRENS, YOUNG PEOPLE AND FAMILIES",EYNSHAM,CATERING,18/09/2023,9119892568,2.2,THE MAYFLOWER CHINESE
OXFORDSHIRE CC,"CHILDRENS, YOUNG PEOPLE AND FAMILIES",DIDCOT MOVE-ON HOME,CATERING PROVISIONS,18/09/2023,9119893258,2.43,SAINSBURYS S/MKTS
OXFORDSHIRE CC,"CHILDRENS, YOUNG PEOPLE AND FAMILIES",WITNEY,DRUGS AND MEDICAL SUPPLIES,18/09/2023,9119892602,10.49,SUPERDRUG STORES PLC
OXFORDSHIRE CC,"CHILDRENS, YOUNG PEOPLE AND FAMILIES",WITNEY,MATERIALS,18/09/2023,9119892606,3,POUNDLAND LTD - 1912
OXFORDSHIRE CC,SOCIAL AND COMMUNITY SERVICES,CSS - ABINGDON,MATERIALS,18/09/2023,9119892610,140.71,CARESHOP
OXFORDSHIRE CC,SOCIAL AND COMMUNITY SERVICES,CSS - OXFORD,CATERING PROVISIONS,18/09/2023,9119893320,49.16,ALDI STORES 775-142
OXFORDSHIRE CC,CORPORATE CORE,,STATIONERY,18/09/2023,9119894302,192,LYRECO UK LTD
OXFORDSHIRE CC,CORPORATE CORE,,STATIONERY,18/09/2023,9119894328,34.72,LYRECO UK LTD
OXFORDSHIRE CC,"CHILDRENS, YOUNG PEOPLE AND FAMILIES",THAME E&A HOME,CATERING PROVISIONS,18/09/2023,9119893282,8.7,SAINSBURYS S/MKTS
OXFORDSHIRE CC,"CHILDRENS, YOUNG PEOPLE AND FAMILIES",WITNEY,IT SERVICES,18/09/2023,9119892598,23.66,BONUSPRINT BONUSPRINT
OXFORDSHIRE CC,SOCIAL AND COMMUNITY SERVICES,CSS - ABINGDON,MATERIALS,18/09/2023,9119892614,15.99,WWW.THEWORKS.CO.UK
OXFORDSHIRE CC,SOCIAL AND COMMUNITY SERVICES,CSS - OXFORD,CATERING PROVISIONS,18/09/2023,9119893322,28.97,ALDI STORES 775-142
OXFORDSHIRE CC,SOCIAL AND COMMUNITY SERVICES,CSS - OXFORD,MATERIALS,18/09/2023,9119893686,-9.99,AMZ MONEY CRUNCHER
OXFORDSHIRE CC,SOCIAL AND COMMUNITY SERVICES,CSS - BANBURY,MATERIALS,18/09/2023,9119894648,8.98,AMZNMKTPLACE
OXFORDSHIRE CC,"CHILDRENS, YOUNG PEOPLE AND FAMILIES","	RESIDENTIAL STRATEGY",MATERIALS,18/09/2023,9119892848,-19.16,AMZ HABERCRAFTS
OXFORDSHIRE CC,SOCIAL AND COMMUNITY SERVICES,CHILDREN IN CARE NON-STAFFING - NORTH,VEHICLE FUEL,18/09/2023,9119893050,11.5,MORRISON PETROL
OXFORDSHIRE CC,CHILDREN'S & EDUCATION,40 THE MOORS,CATERING PROVISIONS,18/09/2023,9119894622,160.01,SAINSBURYS.CO.UK
OXFORDSHIRE CC,SOCIAL AND COMMUNITY SERVICES,CSS WANTAGE,ENTERTAINMENT EXPENSES,18/09/2023,9119893902,23.8,WWW.BETTER.ORG.UK
OXFORDSHIRE CC,CHILDREN'S & EDUCATION,40 THE MOORS,CATERING,18/09/2023,9119894038,10,COSTA COFFEE
OXFORDSHIRE CC,"CHILDRENS, YOUNG PEOPLE AND FAMILIES",THAME E&A HOME,CATERING PROVISIONS,18/09/2023,9119893520,10.35,MARTIN MCCOLL
OXFORDSHIRE CC,"CHILDRENS, YOUNG PEOPLE AND FAMILIES","	RESIDENTIAL STRATEGY",MATERIALS,18/09/2023,9119892796,29.49,AMZNMKTPLACE
OXFORDSHIRE CC,"CHILDRENS, YOUNG PEOPLE AND FAMILIES","	RESIDENTIAL STRATEGY",MATERIALS,18/09/2023,9119892808,87.96,AMZNMKTPLACE
OXFORDSHIRE CC,SOCIAL AND COMMUNITY SERVICES,HOLTON SITE,MATERIALS,18/09/2023,9119892780,10.99,AMZNMKTPLACE
OXFORDSHIRE CC,"CHILDRENS, YOUNG PEOPLE AND FAMILIES",EYNSHAM,CATERING PROVISIONS,18/09/2023,9119894554,9.1,SAINSBURYS S/MKTS
OXFORDSHIRE CC,"CHILDRENS, YOUNG PEOPLE AND FAMILIES","	SEN/ICT EQUIPMENT",OTHER TRANSPORT ARRANGEMENTS,18/09/2023,9119893090,13.79,UPS LTD
OXFORDSHIRE CC,CORPORATE CORE,FRONTIER CAV EU PROJECT,PAYMENTS TO TRANSPORT OPERATORS,18/09/2023,9119894790,70.9,CROSS COUNTRY RAIL
OXFORDSHIRE CC,"CHILDRENS, YOUNG PEOPLE AND FAMILIES","	LOOKED AFTER CITY 2",FURNITURE,18/09/2023,9119893828,71.1,BLINDS 2 GO LTD
OXFORDSHIRE CC,ENTERPRISEVC,,CAR LEASING - PRIVATE RENTALS,18/09/2023,9119894374,"1,779.32",ENTERPRISE RENT-A-CAR
OXFORDSHIRE CC,"CHILDRENS, YOUNG PEOPLE AND FAMILIES","	OCCG GRANT",MATERIALS,18/09/2023,9119893502,14.5,POUNDLAND LTD - 1586
OXFORDSHIRE CC,"CHILDRENS, YOUNG PEOPLE AND FAMILIES",THAME E&A HOME,CATERING,18/09/2023,9119893512,43.7,SUMUP   COTSWOLDS FIRE
OXFORDSHIRE CC,"CHILDRENS, YOUNG PEOPLE AND FAMILIES",THAME E&A HOME,OTHER TRANSPORT ARRANGEMENTS,18/09/2023,9119893528,1.9,VALE OF WH PARKING FEE
OXFORDSHIRE CC,CHILDREN'S & EDUCATION,"	OCCG GRANT",DRUGS AND MEDICAL SUPPLIES,18/09/2023,9119894812,10.35,SUPERDRUG STORES PLC
OXFORDSHIRE CC,SOCIAL AND COMMUNITY SERVICES,CHILDREN IN CARE NON-STAFFING - NORTH,CATERING,18/09/2023,9119893054,2.79,MCDONALDS
OXFORDSHIRE CC,"CHILDRENS, YOUNG PEOPLE AND FAMILIES","	SEN/ICT EQUIPMENT",OTHER TRANSPORT ARRANGEMENTS,18/09/2023,9119893092,13.19,UPS LTD
OXFORDSHIRE CC,"CHILDRENS, YOUNG PEOPLE AND FAMILIES","	LOOKED AFTER CITY 2",HARDWARE AND CROCKERY,18/09/2023,9119893834,111.92,B&Q LTD
OXFORDSHIRE CC,CORPORATE CORE,,STATIONERY,18/09/2023,9119894358,134.7,LYRECO UK LTD
OXFORDSHIRE CC,"CHILDRENS, YOUNG PEOPLE AND FAMILIES",UASC 16&17,OTHER EXPENSES,18/09/2023,9119894390,91.5,WWW.THEKEY.CO.UK
OXFORDSHIRE CC,"CHILDRENS, YOUNG PEOPLE AND FAMILIES","	LOOKED AFTER NORTH",CATERING,18/09/2023,9119894418,7.09,MCDONALDS
OXFORDSHIRE CC,"CHILDRENS, YOUNG PEOPLE AND FAMILIES",FAMILY SOLUTIONS PLUS NON-STAFF � SOUTH,CATERING PROVISIONS,18/09/2023,9119893784,12.95,TESCO STORES 4377
OXFORDSHIRE CC,CHILDREN'S & EDUCATION,"	LEAVING CARE CITY 2",FURNITURE,18/09/2023,9119894668,85,ASDA GEORGE COM LEEDS
OXFORDSHIRE CC,"CHILDRENS, YOUNG PEOPLE AND FAMILIES","	RESIDENTIAL STRATEGY",MATERIALS,18/09/2023,9119892850,48.88,AMZNMKTPLACE
OXFORDSHIRE CC,SOCIAL AND COMMUNITY SERVICES,CSS WITNEY,MATERIALS,18/09/2023,9119893888,17.67,AMZNMKTPLACE
OXFORDSHIRE CC,CHILDREN'S & EDUCATION,FIELDWORK UASC,OTHER TRANSPORT ARRANGEMENTS,18/09/2023,9119893196,13.5,WWW.THEKEY.CO.UK
OXFORDSHIRE CC,"CHILDRENS, YOUNG PEOPLE AND FAMILIES",EYNSHAM,CATERING PROVISIONS,18/09/2023,9119894548,9.39,SPAR EYNSHAM
OXFORDSHIRE CC,"CHILDRENS, YOUNG PEOPLE AND FAMILIES",CHILDREN IN CARE NON-STAFFING - CENTRL 1,OTHER TRANSPORT ARRANGEMENTS,18/09/2023,9119893472,49.5,OXFORD BUS TICKETS
OXFORDSHIRE CC,SOCIAL AND COMMUNITY SERVICES,SCHOOLS FM CATERING AREA 2,CATERING PROVISIONS,18/09/2023,9119893496,15.9,SAINSBURYS S/MKTS
OXFORDSHIRE CC,CORPORATE CORE,INCOME TEAM,PAYMENT TO GOVERNMENT DEPARTMENTS,18/09/2023,9119892984,11,OXFORDSHIRE CC WEB1
OXFORDSHIRE CC,"CHILDRENS, YOUNG PEOPLE AND FAMILIES","	OSCB",MATERIALS,18/09/2023,9119894642,13.99,AMZNMKTPLACE
OXFORDSHIRE CC,"CHILDRENS, YOUNG PEOPLE AND FAMILIES","	RESIDENTIAL STRATEGY",MATERIALS,18/09/2023,9119892820,89.96,AMZNMKTPLACE
OXFORDSHIRE CC,"CHILDRENS, YOUNG PEOPLE AND FAMILIES","	RESIDENTIAL STRATEGY",MATERIALS,18/09/2023,9119892834,15.96,AMZNMKTPLACE
OXFORDSHIRE CC,CORPORATE CORE,SKILLS & LEARNING,MATERIALS,18/09/2023,9119893762,200,ONE4ALL
OXFORDSHIRE CC,"CHILDRENS, YOUNG PEOPLE AND FAMILIES",EET SERVICE,CLOTHING AND UNIFORMS,18/09/2023,9119893768,39.99,AMZNMKTPLACE
OXFORDSHIRE CC,SOCIAL AND COMMUNITY SERVICES,CSS - BANBURY,MATERIALS,18/09/2023,9119894652,29.98,AMZNMKTPLACE
OXFORDSHIRE CC,"CHILDRENS, YOUNG PEOPLE AND FAMILIES","	RESIDENTIAL STRATEGY",MATERIALS,18/09/2023,9119892854,44.98,AMZNMKTPLACE
OXFORDSHIRE CC,"CHILDRENS, YOUNG PEOPLE AND FAMILIES","	MARLBOROUGH",MATERIALS,18/09/2023,9119893048,156.88,AMZNMKTPLACE
OXFORDSHIRE CC,SOCIAL AND COMMUNITY SERVICES,CSS WITNEY,MATERIALS,18/09/2023,9119893892,9.95,AMZNMKTPLACE
OXFORDSHIRE CC,CHILDREN'S & EDUCATION,40 THE MOORS,CATERING PROVISIONS,18/09/2023,9119894034,9.36,TESCO STORES 2788
OXFORDSHIRE CC,"CHILDRENS, YOUNG PEOPLE AND FAMILIES","	RESIDENTIAL STRATEGY",MATERIALS,18/09/2023,9119892792,19.16,AMZNMKTPLACE
OXFORDSHIRE CC,"CHILDRENS, YOUNG PEOPLE AND FAMILIES","	RESIDENTIAL STRATEGY",MATERIALS,18/09/2023,9119892806,3.99,AMZNMKTPLACE
OXFORDSHIRE CC,"CHILDRENS, YOUNG PEOPLE AND FAMILIES","	RESIDENTIAL STRATEGY",MATERIALS,18/09/2023,9119892822,89.96,AMZNMKTPLACE
OXFORDSHIRE CC,"CHILDRENS, YOUNG PEOPLE AND FAMILIES","	RESIDENTIAL STRATEGY",MATERIALS,18/09/2023,9119892838,93.12,AMZNMKTPLACE
OXFORDSHIRE CC,CORPORATE CORE,"	LEGAL SERVICES",STAFF USE OF PUBLIC TRANSPORT,18/09/2023,9119893776,95.4,WWW.GWR.COM
OXFORDSHIRE CC,"CHILDRENS, YOUNG PEOPLE AND FAMILIES","	RESIDENTIAL STRATEGY",MATERIALS,18/09/2023,9119892858,65.81,AMZNMKTPLACE
OXFORDSHIRE CC,SOCIAL AND COMMUNITY SERVICES,CSS WANTAGE,ENTERTAINMENT EXPENSES,18/09/2023,9119893900,9.9,WWW.BETTER.ORG.UK
OXFORDSHIRE CC,"CHILDRENS, YOUNG PEOPLE AND FAMILIES",DIDCOT MOVE-ON HOME,CATERING,18/09/2023,9119894460,2.49,BURGER KING
OXFORDSHIRE CC,"CHILDRENS, YOUNG PEOPLE AND FAMILIES",DIDCOT MOVE-ON HOME,CATERING PROVISIONS,18/09/2023,9119892960,17.95,SAINSBURYS SMKT
OXFORDSHIRE CC,SOCIAL AND COMMUNITY SERVICES,CSS WITNEY,CLOTHING AND UNIFORMS,18/09/2023,9119894446,129,CREW CLOTHING CO LIMIT
OXFORDSHIRE CC,SOCIAL AND COMMUNITY SERVICES,CSS - BANBURY,MATERIALS,18/09/2023,9119894656,2.98,CARD FACTORY
OXFORDSHIRE CC,CHILDREN'S & EDUCATION,"	OCCG GRANT",MATERIALS,18/09/2023,9119894808,22,WWW.ARGOS.CO.UK
OXFORDSHIRE CC,"CHILDRENS, YOUNG PEOPLE AND FAMILIES",CSS - ABINGDON,CATERING PROVISIONS,18/09/2023,9119894798,9,TESCO STORES 2008
OXFORDSHIRE CC,"CHILDRENS, YOUNG PEOPLE AND FAMILIES",40 THE MOORS,RESIDENTIAL ACTIVITIES,18/09/2023,9119894528,13.98,SUNDAE GELATO
OXFORDSHIRE CC,"CHILDRENS, YOUNG PEOPLE AND FAMILIES",EYNSHAM,CATERING,18/09/2023,9119894552,8,ZETTLE_ GELATERIA ALFO
OXFORDSHIRE CC,CHILDREN'S & EDUCATION,THAME E&A HOME,CATERING PROVISIONS,18/09/2023,9119892722,25.09,TESCO PFS 3978
OXFORDSHIRE CC,SOCIAL AND COMMUNITY SERVICES,THE OAKS EMERGENCY & ASSSESSMENT CENTRE,IT SOFTWARE,18/09/2023,9119892744,36.6,ZPOS  ROYAL SPICE
OXFORDSHIRE CC,"CHILDRENS, YOUNG PEOPLE AND FAMILIES",DIDCOT MOVE-ON HOME,CATERING PROVISIONS,18/09/2023,9119893452,25.15,ASDA STORES 5123
OXFORDSHIRE CC,"CHILDRENS, YOUNG PEOPLE AND FAMILIES","	LEAVING CARE CITY 2",PAYMENTS TO TRANSPORT OPERATORS,18/09/2023,9119893464,92.31,TRAINLINE
OXFORDSHIRE CC,"CHILDRENS, YOUNG PEOPLE AND FAMILIES",CHILDREN IN CARE NON-STAFFING - NORTH,OTHER TRANSPORT ARRANGEMENTS,18/09/2023,9119893482,33.7,BLUELINE TAXIS
OXFORDSHIRE CC,"CHILDRENS, YOUNG PEOPLE AND FAMILIES",DIDCOT MOVE-ON HOME,MATERIALS,18/09/2023,9119894462,8.95,CARD FACTORY
OXFORDSHIRE CC,SOCIAL AND COMMUNITY SERVICES,COMMUNITY PARTNERSHIP TEAM,CATERING PROVISIONS,18/09/2023,9119892944,4.8,CO-OP FOOD
OXFORDSHIRE CC,"CHILDRENS, YOUNG PEOPLE AND FAMILIES",DIDCOT MOVE-ON HOME,CATERING PROVISIONS,18/09/2023,9119892962,15,SAINSBURYS SMKT
OXFORDSHIRE CC,CORPORATE CORE,INCOME TEAM,PAYMENT TO GOVERNMENT DEPARTMENTS,18/09/2023,9119892988,1.5,FIND A WILL
OXFORDSHIRE CC,"CHILDRENS, YOUNG PEOPLE AND FAMILIES",40 THE MOORS,OTHER EXPENSES,18/09/2023,9119893014,13.99,AMZNMKTPLACE
OXFORDSHIRE CC,"CHILDRENS, YOUNG PEOPLE AND FAMILIES",DIDCOT MOVE-ON HOME,CATERING PROVISIONS,18/09/2023,9119893454,6.09,ASDA STORES 5123
OXFORDSHIRE CC,"CHILDRENS, YOUNG PEOPLE AND FAMILIES","	LEAVING CARE CITY 2",MATERIALS,18/09/2023,9119893468,22.95,WWW.ARGOS.CO.UK
OXFORDSHIRE CC,"CHILDRENS, YOUNG PEOPLE AND FAMILIES",CHILDREN IN CARE NON-STAFFING - NORTH,OTHER TRANSPORT ARRANGEMENTS,18/09/2023,9119893488,29.2,BLUELINE TAXIS
OXFORDSHIRE CC,"CHILDRENS, YOUNG PEOPLE AND FAMILIES",FAMILY SOLUTIONS PLUS NON-STAFF - NORTH,PAYMENTS TO TRANSPORT OPERATORS,18/09/2023,9119894434,32.39,TRAINLINE
OXFORDSHIRE CC,"CHILDRENS, YOUNG PEOPLE AND FAMILIES",DIDCOT MOVE-ON HOME,CATERING PROVISIONS,18/09/2023,9119894452,25.54,SAINSBURYS SMKT
OXFORDSHIRE CC,"CHILDRENS, YOUNG PEOPLE AND FAMILIES",DIDCOT MOVE-ON HOME,CATERING PROVISIONS,18/09/2023,9119894466,5,SAINSBURYS SMKT
OXFORDSHIRE CC,"CHILDRENS, YOUNG PEOPLE AND FAMILIES",THAME E&A HOME,ENTERTAINMENT EXPENSES,18/09/2023,9119892754,39,ODEON CINEMAS
OXFORDSHIRE CC,SOCIAL AND COMMUNITY SERVICES,CSS - BANBURY,MATERIALS,18/09/2023,9119894660,28.99,AMZNMKTPLACE
OXFORDSHIRE CC,"CHILDRENS, YOUNG PEOPLE AND FAMILIES",40 THE MOORS,CLOTHING AND UNIFORMS,18/09/2023,9119893016,-7,PRIMARK 440
OXFORDSHIRE CC,"CHILDRENS, YOUNG PEOPLE AND FAMILIES","	LEAVING CARE SOUTH",OTHER TRANSPORT ARRANGEMENTS,18/09/2023,9119893044,4.1,PARKING-WALTON ST
OXFORDSHIRE CC,CHILDREN'S & EDUCATION,FIELDWORK UASC,OTHER TRANSPORT ARRANGEMENTS,18/09/2023,9119893192,13.5,WWW.THEKEY.CO.UK
OXFORDSHIRE CC,"CHILDRENS, YOUNG PEOPLE AND FAMILIES",40 THE MOORS,CATERING,18/09/2023,9119894534,5.08,NOOR HALAL MEAT OX4 1R
OXFORDSHIRE CC,"CHILDRENS, YOUNG PEOPLE AND FAMILIES",40 THE MOORS,MATERIALS,18/09/2023,9119894538,14.75,PHOTOGRAPHS
OXFORDSHIRE CC,"CHILDRENS, YOUNG PEOPLE AND FAMILIES",EYNSHAM,OTHER TRANSPORT ARRANGEMENTS,18/09/2023,9119894558,5.8,WESTGATE OXFORD CAR PA
OXFORDSHIRE CC,"CHILDRENS, YOUNG PEOPLE AND FAMILIES",CHILDREN IN CARE NON-STAFFING - SOUTH,PAYMENTS TO TRANSPORT OPERATORS,18/09/2023,9119893456,17.2,WWW.GWR.COM
OXFORDSHIRE CC,"CHILDRENS, YOUNG PEOPLE AND FAMILIES",THAME E&A HOME,CATERING PROVISIONS,18/09/2023,9119892948,5.78,TESCO STORES 2038
OXFORDSHIRE CC,CORPORATE CORE,INCOME TEAM,PAYMENT TO GOVERNMENT DEPARTMENTS,18/09/2023,9119892992,1.5,FIND A WILL
OXFORDSHIRE CC,"CHILDRENS, YOUNG PEOPLE AND FAMILIES","	RESIDENTIAL STRATEGY",MATERIALS,18/09/2023,9119892816,2,POST OFFICE COUNTER
OXFORDSHIRE CC,"CHILDRENS, YOUNG PEOPLE AND FAMILIES","	RESIDENTIAL STRATEGY",MATERIALS,18/09/2023,9119892828,15.96,AMZNMKTPLACE
OXFORDSHIRE CC,SOCIAL AND COMMUNITY SERVICES,WALLINGFORD LIBRARY,CATERING PROVISIONS,18/09/2023,9119894400,1.55,WAITROSE 675
OXFORDSHIRE CC,"CHILDRENS, YOUNG PEOPLE AND FAMILIES",THAME E&A HOME,PAYMENTS TO VOLUNTARY BODIES,18/09/2023,9119893524,5,ACACIA UK
OXFORDSHIRE CC,"CHILDRENS, YOUNG PEOPLE AND FAMILIES","	RESIDENTIAL STRATEGY",MATERIALS,18/09/2023,9119892798,29.49,AMZNMKTPLACE
OXFORDSHIRE CC,CORPORATE CORE,"MARKETING, COMMUNICATIONS & ENGAGEMENT","PUBLICITY, PROMOTIONS AND ADVERTISEMENT",18/09/2023,9119894482,500,FACEBK  M5GUPTB9Z2
OXFORDSHIRE CC,"CHILDRENS, YOUNG PEOPLE AND FAMILIES",FSP NON-STAFFING - CENTRAL,OTHER TRANSPORT ARRANGEMENTS,18/09/2023,9119894728,2,OXFORD BUS COMPANY
OXFORDSHIRE CC,"CHILDRENS, YOUNG PEOPLE AND FAMILIES","	LEAVING CARE CITY 2",CATERING,18/09/2023,9119893590,3.15,GREGGS
OXFORDSHIRE CC,"CHILDRENS, YOUNG PEOPLE AND FAMILIES","	RESIDENTIAL STRATEGY",MATERIALS,18/09/2023,9119892802,17.96,AMZNMKTPLACE
OXFORDSHIRE CC,"CHILDRENS, YOUNG PEOPLE AND FAMILIES",EYNSHAM,CATERING,18/09/2023,9119894562,3.99,PYD TOMMI'S OXFORD
OXFORDSHIRE CC,"CHILDRENS, YOUNG PEOPLE AND FAMILIES",EYNSHAM,TELEPHONE - CALLS,18/09/2023,9119894486,10,TESCO PFS 2488
OXFORDSHIRE CC,"CHILDRENS, YOUNG PEOPLE AND FAMILIES",FSP NON-STAFFING - CENTRAL,OTHER TRANSPORT ARRANGEMENTS,18/09/2023,9119894732,2,STGCOACH/CTYLINK
OXFORDSHIRE CC,ENVIRONMENT AND ECONOMY,"	NAT TRAILS GENERAL",CATERING PROVISIONS,18/09/2023,9119893556,5,CO OPERATIVE FOOD
OXFORDSHIRE CC,"CHILDRENS, YOUNG PEOPLE AND FAMILIES",EYNSHAM,CATERING,18/09/2023,9119894564,3.3,PYD TOMMI'S OXFORD
OXFORDSHIRE CC,"CHILDRENS, YOUNG PEOPLE AND FAMILIES",THAME E&A HOME,CATERING PROVISIONS,18/09/2023,9119892752,23.02,TESCO STORES 2038
OXFORDSHIRE CC,"CHILDRENS, YOUNG PEOPLE AND FAMILIES",FAMILY SOLUTIONS PLUS NON-STAFF - NORTH,"SUPPLIES, STATIONERY AND MATERIALS",18/09/2023,9119894438,25,VOUCHER EXPRESS
OXFORDSHIRE CC,"CHILDRENS, YOUNG PEOPLE AND FAMILIES",DIDCOT MOVE-ON HOME,CATERING PROVISIONS,18/09/2023,9119894456,6.19,SAINSBURYS SMKT
OXFORDSHIRE CC,"CHILDRENS, YOUNG PEOPLE AND FAMILIES",DIDCOT MOVE-ON HOME,CATERING PROVISIONS,18/09/2023,9119894470,16,SAINSBURYS SMKT
OXFORDSHIRE CC,"CHILDRENS, YOUNG PEOPLE AND FAMILIES","	RESIDENTIAL STRATEGY",MATERIALS,18/09/2023,9119892812,15.8,AMZNMKTPLACE
OXFORDSHIRE CC,"CHILDRENS, YOUNG PEOPLE AND FAMILIES","	RESIDENTIAL STRATEGY",MATERIALS,18/09/2023,9119892824,134.94,AMZNMKTPLACE
OXFORDSHIRE CC,"CHILDRENS, YOUNG PEOPLE AND FAMILIES","	RESIDENTIAL STRATEGY",MATERIALS,18/09/2023,9119892842,152.01,AMZNMKTPLACE
OXFORDSHIRE CC,CORPORATE CORE,"MARKETING, COMMUNICATIONS & ENGAGEMENT",SUBSCRIPTIONS,18/09/2023,9119894476,748.22,GRAMMARLY COUG5QD50
OXFORDSHIRE CC,CHILDREN'S & EDUCATION,THAME E&A HOME,CATERING,18/09/2023,9119894494,25.96,MCDONALDS 296
OXFORDSHIRE CC,ENVIRONMENT AND ECONOMY,HARD FM,PREMISES REPAIRS,18/09/2023,9119892712,85.57,WILLIAMS & CO
OXFORDSHIRE CC,CHILDREN'S & EDUCATION,THAME E&A HOME,CATERING PROVISIONS,18/09/2023,9119892718,33.95,WATERFRONT CAF?
OXFORDSHIRE CC,CORPORATE CORE,BUSINESS INTELLECTUAL PROPERTY CENTRE,MATERIALS,18/09/2023,9119893642,87.48,AMZNMKTPLACE
OXFORDSHIRE CC,"CHILDRENS, YOUNG PEOPLE AND FAMILIES",FAMILY SOLUTIONS PLUS NON-STAFF - NORTH,MATERIALS,18/09/2023,9119894442,10,UW PPM TOP UP
OXFORDSHIRE CC,"CHILDRENS, YOUNG PEOPLE AND FAMILIES",FSP NON-STAFFING - CENTRAL,OTHER TRANSPORT ARRANGEMENTS,18/09/2023,9119894738,2,OXFORD BUS COMPANY
OXFORDSHIRE CC,CORPORATE CORE,"MARKETING, COMMUNICATIONS & ENGAGEMENT","PUBLICITY, PROMOTIONS AND ADVERTISEMENT",18/09/2023,9119894478,500,GOOGLE ADS4896546035
OXFORDSHIRE CC,SOCIAL AND COMMUNITY SERVICES,THE OAKS EMERGENCY & ASSSESSMENT CENTRE,PROFESSIONAL SUBSCRIPTIONS,18/09/2023,9119892740,23.78,ONTOPUP.COM
OXFORDSHIRE CC,"CHILDRENS, YOUNG PEOPLE AND FAMILIES",DIDCOT MOVE-ON HOME,CATERING PROVISIONS,18/09/2023,9119893458,45.03,SAINSBURYS S/MKTS
OXFORDSHIRE CC,"CHILDRENS, YOUNG PEOPLE AND FAMILIES",CHILDREN IN CARE NON-STAFFING - CENTRL 1,PAYMENTS TO TRANSPORT OPERATORS,18/09/2023,9119893478,30.87,TRAINLINE
OXFORDSHIRE CC,"CHILDRENS, YOUNG PEOPLE AND FAMILIES",BROADBAND PROJECT,IT SOFTWARE,18/09/2023,9119892904,37.27,IOMART.IO
OXFORDSHIRE CC,ENVIRONMENT AND ECONOMY,OPERATIONS,"SUPPLIES, STATIONERY AND MATERIALS",15/09/2023,9112125232,9,WLCOLLER
OXFORDSHIRE CC,"CHILDRENS, YOUNG PEOPLE AND FAMILIES",FSP NON-STAFFING - CENTRAL,OTHER TRANSPORT ARRANGEMENTS,15/09/2023,9112125918,2,ARRIVA THE SHIRES LIMI
OXFORDSHIRE CC,ENVIRONMENT AND ECONOMY,HARD FM,PREMISES REPAIRS,15/09/2023,9112124854,24.83,WWW.SCREWFIX.COM
OXFORDSHIRE CC,ENVIRONMENT AND ECONOMY,HARD FM,PREMISES REPAIRS,15/09/2023,9112124858,20.56,SCREWFIX DIR LTD
OXFORDSHIRE CC,"CHILDRENS, YOUNG PEOPLE AND FAMILIES",NTS UASC AGENCY,CLEANING MATERIALS,15/09/2023,9112125776,26.5,HEADINGTON HOMEWAR
OXFORDSHIRE CC,SOCIAL AND COMMUNITY SERVICES,CSS - OXFORD,CATERING PROVISIONS,15/09/2023,9112125180,7.64,ALDI STORES 775-142
OXFORDSHIRE CC,"CHILDRENS, YOUNG PEOPLE AND FAMILIES",FSP NON-STAFFING - CENTRAL,OTHER TRANSPORT ARRANGEMENTS,15/09/2023,9112125924,2,OXFORD BUS COMPANY
OXFORDSHIRE CC,CHILDREN'S & EDUCATION,"	OCCG GRANT",CATERING,15/09/2023,9112125982,34.55,LSP MONTYS BURGER BAR
OXFORDSHIRE CC,"CHILDRENS, YOUNG PEOPLE AND FAMILIES",CNTL EARLY HELP-BRTN,MATERIALS,15/09/2023,9112125772,290,WWW.ARGOS.CO.UK
OXFORDSHIRE CC,CORPORATE CORE,ICT OPERATIONS & MAI,PURCHASE OF IT EQUIPMENT,15/09/2023,9112125842,40.99,AMAZON  204-3681518-12
OXFORDSHIRE CC,CHILDREN'S & EDUCATION,CHILDREN IN CARE NON-STAFFING - NORTH,ENTERTAINMENT EXPENSES,15/09/2023,9112125856,2.95,JUMP STREET CHELMSFORD
OXFORDSHIRE CC,"CHILDRENS, YOUNG PEOPLE AND FAMILIES","	LEAVING CARE SOUTH",OTHER TRANSPORT ARRANGEMENTS,15/09/2023,9112125208,16.5,STAGECOACH SERVICES
OXFORDSHIRE CC,"CHILDRENS, YOUNG PEOPLE AND FAMILIES","	LAC PUPIL PREMIUM",PURCHASE OF IT EQUIPMENT,15/09/2023,9112125224,400,VOUCHER EXPRESS
OXFORDSHIRE CC,"CHILDRENS, YOUNG PEOPLE AND FAMILIES","	OCCG GRANT",CATERING PROVISIONS,15/09/2023,9112125972,1.49,B&M 025 - BICESTER
OXFORDSHIRE CC,"CHILDRENS, YOUNG PEOPLE AND FAMILIES",CARE LEAVERS STAFFING,CATERING PROVISIONS,15/09/2023,9112125994,25,TESCO GIFT CARD
OXFORDSHIRE CC,"CHILDRENS, YOUNG PEOPLE AND FAMILIES","	OCCG GRANT",MATERIALS,15/09/2023,9112125978,0.99,CARD FACTORY
OXFORDSHIRE CC,ENVIRONMENT AND ECONOMY,HARD FM,PREMISES REPAIRS,15/09/2023,9112124848,34.13,SCREWFIX OXFORD COWLEY
OXFORDSHIRE CC,CHILDREN'S & EDUCATION,THAME E&A HOME,CATERING PROVISIONS,15/09/2023,9112124868,15.01,JOBLINGS
OXFORDSHIRE CC,"CHILDRENS, YOUNG PEOPLE AND FAMILIES",FSP NON-STAFFING - CENTRAL,PAYMENTS TO TRANSPORT OPERATORS,15/09/2023,9112125618,329.64,BKG HOTEL AT BOOKING.C
OXFORDSHIRE CC,"CHILDRENS, YOUNG PEOPLE AND FAMILIES",CNTL EARLY HELP-RHIL,PAYMENT TO GOVERNMENT DEPARTMENTS,15/09/2023,9112125624,112.5,WWW.OXFORD.GOV.UK
OXFORDSHIRE CC,"CHILDRENS, YOUNG PEOPLE AND FAMILIES",NTS UASC AGENCY,CLEANING MATERIALS,15/09/2023,9112125794,20.82,SAVERS HEALTH & BEAUTY
OXFORDSHIRE CC,"CHILDRENS, YOUNG PEOPLE AND FAMILIES",WITNEY,CATERING PROVISIONS,15/09/2023,9112125802,6.8,SAINSBURYS SMKT
OXFORDSHIRE CC,"CHILDRENS, YOUNG PEOPLE AND FAMILIES",NTS UASC AGENCY,CLEANING MATERIALS,15/09/2023,9112125788,5.4,SAVERS HEALTH & BEAUTY
OXFORDSHIRE CC,CORPORATE CORE,PUBLIC HEALTH GENERA,MATERIALS,15/09/2023,9112125162,9.48,AMZNMKTPLACE
OXFORDSHIRE CC,"CHILDRENS, YOUNG PEOPLE AND FAMILIES",UASC 16&17,OTHER TRANSPORT ARRANGEMENTS,15/09/2023,9112125170,8.6,M6 TOLL
OXFORDSHIRE CC,SOCIAL AND COMMUNITY SERVICES,"	HISTORY SERVICE",FURNITURE,15/09/2023,9112125814,8.5,AMZNMKTPLACE
OXFORDSHIRE CC,"CHILDRENS, YOUNG PEOPLE AND FAMILIES","	LEAVING CARE CITY 2",CATERING,15/09/2023,9112125312,4.59,BURGER KING
OXFORDSHIRE CC,"CHILDRENS, YOUNG PEOPLE AND FAMILIES",FSP NON-STAFFING - CENTRAL,OTHER TRANSPORT ARRANGEMENTS,15/09/2023,9112125916,60,ROYAL CARS
OXFORDSHIRE CC,"CHILDRENS, YOUNG PEOPLE AND FAMILIES",FSP NON-STAFFING - CENTRAL,OTHER TRANSPORT ARRANGEMENTS,15/09/2023,9112125926,2,OXFORD BUS COMPANY
OXFORDSHIRE CC,"CHILDRENS, YOUNG PEOPLE AND FAMILIES","	LEAVING CARE CITY 2",OTHER TRANSPORT ARRANGEMENTS,15/09/2023,9112125316,4.5,STGCOACH/CTYLINK
OXFORDSHIRE CC,SOCIAL AND COMMUNITY SERVICES,CSS WITNEY,MATERIALS,15/09/2023,9112125308,1.5,POUNDLAND LTD - 1912
OXFORDSHIRE CC,SOCIAL AND COMMUNITY SERVICES,CSS - BANBURY,CATERING PROVISIONS,15/09/2023,9112125890,6,TESCO STORES 2064
OXFORDSHIRE CC,"CHILDRENS, YOUNG PEOPLE AND FAMILIES","	LEAVING CARE CITY 2",OTHER TRANSPORT ARRANGEMENTS,15/09/2023,9112125320,2,STGCOACH/CTYLINK
OXFORDSHIRE CC,"CHILDRENS, YOUNG PEOPLE AND FAMILIES",FSP NON-STAFFING - CENTRAL,OTHER TRANSPORT ARRANGEMENTS,15/09/2023,9112125920,2,ARRIVA THE SHIRES LIMI
OXFORDSHIRE CC,SOCIAL AND COMMUNITY SERVICES,CSS WITNEY,CATERING PROVISIONS,15/09/2023,9112125892,15.69,CO-OP GROUP 070582
OXFORDSHIRE CC,"CHILDRENS, YOUNG PEOPLE AND FAMILIES",THAME E&A HOME,PROFESSIONAL SUBSCRIPTIONS,15/09/2023,9112125274,11.89,ONTOPUP.COM
OXFORDSHIRE CC,"CHILDRENS, YOUNG PEOPLE AND FAMILIES",CARE LEAVERS STAFFING,CATERING PROVISIONS,15/09/2023,9112125996,30,TESCO GIFT CARD
OXFORDSHIRE CC,"CHILDRENS, YOUNG PEOPLE AND FAMILIES",KINGFISHER,PROFESSIONAL SUBSCRIPTIONS,15/09/2023,9112124838,50,NWG NETWORK
OXFORDSHIRE CC,"CHILDRENS, YOUNG PEOPLE AND FAMILIES",FAMILY SOLUTIONS PLUS NON-STAFF - NORTH,HIRE OF ACCOMMODATION AND FACILITIES,15/09/2023,9112125762,288.61,TRAVELODGE
OXFORDSHIRE CC,CHILDREN'S & EDUCATION,40 THE MOORS,CATERING PROVISIONS,15/09/2023,9112125844,4.2,CO-OPERATIVE FOOD
OXFORDSHIRE CC,CHILDREN'S & EDUCATION,CHILDREN IN CARE NON-STAFFING - NORTH,VEHICLE FUEL,15/09/2023,9112125870,25.01,EMPIRE PETROLEUM
OXFORDSHIRE CC,ENVIRONMENT AND ECONOMY,"	NAT TRAILS GENERAL",PAYMENT TO GOVERNMENT DEPARTMENTS,15/09/2023,9112125968,3,LAND REGISTRY ECOM CCC
OXFORDSHIRE CC,"CHILDRENS, YOUNG PEOPLE AND FAMILIES",CARE LEAVERS STAFFING,PAYMENTS TO TRANSPORT OPERATORS,15/09/2023,9112125990,88.64,TRAINLINE
OXFORDSHIRE CC,SOCIAL AND COMMUNITY SERVICES,LIBRARY PROJECTS,PHOTOCOPYING,15/09/2023,9112125740,48,KOPYRITE
OXFORDSHIRE CC,CORPORATE CORE,SCHOOLS FM CATERING AREA 1,MATERIALS,15/09/2023,9112125750,23.02,AMZNMKTPLACE
OXFORDSHIRE CC,"CHILDRENS, YOUNG PEOPLE AND FAMILIES",FAMILY SOLUTIONS PLUS NON-STAFF - NORTH,PAYMENT TO GOVERNMENT DEPARTMENTS,15/09/2023,9112125156,-7.5,GEN REGISTER OFFICE
OXFORDSHIRE CC,"CHILDRENS, YOUNG PEOPLE AND FAMILIES",UASC 16&17,OTHER TRANSPORT ARRANGEMENTS,15/09/2023,9112125168,8.6,M6 TOLL
OXFORDSHIRE CC,SOCIAL AND COMMUNITY SERVICES,CSS - OXFORD,CATERING PROVISIONS,15/09/2023,9112125186,29.29,ALDI STORES 775-142
OXFORDSHIRE CC,"CHILDRENS, YOUNG PEOPLE AND FAMILIES","	LEAVING CARE CITY 2",PAYMENT TO GOVERNMENT DEPARTMENTS,15/09/2023,9112125324,34,DVLA DRIVER ONLINE
OXFORDSHIRE CC,"CHILDRENS, YOUNG PEOPLE AND FAMILIES",CHILDREN IN CARE NON-STAFFING - NORTH,OTHER TRANSPORT ARRANGEMENTS,15/09/2023,9112125258,80,PHOENIX TAXIS
OXFORDSHIRE CC,"CHILDRENS, YOUNG PEOPLE AND FAMILIES",SCHOOLS FM CATERING AREA 3,CATERING PROVISIONS,15/09/2023,9112125132,6.7,TESCO STORES 4338
OXFORDSHIRE CC,CORPORATE CORE,,STATIONERY,15/09/2023,9112125720,99.14,LYRECO UK LTD
OXFORDSHIRE CC,CORPORATE CORE,,STATIONERY,15/09/2023,9112125726,85.34,LYRECO UK LTD
OXFORDSHIRE CC,"CHILDRENS, YOUNG PEOPLE AND FAMILIES",THAME E&A HOME,CATERING,15/09/2023,9112125270,20.56,MCDONALDS
OXFORDSHIRE CC,ENVIRONMENT AND ECONOMY,"	NAT TRAILS GENERAL",CATERING PROVISIONS,15/09/2023,9112125286,122.72,SAINSBURYS S/MKT
OXFORDSHIRE CC,"CHILDRENS, YOUNG PEOPLE AND FAMILIES",CHILDREN IN CARE NON-STAFFING - NORTH,OTHER TRANSPORT ARRANGEMENTS,15/09/2023,9112125256,67.7,BLUELINE TAXIS
OXFORDSHIRE CC,SOCIAL AND COMMUNITY SERVICES,LIBRARY PROJECTS,PREMISES REPAIRS,15/09/2023,9112125742,45.18,B & Q 1176
OXFORDSHIRE CC,CORPORATE CORE,,STATIONERY,15/09/2023,9112125728,9.05,LYRECO UK LTD
OXFORDSHIRE CC,"CHILDRENS, YOUNG PEOPLE AND FAMILIES",WITNEY,MANAGEMENT CONSULTANT FEES,15/09/2023,9112125744,159,TVLICENSING.CO.UK
OXFORDSHIRE CC,"CHILDRENS, YOUNG PEOPLE AND FAMILIES",FAMILY SOLUTIONS PLUS NON-STAFF - NORTH,PAYMENTS TO TRANSPORT OPERATORS,15/09/2023,9112125748,-2.5,TRAINLINE
OXFORDSHIRE CC,"CHILDRENS, YOUNG PEOPLE AND FAMILIES",CHILDREN IN CARE NON-STAFFING - NORTH,OTHER TRANSPORT ARRANGEMENTS,15/09/2023,9112125262,39.2,PHOENIX TAXIS
OXFORDSHIRE CC,"CHILDRENS, YOUNG PEOPLE AND FAMILIES",NTS UASC AGENCY,CATERING PROVISIONS,15/09/2023,9112125782,11.4,ICELAND
OXFORDSHIRE CC,"CHILDRENS, YOUNG PEOPLE AND FAMILIES",FAMILY SOLUTIONS PLUS NON-STAFF - NORTH,LEGAL COSTS,15/09/2023,9112125848,288,TURPIN & MILLER LLP
OXFORDSHIRE CC,CORPORATE CORE,CATERING MANAGEMENT SOFT FM,MATERIALS,15/09/2023,9112125872,54.99,CURRYS SWINDON
OXFORDSHIRE CC,"CHILDRENS, YOUNG PEOPLE AND FAMILIES","	LEAVING CARE NORTH",TELEPHONE - EQUIPMENT,15/09/2023,9112125254,10,EE TOPUP  VESTA
OXFORDSHIRE CC,ENVIRONMENT AND ECONOMY,"	ROW MAINT",EQUIPMENT,15/09/2023,9112125264,64.45,AMZNMKTPLACE
OXFORDSHIRE CC,CORPORATE CORE,"MARKETING, COMMUNICATIONS & ENGAGEMENT",EQUIPMENT,15/09/2023,9112125766,24.89,AMZNMKTPLACE AMAZON.CO
OXFORDSHIRE CC,CHILDREN'S & EDUCATION,CHILDREN IN CARE NON-STAFFING - NORTH,OTHER TRANSPORT ARRANGEMENTS,15/09/2023,9112125854,5.7,RIVERSIDE
OXFORDSHIRE CC,ENVIRONMENT AND ECONOMY,"	ROW MAINT",EQUIPMENT,15/09/2023,9112125266,52.62,AWBS
OXFORDSHIRE CC,"CHILDRENS, YOUNG PEOPLE AND FAMILIES","	RESIDENTIAL STRATEGY",MATERIALS,15/09/2023,9112124962,100.66,AMZNMKTPLACE
OXFORDSHIRE CC,SOCIAL AND COMMUNITY SERVICES,SCHOOLS FM CATERING AREA 2,MATERIALS,15/09/2023,9112124972,476.7,AMZNMKTPLACE
OXFORDSHIRE CC,"CHILDRENS, YOUNG PEOPLE AND FAMILIES",VULNERABLE LEARNERS,"BOOKS, DVDS AND CDS",15/09/2023,9112125070,18.9,HTTP://WWW.QUAYBOOKS.C
OXFORDSHIRE CC,"CHILDRENS, YOUNG PEOPLE AND FAMILIES","	RESIDENTIAL STRATEGY",MATERIALS,15/09/2023,9112124964,29.99,AMZNMKTPLACE
OXFORDSHIRE CC,"CHILDRENS, YOUNG PEOPLE AND FAMILIES","	RESIDENTIAL STRATEGY",MATERIALS,15/09/2023,9112124966,29.99,AMZNMKTPLACE
OXFORDSHIRE CC,"CHILDRENS, YOUNG PEOPLE AND FAMILIES",FSP NON-STAFFING - CENTRAL,NON-STAFF SUBSISTENCE AND EXPENSES,15/09/2023,9112125100,871,BKG HOTEL AT BOOKING.C
OXFORDSHIRE CC,CORPORATE CORE,,STATIONERY,15/09/2023,9112125696,37.73,LYRECO UK LTD
OXFORDSHIRE CC,CORPORATE CORE,INCOME TEAM,PAYMENT TO GOVERNMENT DEPARTMENTS,15/09/2023,9112125012,11,OXFORDSHIRE CC WEB1
OXFORDSHIRE CC,"CHILDRENS, YOUNG PEOPLE AND FAMILIES",40 THE MOORS,OTHER EXPENSES,15/09/2023,9112125020,7,PRIMARK 440
OXFORDSHIRE CC,SOCIAL AND COMMUNITY SERVICES,CHILDREN IN CARE NON-STAFFING - NORTH,VEHICLE FUEL,15/09/2023,9112125030,35.13,W M MORRISON PETROL
OXFORDSHIRE CC,"CHILDRENS, YOUNG PEOPLE AND FAMILIES",PAUSE PROGRAMME,OTHER TRANSPORT ARRANGEMENTS,15/09/2023,9112125042,2,OXFORDBUS.CO.UK
OXFORDSHIRE CC,CORPORATE CORE,,STATIONERY,15/09/2023,9112125678,296.14,LYRECO UK LTD
OXFORDSHIRE CC,CORPORATE CORE,,STATIONERY,15/09/2023,9112125702,39.71,LYRECO UK LTD
OXFORDSHIRE CC,CORPORATE CORE,,STATIONERY,15/09/2023,9112125684,98.2,LYRECO UK LTD
OXFORDSHIRE CC,CORPORATE CORE,,STATIONERY,15/09/2023,9112125704,44.23,LYRECO UK LTD
OXFORDSHIRE CC,CHILDREN'S & EDUCATION,FIELDWORK UASC,MATERIALS,15/09/2023,9112125094,8,CURRYS CARE SERVICE
OXFORDSHIRE CC,CORPORATE CORE,,STATIONERY,15/09/2023,9112125694,36.48,LYRECO UK LTD
OXFORDSHIRE CC,CORPORATE CORE,,STATIONERY,15/09/2023,9112125714,102.05,LYRECO UK LTD
OXFORDSHIRE CC,CORPORATE CORE,,STATIONERY,15/09/2023,9112125712,12.12,LYRECO UK LTD
OXFORDSHIRE CC,CORPORATE CORE,,STATIONERY,15/09/2023,9112125706,13.75,LYRECO UK LTD
OXFORDSHIRE CC,CORPORATE CORE,THAME LIBRARY,"NEWSPAPERS, PERIODICALS AND PUBLICATIONS",15/09/2023,9112125654,5.6,SAINSBURYS S/MKTS
OXFORDSHIRE CC,"CHILDRENS, YOUNG PEOPLE AND FAMILIES",PAUSE PROGRAMME,ENTERTAINMENT EXPENSES,15/09/2023,9112125046,34.95,CINEWORLD DID CP
OXFORDSHIRE CC,"CHILDRENS, YOUNG PEOPLE AND FAMILIES",THAME E&A HOME,CATERING PROVISIONS,15/09/2023,9112125198,20.95,SAINSBURYS S/MKTS
OXFORDSHIRE CC,"CHILDRENS, YOUNG PEOPLE AND FAMILIES","	LEAVING CARE CITY 2",OTHER TRANSPORT ARRANGEMENTS,15/09/2023,9112125250,2.7,UNION STREET CAR PARK
OXFORDSHIRE CC,CHILDREN'S & EDUCATION,"	LOOKED AFTER SOUTH",CATERING,15/09/2023,9112125896,5.95,LOOMSBURY UK LIMITED
OXFORDSHIRE CC,ENVIRONMENT AND ECONOMY,"	NAT TRAILS GENERAL",VEHICLE FUEL,15/09/2023,9112125282,52.17,MFG EYNSHAM
OXFORDSHIRE CC,CORPORATE CORE,SCHOOLS FM CATERING AREA 4,CATERING PROVISIONS,15/09/2023,9112125202,74.76,ALDI STORES
OXFORDSHIRE CC,SOCIAL AND COMMUNITY SERVICES,CSS WITNEY,CATERING PROVISIONS,15/09/2023,9112125490,35.7,MILK AND MORE (RECUR
OXFORDSHIRE CC,SOCIAL AND COMMUNITY SERVICES,UASC 16&17,MATERIALS,15/09/2023,9112124878,299.99,CYCLE KING
OXFORDSHIRE CC,"CHILDRENS, YOUNG PEOPLE AND FAMILIES","	RESIDENTIAL STRATEGY",MATERIALS,15/09/2023,9112124894,223.92,AMZNMKTPLACE
OXFORDSHIRE CC,"CHILDRENS, YOUNG PEOPLE AND FAMILIES","	RESIDENTIAL STRATEGY",MATERIALS,15/09/2023,9112124902,129,AMZNMKTPLACE
OXFORDSHIRE CC,"CHILDRENS, YOUNG PEOPLE AND FAMILIES","	RESIDENTIAL STRATEGY",MATERIALS,15/09/2023,9112124922,14.98,AMZNMKTPLACE
OXFORDSHIRE CC,"CHILDRENS, YOUNG PEOPLE AND FAMILIES",THAME E&A HOME,CATERING PROVISIONS,15/09/2023,9112125454,13,TESCO STORES 2008
OXFORDSHIRE CC,CORPORATE CORE,TRANSPORT GENERAL,VEHICLES AND PLANT - REPAIRS AND MAIN,15/09/2023,9112125360,137,KF MOBILE
OXFORDSHIRE CC,SOCIAL AND COMMUNITY SERVICES,CSS WANTAGE,MATERIALS,15/09/2023,9112125494,19.95,AMZNMKTPLACE
OXFORDSHIRE CC,CORPORATE CORE,LIBRARY COLLECTIONS,DRUGS AND MEDICAL SUPPLIES,15/09/2023,9112125358,58.56,WF EDUCATION GROUP LTD
OXFORDSHIRE CC,"CHILDRENS, YOUNG PEOPLE AND FAMILIES",THAME E&A HOME,CATERING PROVISIONS,15/09/2023,9112125278,78.43,HOME BARGAINS FARRINGD
OXFORDSHIRE CC,CORPORATE CORE,"MARKETING, COMMUNICATIONS & ENGAGEMENT","PUBLICITY, PROMOTIONS AND ADVERTISEMENT",15/09/2023,9112125564,65.5,SQ  SMM MEDIA LIMITED
OXFORDSHIRE CC,"CHILDRENS, YOUNG PEOPLE AND FAMILIES","	RESIDENTIAL STRATEGY",MATERIALS,15/09/2023,9112124960,93.12,AMZNMKTPLACE
OXFORDSHIRE CC,"CHILDRENS, YOUNG PEOPLE AND FAMILIES","	LEAVING CARE CITY 1",OTHER TRANSPORT ARRANGEMENTS,15/09/2023,9112124970,4.8,WESTGATE OXFORD CAR PA
OXFORDSHIRE CC,"CHILDRENS, YOUNG PEOPLE AND FAMILIES",KINGFISHER,OTHER TRANSPORT ARRANGEMENTS,15/09/2023,9112125642,5.5,TFL TRAVEL CH
OXFORDSHIRE CC,CHILDREN'S & EDUCATION,40 THE MOORS,CATERING,15/09/2023,9112125556,13.1,KIDLINGTON  KIDLINGTON
OXFORDSHIRE CC,SOCIAL AND COMMUNITY SERVICES,FLEET OPERATIONS,CATERING PROVISIONS,15/09/2023,9112125092,18.4,MILK AND MORE (RECUR
OXFORDSHIRE CC,CORPORATE CORE,,STATIONERY,15/09/2023,9112125716,31.75,LYRECO UK LTD
OXFORDSHIRE CC,CORPORATE CORE,,STATIONERY,15/09/2023,9112125718,5.62,LYRECO UK LTD
OXFORDSHIRE CC,CHILDREN'S & EDUCATION,40 THE MOORS,CATERING,15/09/2023,9112125560,57.94,DELIVEROO
OXFORDSHIRE CC,CORPORATE CORE,"MARKETING, COMMUNICATIONS & ENGAGEMENT","PUBLICITY, PROMOTIONS AND ADVERTISEMENT",15/09/2023,9112125562,74.45,SQ  SMM MEDIA LIMITED
OXFORDSHIRE CC,ENVIRONMENT AND ECONOMY,THE RIDGEWAY,MATERIALS,15/09/2023,9112124998,60.99,NOTONTHEHIGHSTREET.COM
OXFORDSHIRE CC,"CHILDRENS, YOUNG PEOPLE AND FAMILIES","	HOME SUPPORT",MATERIALS,15/09/2023,9112125006,13.98,AMZNMKTPLACE AMAZON.CO
OXFORDSHIRE CC,"CHILDRENS, YOUNG PEOPLE AND FAMILIES",EYNSHAM,DRUGS AND MEDICAL SUPPLIES,15/09/2023,9112125674,5.99,AMZNMKTPLACE
OXFORDSHIRE CC,"CHILDRENS, YOUNG PEOPLE AND FAMILIES",EYNSHAM,TELEPHONE - EQUIPMENT,15/09/2023,9112125670,99.48,AMZNMKTPLACE
OXFORDSHIRE CC,"CHILDRENS, YOUNG PEOPLE AND FAMILIES",PAUSE PROGRAMME,OTHER TRANSPORT ARRANGEMENTS,15/09/2023,9112125044,2,OXFORDBUS.CO.UK
OXFORDSHIRE CC,"CHILDRENS, YOUNG PEOPLE AND FAMILIES",PAUSE PROGRAMME,OTHER TRANSPORT ARRANGEMENTS,15/09/2023,9112125052,2.4,S OXFORDS PARKING FEE
OXFORDSHIRE CC,ENVIRONMENT AND ECONOMY,"	SAMUELSON HOUSE",CATERING PROVISIONS,15/09/2023,9112125072,42.84,MILK AND MORE (RECUR
OXFORDSHIRE CC,"CHILDRENS, YOUNG PEOPLE AND FAMILIES",PAUSE PROGRAMME,CATERING PROVISIONS,15/09/2023,9112125048,10.8,WILKO RETAIL LIMITED
OXFORDSHIRE CC,"CHILDRENS, YOUNG PEOPLE AND FAMILIES",PAUSE PROGRAMME,MATERIALS,15/09/2023,9112125050,5.5,POUNDLAND LTD - 1949
OXFORDSHIRE CC,CORPORATE CORE,,STATIONERY,15/09/2023,9112125722,195.94,LYRECO UK LTD
OXFORDSHIRE CC,"CHILDRENS, YOUNG PEOPLE AND FAMILIES","	RESIDENTIAL STRATEGY",MATERIALS,15/09/2023,9112124946,2.69,AMZNMKTPLACE
OXFORDSHIRE CC,"CHILDRENS, YOUNG PEOPLE AND FAMILIES","	RESIDENTIAL STRATEGY",MATERIALS,15/09/2023,9112124952,47.98,AMZNMKTPLACE
OXFORDSHIRE CC,"CHILDRENS, YOUNG PEOPLE AND FAMILIES",CHILDREN IN CARE NON-STAFFING - SOUTH,HIRE OF ACCOMMODATION AND FACILITIES,15/09/2023,9112124834,219.98,PREMIER INN
OXFORDSHIRE CC,SOCIAL AND COMMUNITY SERVICES,CSS WANTAGE,MATERIALS,15/09/2023,9112125498,19.99,AMZNMKTPLACE
OXFORDSHIRE CC,"CHILDRENS, YOUNG PEOPLE AND FAMILIES","	RESIDENTIAL STRATEGY",MATERIALS,15/09/2023,9112124940,16.02,AMZNMKTPLACE
OXFORDSHIRE CC,SOCIAL AND COMMUNITY SERVICES,"	MUSEUMS COLLECTIONS",CATERING PROVISIONS,15/09/2023,9112125404,4.62,MILK AND MORE (RECUR
OXFORDSHIRE CC,"CHILDRENS, YOUNG PEOPLE AND FAMILIES",FAMILY SOLUTIONS PLUS NON-STAFF � SOUTH,CATERING PROVISIONS,15/09/2023,9112125422,8.8,SAINSBURYS S/MKTS
OXFORDSHIRE CC,"CHILDRENS, YOUNG PEOPLE AND FAMILIES","	RESIDENTIAL STRATEGY",MATERIALS,15/09/2023,9112124896,7.99,AMZNMKTPLACE
OXFORDSHIRE CC,"CHILDRENS, YOUNG PEOPLE AND FAMILIES","	RESIDENTIAL STRATEGY",MATERIALS,15/09/2023,9112124904,22.49,AMZNMKTPLACE
OXFORDSHIRE CC,"CHILDRENS, YOUNG PEOPLE AND FAMILIES","	RESIDENTIAL STRATEGY",MATERIALS,15/09/2023,9112124942,2.69,AMZNMKTPLACE
OXFORDSHIRE CC,SOCIAL AND COMMUNITY SERVICES,THE OAKS EMERGENCY & ASSSESSMENT CENTRE,CATERING PROVISIONS,15/09/2023,9112124882,2,CO-OPERATIVE FOOD
OXFORDSHIRE CC,"CHILDRENS, YOUNG PEOPLE AND FAMILIES","	RESIDENTIAL STRATEGY",MATERIALS,15/09/2023,9112124934,29.5,AMZNMKTPLACE
OXFORDSHIRE CC,"CHILDRENS, YOUNG PEOPLE AND FAMILIES","	RESIDENTIAL STRATEGY",MATERIALS,15/09/2023,9112124910,159.84,AMZNMKTPLACE
OXFORDSHIRE CC,"CHILDRENS, YOUNG PEOPLE AND FAMILIES","	RESIDENTIAL STRATEGY",MATERIALS,15/09/2023,9112124924,17.96,AMZNMKTPLACE
OXFORDSHIRE CC,"CHILDRENS, YOUNG PEOPLE AND FAMILIES",THAME E&A HOME,HARDWARE AND CROCKERY,15/09/2023,9112125458,188.89,B & Q 1156
OXFORDSHIRE CC,SOCIAL AND COMMUNITY SERVICES,HOLTON SITE,CATERING PROVISIONS,15/09/2023,9112124886,14.95,MILK AND MORE (RECUR
OXFORDSHIRE CC,"CHILDRENS, YOUNG PEOPLE AND FAMILIES","	RESIDENTIAL STRATEGY",MATERIALS,15/09/2023,9112124898,14.98,AMZNMKTPLACE
OXFORDSHIRE CC,SOCIAL AND COMMUNITY SERVICES,UASC 16&17,SUBSCRIPTIONS,15/09/2023,9112124872,35.99,PUREGYM LIMITED
OXFORDSHIRE CC,"CHILDRENS, YOUNG PEOPLE AND FAMILIES","	RESIDENTIAL STRATEGY",MATERIALS,15/09/2023,9112124900,223.92,AMZNMKTPLACE
OXFORDSHIRE CC,"CHILDRENS, YOUNG PEOPLE AND FAMILIES","	RESIDENTIAL STRATEGY",MATERIALS,15/09/2023,9112124956,114.03,AMZNMKTPLACE
OXFORDSHIRE CC,"CHILDRENS, YOUNG PEOPLE AND FAMILIES","	RESIDENTIAL STRATEGY",MATERIALS,15/09/2023,9112124948,71.96,AMZNMKTPLACE
OXFORDSHIRE CC,"CHILDRENS, YOUNG PEOPLE AND FAMILIES",EYNSHAM,CATERING PROVISIONS,15/09/2023,9112124824,6.7,WAITROSE 142
OXFORDSHIRE CC,SOCIAL AND COMMUNITY SERVICES,CSS WANTAGE,MATERIALS,15/09/2023,9112125500,11.95,AMZNMKTPLACE
OXFORDSHIRE CC,"CHILDRENS, YOUNG PEOPLE AND FAMILIES","	RESIDENTIAL STRATEGY",MATERIALS,15/09/2023,9112124944,27.98,AMZNMKTPLACE
OXFORDSHIRE CC,SOCIAL AND COMMUNITY SERVICES,CSS WANTAGE,MATERIALS,15/09/2023,9112125504,19.96,AMZNMKTPLACE
OXFORDSHIRE CC,"CHILDRENS, YOUNG PEOPLE AND FAMILIES","	RESIDENTIAL STRATEGY",MATERIALS,15/09/2023,9112124908,45.45,AMZNMKTPLACE
OXFORDSHIRE CC,"CHILDRENS, YOUNG PEOPLE AND FAMILIES","	RESIDENTIAL STRATEGY",MATERIALS,15/09/2023,9112124912,18.18,AMZNMKTPLACE
OXFORDSHIRE CC,"CHILDRENS, YOUNG PEOPLE AND FAMILIES","	RESIDENTIAL STRATEGY",MATERIALS,15/09/2023,9112124928,15.8,AMZNMKTPLACE
OXFORDSHIRE CC,"CHILDRENS, YOUNG PEOPLE AND FAMILIES",THAME E&A HOME,HARDWARE AND CROCKERY,15/09/2023,9112125462,83.93,HOMEBASE LTD
OXFORDSHIRE CC,"CHILDRENS, YOUNG PEOPLE AND FAMILIES","	LOOKED AFTER CITY 2",VEHICLE FUEL,15/09/2023,9112125468,24.93,APPLEGREEN BICESTER
OXFORDSHIRE CC,"CHILDRENS, YOUNG PEOPLE AND FAMILIES","	RESIDENTIAL STRATEGY",MATERIALS,15/09/2023,9112124936,29.5,AMZNMKTPLACE
OXFORDSHIRE CC,ENVIRONMENT AND ECONOMY,"	OXFORDSHIRE MUSEUM",CATERING PROVISIONS,15/09/2023,9112125430,52.1,SAINSBURYS.CO.UK
OXFORDSHIRE CC,"CHILDRENS, YOUNG PEOPLE AND FAMILIES","	RESIDENTIAL STRATEGY",MATERIALS,15/09/2023,9112124906,7.99,AMZNMKTPLACE
OXFORDSHIRE CC,"CHILDRENS, YOUNG PEOPLE AND FAMILIES","	RESIDENTIAL STRATEGY",MATERIALS,15/09/2023,9112124916,159.84,AMZNMKTPLACE
OXFORDSHIRE CC,"CHILDRENS, YOUNG PEOPLE AND FAMILIES","	RESIDENTIAL STRATEGY",MATERIALS,15/09/2023,9112124930,16.02,AMZNMKTPLACE
OXFORDSHIRE CC,"CHILDRENS, YOUNG PEOPLE AND FAMILIES",FAMILY SOLUTIONS PLUS NON-STAFF � SOUTH,HIRE OF ACCOMMODATION AND FACILITIES,14/09/2023,9105495478,156,JERICHO CA
OXFORDSHIRE CC,SOCIAL AND COMMUNITY SERVICES,"	MUSEUMS COLLECTIONS",OTHER SERVICES,14/09/2023,9105495786,27.8,AMZNMKTPLACE
OXFORDSHIRE CC,SOCIAL AND COMMUNITY SERVICES,CSS WITNEY,MATERIALS,14/09/2023,9105495804,24.99,AMZNMKTPLACE
OXFORDSHIRE CC,SOCIAL AND COMMUNITY SERVICES,CSS WITNEY,MATERIALS,14/09/2023,9105495806,33.65,AMZNMKTPLACE AMAZON.CO
OXFORDSHIRE CC,CHILDREN'S & EDUCATION,EYNSHAM,MATERIALS,14/09/2023,9105495440,3.49,AMZNMKTPLACE AMAZON.CO
OXFORDSHIRE CC,"CHILDRENS, YOUNG PEOPLE AND FAMILIES",KINGFISHER,HIRE OF ACCOMMODATION AND FACILITIES,14/09/2023,9105495448,323.96,PREMIER INN
OXFORDSHIRE CC,ENVIRONMENT AND ECONOMY,HARD FM,VEHICLE EQUIPMENT AND EXPENSES - OTHER,14/09/2023,9105495456,25.49,HALFORDS 0988
OXFORDSHIRE CC,SOCIAL AND COMMUNITY SERVICES,CSS - ABINGDON,CATERING PROVISIONS,14/09/2023,9105495442,42.12,TESCO STORES 2008
OXFORDSHIRE CC,ENVIRONMENT AND ECONOMY,HARD FM,EQUIPMENT,14/09/2023,9105495458,45.72,WILLIAMS & CO
OXFORDSHIRE CC,"CHILDRENS, YOUNG PEOPLE AND FAMILIES",CHILDREN IN CARE NON-STAFFING - SOUTH,HIRE OF ACCOMMODATION AND FACILITIES,14/09/2023,9105495434,66.28,TRAVELODGE
OXFORDSHIRE CC,"CHILDRENS, YOUNG PEOPLE AND FAMILIES",CSS WANTAGE,CATERING PROVISIONS,14/09/2023,9105495446,25.1,ASDA STORES 5123
OXFORDSHIRE CC,"CHILDRENS, YOUNG PEOPLE AND FAMILIES",CHILDREN IN CARE NON-STAFFING - CENTRL 2,PAYMENT TO GOVERNMENT DEPARTMENTS,14/09/2023,9105495474,-11,OXFORDSHIRE CC MOTO1
OXFORDSHIRE CC,"CHILDRENS, YOUNG PEOPLE AND FAMILIES",EET SERVICE,CLOTHING AND UNIFORMS,14/09/2023,9105495782,165.2,WWW.LABEEBY.CO.UK
OXFORDSHIRE CC,"CHILDRENS, YOUNG PEOPLE AND FAMILIES",FAMILY SOLUTIONS PLUS NON-STAFF � SOUTH,CATERING PROVISIONS,14/09/2023,9105495784,2.95,CO-OPERATIVE FOOD
OXFORDSHIRE CC,"CHILDRENS, YOUNG PEOPLE AND FAMILIES","	LOOKED AFTER CITY 2",PAYMENTS TO TRANSPORT OPERATORS,14/09/2023,9105495774,8.76,TRAINLINE
OXFORDSHIRE CC,"CHILDRENS, YOUNG PEOPLE AND FAMILIES","	SM QUALITY ASSURANCE",HIRE OF ACCOMMODATION AND FACILITIES,14/09/2023,9105495476,129,EVIIVO  :DUNSTER CASTL
OXFORDSHIRE CC,SOCIAL AND COMMUNITY SERVICES,HOLTON SITE,MATERIALS,14/09/2023,9105495490,15.08,PAYPAL  SCREWFIX
OXFORDSHIRE CC,"CHILDRENS, YOUNG PEOPLE AND FAMILIES","	LEAVING CARE SOUTH",CATERING,14/09/2023,9105495856,16.86,MCDONALDS
OXFORDSHIRE CC,"CHILDRENS, YOUNG PEOPLE AND FAMILIES","	LEAVING CARE SOUTH",OTHER EXPENSES,14/09/2023,9105495858,7.4,WAITROSE 874
OXFORDSHIRE CC,"CHILDRENS, YOUNG PEOPLE AND FAMILIES",KINGFISHER,PAYMENTS TO TRANSPORT OPERATORS,14/09/2023,9105495866,174.7,GWR WORCESTER OT
OXFORDSHIRE CC,"CHILDRENS, YOUNG PEOPLE AND FAMILIES",FSP NON-STAFFING - CENTRAL,CATERING PROVISIONS,14/09/2023,9105495508,2.4,TESCO STORES 4377
OXFORDSHIRE CC,ENVIRONMENT AND ECONOMY,WASTE REDUCTION GEN,"PUBLICITY, PROMOTIONS AND ADVERTISEMENT",14/09/2023,9105495506,16.96,FACEBK 9WNVURPB32
OXFORDSHIRE CC,"CHILDRENS, YOUNG PEOPLE AND FAMILIES","	HOME SUPPORT",MATERIALS,14/09/2023,9105495514,21.02,AMAZON.CO.UK 143UC9A34
OXFORDSHIRE CC,"CHILDRENS, YOUNG PEOPLE AND FAMILIES",FSP NON-STAFFING - CENTRAL,CATERING PROVISIONS,14/09/2023,9105495510,9.8,CO-OPERATIVE FOOD
OXFORDSHIRE CC,"CHILDRENS, YOUNG PEOPLE AND FAMILIES",DIDCOT MOVE-ON HOME,HARDWARE AND CROCKERY,14/09/2023,9105495818,15,B AND Q
OXFORDSHIRE CC,"CHILDRENS, YOUNG PEOPLE AND FAMILIES",KINGFISHER,CATERING PROVISIONS,14/09/2023,9105495512,30,TESCO GIFT CARD
OXFORDSHIRE CC,CORPORATE CORE,INCOME TEAM,PAYMENT TO GOVERNMENT DEPARTMENTS,14/09/2023,9105495520,11,OXFORDSHIRE CC WEB1
OXFORDSHIRE CC,"CHILDRENS, YOUNG PEOPLE AND FAMILIES","	SEN/ICT EQUIPMENT",IT SERVICES,14/09/2023,9105495542,31.2,GOTO TECHNOLOGIES UK L
OXFORDSHIRE CC,"CHILDRENS, YOUNG PEOPLE AND FAMILIES",UASC POST 18,MATERIALS,14/09/2023,9105495544,27.99,SPORTSDIRECT 218
OXFORDSHIRE CC,"CHILDRENS, YOUNG PEOPLE AND FAMILIES","	LOOKED AFTER NORTH",CATERING,14/09/2023,9105495546,11.37,MCDONALDS
OXFORDSHIRE CC,CHILDREN'S & EDUCATION,"	LEAVING CARE CITY 1",MANAGEMENT CONSULTANT FEES,14/09/2023,9105495554,159,TVLICENSING.CO.UK
OXFORDSHIRE CC,CHILDREN'S & EDUCATION,"	LEAVING CARE CITY 1",MATERIALS,14/09/2023,9105495556,0.99,AMAZON PRIME 1457D5TC4
OXFORDSHIRE CC,"CHILDRENS, YOUNG PEOPLE AND FAMILIES","	LOOKED AFTER NORTH",OTHER TRANSPORT ARRANGEMENTS,14/09/2023,9105495548,10.5,WORCESTER STREET CAR P
OXFORDSHIRE CC,"CHILDRENS, YOUNG PEOPLE AND FAMILIES",UASC 16&17,MATERIALS,14/09/2023,9105495550,113.86,AMAZON.CO.UK 142LO3AJ4
